Service Area,Service Division,Expense Type,Expense Code,Detailed Expense Type,Payment Date,Transaction Number,Amount Exc VAT,Supplier Name
Resources BK0010,Legal & Democratic Services,Premises,150005,Apportioned Exps of Operational Blds,01/08/2022,4030907-INV-1165,950.00,MARK BREALEY COMMUNICATIONS.
Resources BK0010,Digital Services,Vehicles Equipment Furniture and Fittings,912701,Computer equipment,01/08/2022,4031017-LC27827,"11,706.72",XMA LTD.
Resources BK0010,Digital Services,Supplies and Services,342033,Computers and Communications,01/08/2022,4030874-2100192779,"1,085.40",INSIGHT DIRECT (UK) LTD.
Resources BK0010,Digital Services,Supplies and Services,342053,Computers and Communications,01/08/2022,4030847-6004176882,"1,414.00",EDUCATION SOFTWARE SOLUTIONS LTD.
Adult and Health Services,Commissioning inc Supporting People,Supplies and Services,342053,Computers and Communications,01/08/2022,4030855-RES-07-2022-366,"5,203.44",GAINFORD CARE HOMES LTD.
Resources BK0010,Digital Services,Supplies and Services,342051,Computers and Communications,01/08/2022,4031020-IN0291057,527.10,ZELLIS UK LTD.
Neighbourhoods and Climate Change,Technical Services CM0300,Supplies and Services,352001,Conference Expenses,01/08/2022,4030986-SI-1725,"2,042.50",TAILORED HIGHWAY SUPPORT LTD T/A THS TRAINING.
Neighbourhoods and Climate Change,Technical Services CM0300,Construction work A908,908105,Construction work,01/08/2022,4030870-SI7510528,"41,790.26",IAN FARMER ASSOCIATES (1998) LTD.
Adult and Health Services,Public Health CC0450,Third Party Payments,460803,Contract Payments,01/08/2022,4030828-SINV62/00000033,"8,636.00",DELPHI MEDICAL LTD.
Neighbourhoods and Climate Change,Technical Services CM0300,Supplies and Services,304221,Equipment and Materials,01/08/2022,4030812-OP/I025715,"3,950.00",CENTREWIRE LTD.
Regeneration Economy and Growth,Corporate Property and Land,Supplies and Services,304221,Equipment and Materials,01/08/2022,4030831-19072022,"47,411.79",DG JOINERY SOLUTIONS LTD.
Neighbourhoods and Climate Change,Technical Services CM0300,Supplies and Services,304221,Equipment and Materials,01/08/2022,4030865-14768,"8,800.00",HOPKINS STEEL LTD.
Neighbourhoods and Climate Change,Technical Services CM0300,Supplies and Services,304221,Equipment and Materials,01/08/2022,4030885-0112/00703340,962.50,JT DOVE LTD.
Neighbourhoods and Climate Change,Technical Services CM0300,Supplies and Services,304221,Equipment and Materials,01/08/2022,4030885-0113/00699004,501.24,JT DOVE LTD.
Neighbourhoods and Climate Change,Technical Services CM0300,Supplies and Services,304221,Equipment and Materials,01/08/2022,4030885-0303/00703348,585.00,JT DOVE LTD.
Neighbourhoods and Climate Change,Technical Services CM0300,Supplies and Services,304221,Equipment and Materials,01/08/2022,4030886-356541,"3,324.62",KAEFER LTD.
Neighbourhoods and Climate Change,Technical Services CM0300,Supplies and Services,304221,Equipment and Materials,01/08/2022,4030909-Z001341498,"2,377.92",MARSHALLS MONO LTD.
Neighbourhoods and Climate Change,Technical Services CM0300,Supplies and Services,304221,Equipment and Materials,01/08/2022,4030987-9045589587,787.98,TARMAC TRADING LTD.
Neighbourhoods and Climate Change,Technical Services CM0300,Supplies and Services,304221,Equipment and Materials,01/08/2022,4031001-234701,889.14,TYNEDALE ROADSTONE LTD.
Neighbourhoods and Climate Change,Technical Services CM0300,Supplies and Services,304221,Equipment and Materials,01/08/2022,4031001-234708,"1,644.88",TYNEDALE ROADSTONE LTD.
Neighbourhoods and Climate Change,Technical Services CM0300,Supplies and Services,304221,Equipment and Materials,01/08/2022,4031001-234790,"1,652.73",TYNEDALE ROADSTONE LTD.
Neighbourhoods and Climate Change,Technical Services CM0300,Supplies and Services,304221,Equipment and Materials,01/08/2022,4031001-234799,"1,654.30",TYNEDALE ROADSTONE LTD.
Neighbourhoods and Climate Change,Technical Services CM0300,Supplies and Services,304221,Equipment and Materials,01/08/2022,4031001-234884,"1,652.73",TYNEDALE ROADSTONE LTD.
Neighbourhoods and Climate Change,Technical Services CM0300,Supplies and Services,304221,Equipment and Materials,01/08/2022,4031001-234943,"1,296.34",TYNEDALE ROADSTONE LTD.
Neighbourhoods and Climate Change,Technical Services CM0300,Supplies and Services,304221,Equipment and Materials,01/08/2022,4031001-234944,"1,652.73",TYNEDALE ROADSTONE LTD.
Neighbourhoods and Climate Change,Technical Services CM0300,Supplies and Services,304221,Equipment and Materials,01/08/2022,4031001-234946,749.98,TYNEDALE ROADSTONE LTD.
Neighbourhoods and Climate Change,Technical Services CM0300,Supplies and Services,304221,Equipment and Materials,01/08/2022,4031001-234947,"1,646.45",TYNEDALE ROADSTONE LTD.
Neighbourhoods and Climate Change,Technical Services CM0300,Supplies and Services,304221,Equipment and Materials,01/08/2022,4031001-234951,905.41,TYNEDALE ROADSTONE LTD.
Neighbourhoods and Climate Change,Technical Services CM0300,Supplies and Services,304221,Equipment and Materials,01/08/2022,4031001-234997,"1,783.29",TYNEDALE ROADSTONE LTD.
Children and Young Peoples Services,Head of Early Help Inclusion & Vulnerable Children.,Supplies and Services,304259,Equipment and Materials,01/08/2022,4030937-INV-0275,"2,000.00",ONE PLUS ONE MARRIAGE & PARTNERSHIP RESEARCH T/A ONE PLUS ONE.
Resources BK0010,Digital Services,Supplies and Services,304303,Equipment and Materials,01/08/2022,4030860-INV0188356,"6,009.56",GVAV LTD.
Children and Young Peoples Services,Head of Early Help Inclusion & Vulnerable Children.,Supplies and Services,384302,Miscellaneous Expenses,01/08/2022,4030908-25072022,500.00,MARK HODGSON T/A CLIMBING WALLS NORTH EAST.
Regeneration Economy and Growth,Economic Development Level C,Supplies and Services,384899,Miscellaneous Expenses,01/08/2022,4030805-SD023/2,"29,961.51",BRIDGE CREATIVE ENTERPRISE CIC.
Neighbourhoods and Climate Change,Environmental Services,Supplies and Services,384899,Miscellaneous Expenses,01/08/2022,4030801-RES-07-2022-381,"5,967.84",BARNARD CASTLE SCHOOL.
Neighbourhoods and Climate Change,Environmental Services,Supplies and Services,384899,Miscellaneous Expenses,01/08/2022,4030972-RES-07-2022-380,927.14,SPRINGFIELD NE LTD.
Regeneration Economy and Growth,Culture Sport and Tourism,Supplies and Services,384700,Miscellaneous Expenses,01/08/2022,4030863-4108,"2,343.50",HIGHLIGHTS PRODUCTIONS LTD.
Regeneration Economy and Growth,Planning & Housing,Supplies and Services,384999,Miscellaneous Expenses,01/08/2022,4030829-023-2022,900.00,DENTON MANAGEMENT LTD.
Resources BK0010,Procurement Sales & Business Services,Supplies and Services,384199,Miscellaneous Expenses,01/08/2022,4030788-C68184,"3,203.08",ALLIED PUBLICITY SERVICES (MANCHESTER) LTD.
Regeneration Economy and Growth,Culture Sport and Tourism,Supplies and Services,384199,Miscellaneous Expenses,01/08/2022,4030796-BCB22071802,"5,400.00",BACK CHAT BRASS.
Neighbourhoods and Climate Change,Environmental Services,Supplies and Services,384199,Miscellaneous Expenses,01/08/2022,4030869-3025,"2,415.00",IAN C LIDDLE T/A IC LIDDLE SERVICES.
Neighbourhoods and Climate Change,Environmental Services,Supplies and Services,384199,Miscellaneous Expenses,01/08/2022,4030872-965/DUCC3949,"1,350.00",IMAGEMAKERS DESIGN & CONSULTANCY LTD.
Regeneration Economy and Growth,Culture Sport and Tourism,Supplies and Services,384199,Miscellaneous Expenses,01/08/2022,4030917-BWBB-9,"5,250.00",MIDNIGHT MANGO LTD.
Regeneration Economy and Growth,Culture Sport and Tourism,Supplies and Services,384199,Miscellaneous Expenses,01/08/2022,4030935-5499,"5,750.00",OLD DIRTY BRASSTARDS LTD.
Regeneration Economy and Growth,Business Durham CL0850,Supplies and Services,384199,Miscellaneous Expenses,01/08/2022,4030940-ORCA-3347,"2,350.00",ORCA CLEANING SERVICES LTD.
Regeneration Economy and Growth,Culture Sport and Tourism,Supplies and Services,384199,Miscellaneous Expenses,01/08/2022,4030895-DURHAMCITYCOUNCIL01-2022,550.00,REDACTED - PAYMENT TO INDIVIDUAL
Regeneration Economy and Growth,Culture Sport and Tourism,Supplies and Services,384199,Miscellaneous Expenses,01/08/2022,4030902-1,912.00,REDACTED - PAYMENT TO INDIVIDUAL
Children and Young Peoples Services,Head of Early Help Inclusion & Vulnerable Children.,Supplies and Services,384199,Miscellaneous Expenses,01/08/2022,4030783-00000011690,735.00,ACCORDIAL LTD.
Neighbourhoods and Climate Change,Environmental Services,Supplies and Services,384199,Miscellaneous Expenses,01/08/2022,4030887-23,600.00,REDACTED - PAYMENT TO INDIVIDUAL
Children and Young Peoples Services,Head of Education and Skills,Third Party Payments,440999,Other third party payments E440,01/08/2022,4030951-1153,"15,041.20",RELEASE POTENTIAL LTD.
Children and Young Peoples Services,Head of Education and Skills,Third Party Payments,440999,Other third party payments E440,01/08/2022,4030976-434,805.00,STANLEY EVENTS LTD.
Children and Young Peoples Services,Head of Childrens Social Care,Third Party Payments,440038,Other third party payments E440,01/08/2022,4030864-68617-JH13-1/2021,956.00,HOME GROUP LTD FORMERLY STONHAM HOUSING ASSOCIATION LTD.
Children and Young Peoples Services,Head of Childrens Social Care,Third Party Payments,440038,Other third party payments E440,01/08/2022,4030864-68617-JH13-2/2021,956.00,HOME GROUP LTD FORMERLY STONHAM HOUSING ASSOCIATION LTD.
Children and Young Peoples Services,Head of Childrens Social Care,Third Party Payments,440038,Other third party payments E440,01/08/2022,4030864-68617-JH2-1/2022,591.54,HOME GROUP LTD FORMERLY STONHAM HOUSING ASSOCIATION LTD.
Resources BK0010,Digital Services,Supplies and Services,332029,Printing Stationery and Gen Off Exps,01/08/2022,4030947-707748,"1,205.00",POTTS PRINTERS LTD.
Regeneration Economy and Growth,Culture Sport and Tourism,Supplies and Services,324117,Provisions E324,01/08/2022,4030897-1742,"1,280.00",REDACTED - PAYMENT TO INDIVIDUAL
Children and Young Peoples Services,Head of Education and Skills,Transport,235005,Public Transport,01/08/2022,4031015-17842,"3,833.53",WEARDALE MOTOR SERVICES LTD.
Children and Young Peoples Services,Head of Early Help Inclusion & Vulnerable Children.,Transport,235073,Public Transport,01/08/2022,4030977-60103,640.00,STANLEY TRAVEL (NORTH EAST) LTD.
Adult and Health Services,Head of Adults,Third Party Payments,474101,Purchase of Care,01/08/2022,4030905-CAS-11-2021-142,647.36,MALHOTRA CARE HOMES LTD.
Adult and Health Services,Head of Adults,Third Party Payments,479102,Purchase of Care,01/08/2022,4030946-013,"6,068.50",POSITIVE CARE & SUPPORT LTD.
Adult and Health Services,Head of Adults,Third Party Payments,478151,Purchase of Care,01/08/2022,4030993-NTX-INV-0000000305,"1,540.00",THERA NORTH TRADING LTD.
Neighbourhoods and Climate Change,Technical Services CM0300,Third Party Payments,430127,Rendered by Private Contractors,01/08/2022,4030884-6539,"1,152.00",JR TIPLADY (AGRICULTURAL CONTRACTOR).
Regeneration Economy and Growth,Culture Sport and Tourism,Third Party Payments,430100,Rendered by Private Contractors,01/08/2022,4030819-INV06090,525.20,COMPETITION LINE UK LTD T/A LIFESTYLE FITNESS.
Neighbourhoods and Climate Change,Technical Services CM0300,Third Party Payments,430100,Rendered by Private Contractors,01/08/2022,4030876-26597,"3,489.26",JACK COUPE & SONS LTD T/A COUPE LINE.
Neighbourhoods and Climate Change,Technical Services CM0300,Third Party Payments,430100,Rendered by Private Contractors,01/08/2022,4030876-26598,"2,102.51",JACK COUPE & SONS LTD T/A COUPE LINE.
Neighbourhoods and Climate Change,Technical Services CM0300,Third Party Payments,430100,Rendered by Private Contractors,01/08/2022,4030876-26599,"1,057.38",JACK COUPE & SONS LTD T/A COUPE LINE.
Neighbourhoods and Climate Change,Technical Services CM0300,Third Party Payments,430100,Rendered by Private Contractors,01/08/2022,4030876-26600,"1,568.33",JACK COUPE & SONS LTD T/A COUPE LINE.
Neighbourhoods and Climate Change,Technical Services CM0300,Third Party Payments,430100,Rendered by Private Contractors,01/08/2022,4030876-26601,"1,979.36",JACK COUPE & SONS LTD T/A COUPE LINE.
Neighbourhoods and Climate Change,Technical Services CM0300,Third Party Payments,430100,Rendered by Private Contractors,01/08/2022,4030876-26614,922.29,JACK COUPE & SONS LTD T/A COUPE LINE.
Neighbourhoods and Climate Change,Technical Services CM0300,Third Party Payments,430100,Rendered by Private Contractors,01/08/2022,4030876-26616,"6,832.30",JACK COUPE & SONS LTD T/A COUPE LINE.
Neighbourhoods and Climate Change,Technical Services CM0300,Third Party Payments,430100,Rendered by Private Contractors,01/08/2022,4030876-26630,508.08,JACK COUPE & SONS LTD T/A COUPE LINE.
Neighbourhoods and Climate Change,Technical Services CM0300,Third Party Payments,430100,Rendered by Private Contractors,01/08/2022,4030876-26632,"1,651.95",JACK COUPE & SONS LTD T/A COUPE LINE.
Neighbourhoods and Climate Change,Technical Services CM0300,Third Party Payments,430100,Rendered by Private Contractors,01/08/2022,4030876-26634,"2,178.05",JACK COUPE & SONS LTD T/A COUPE LINE.
Neighbourhoods and Climate Change,Technical Services CM0300,Third Party Payments,430100,Rendered by Private Contractors,01/08/2022,4030876-26636,"2,688.81",JACK COUPE & SONS LTD T/A COUPE LINE.
Neighbourhoods and Climate Change,Technical Services CM0300,Third Party Payments,430100,Rendered by Private Contractors,01/08/2022,4030963-23787,"57,169.40",SEYMOUR (CIVIL ENGINEERING CONTRACTORS) LTD.
Neighbourhoods and Climate Change,Technical Services CM0300,Third Party Payments,430100,Rendered by Private Contractors,01/08/2022,4030996-TRNE032957,"6,542.00",TOTAL RESOURCES (UK) LTD.
Neighbourhoods and Climate Change,Technical Services CM0300,Third Party Payments,430100,Rendered by Private Contractors,01/08/2022,4030996-TRNE032958,781.50,TOTAL RESOURCES (UK) LTD.
Dedicated Schools Grant BG0015,DSG High Needs Block,Third Party Payments,425005,Rendered by Voluntary Organisations,01/08/2022,4030842-14687,"12,946.56",DURHAM SCHOOL.*
Dedicated Schools Grant BG0015,DSG High Needs Block,Third Party Payments,425005,Rendered by Voluntary Organisations,01/08/2022,4030842-15487,"12,946.56",DURHAM SCHOOL.*
Children and Young Peoples Services,Head of Childrens Social Care,Third Party Payments,425020,Rendered by Voluntary Organisations,01/08/2022,4030975-9042,"4,114.68",ST OSWALD`S HOSPICE LTD.
Children and Young Peoples Services,Head of Childrens Social Care,Third Party Payments,425020,Rendered by Voluntary Organisations,01/08/2022,4030975-9084,"4,800.46",ST OSWALD`S HOSPICE LTD.
Children and Young Peoples Services,Head of Childrens Social Care,Third Party Payments,425020,Rendered by Voluntary Organisations,01/08/2022,4030975-9163,"6,523.20",ST OSWALD`S HOSPICE LTD.
Children and Young Peoples Services,Head of Childrens Social Care,Third Party Payments,425020,Rendered by Voluntary Organisations,01/08/2022,4030975-9173,"6,523.20",ST OSWALD`S HOSPICE LTD.
Children and Young Peoples Services,Head of Childrens Social Care,Third Party Payments,425020,Rendered by Voluntary Organisations,01/08/2022,4030975-9222,"7,972.80",ST OSWALD`S HOSPICE LTD.
Neighbourhoods and Climate Change,Environmental Services,Transport,215005,Running Costs of Vehicles,01/08/2022,4031019-969211,"20,973.40",YOUR NRG LTD.
Resources BK0010,Legal & Democratic Services,Supplies and Services,338042,Services,01/08/2022,4030997-300328/INVGM473,665.00,TRINITY CHAMBERS.
Resources BK0010,Legal & Democratic Services,Supplies and Services,338042,Services,01/08/2022,4030997-300366/INVLS136,665.00,TRINITY CHAMBERS.
Children and Young Peoples Services,Head of Education and Skills,Supplies and Services,338027,Services,01/08/2022,4030893-200722-03,"1,237.68",KNETIC LTD.
Children and Young Peoples Services,Head of Education and Skills,Supplies and Services,338027,Services,01/08/2022,4030893-200722-05,859.50,KNETIC LTD.
Children and Young Peoples Services,Head of Education and Skills,Supplies and Services,338027,Services,01/08/2022,4030970-1202022,"2,887.08",SPARK TEES VALLEY.
Regeneration Economy and Growth,Culture Sport and Tourism,Supplies and Services,338047,Services,01/08/2022,4030841-INV506,"20,000.00",DURHAM SCENIC WORKSHOPS LTD.
Children and Young Peoples Services,Head of Childrens Social Care,Supplies and Services,338044,Services,01/08/2022,4030836-272223,540.00,REDACTED - PAYMENT TO INDIVIDUAL
Neighbourhoods and Climate Change,Environmental Services,Supplies and Services,338099,Services,01/08/2022,4030823-INV0127998,"8,736.00",CROMWELL POLYTHENE LTD.
Regeneration Economy and Growth,Business Durham CL0850,Supplies and Services,338099,Services,01/08/2022,4030961-22SATJUL1,"1,100.00",SECOND DRAFT LTD.
Neighbourhoods and Climate Change,Environmental Services,Supplies and Services,338066,Services,01/08/2022,4030916-RES-07-2022-374,518.50,REDACTED - PAYMENT TO INDIVIDUAL
Resources BK0010,HR & Employee Services,Supplies and Services,338043,Services,01/08/2022,4031011-838059,"1,225.00",WARD HADAWAY.
Resources BK0010,HR & Employee Services,Supplies and Services,338043,Services,01/08/2022,4031011-848976,507.50,WARD HADAWAY.
Children and Young Peoples Services,Head of Childrens Social Care,Supplies and Services,338043,Services,01/08/2022,4030910-41/22,"1,896.00",MARSTONE HARBOTTLE SOLICITORS.
Children and Young Peoples Services,Head of Childrens Social Care,Supplies and Services,338043,Services,01/08/2022,4030910-56/22,"2,068.50",MARSTONE HARBOTTLE SOLICITORS.
Children and Young Peoples Services,Head of Childrens Social Care,Supplies and Services,338043,Services,01/08/2022,4030910-75/22,861.00,MARSTONE HARBOTTLE SOLICITORS.
Neighbourhoods and Climate Change,Technical Services CM0300,Stock A926,926900,Stock in hand-Inventory system,01/08/2022,4030795-INV152733,979.40,AZTEC CHEMICALS LTD.
Resources BK0010,Digital Services,Stock A926,926900,Stock in hand-Inventory system,01/08/2022,4030827-7402834332,"2,341.20",DELL COMPUTER CORPORATION LTD.
Neighbourhoods and Climate Change,Technical Services CM0300,Stock A926,926900,Stock in hand-Inventory system,01/08/2022,4030994-NSIN00078687,819.29,THOMAS OWEN & SONS (NEWCASTLE) LTD.
Neighbourhoods and Climate Change,Technical Services CM0300,Stock A926,926900,Stock in hand-Inventory system,01/08/2022,4031019-966915,787.37,YOUR NRG LTD.
Regeneration Economy and Growth,Business Durham CL0850,Premises,135005,Water Services,01/08/2022,4031013-3159576100110763108,"1,276.03",WAVE (AWBN).
Regeneration Economy and Growth,Business Durham CL0850,Supplies and Services,336005,Advertising E336,02/08/2022,4031704-40578805,775.00,NEWSQUEST (YORKSHIRE & NORTH EAST) LTD.
Regeneration Economy and Growth,Culture Sport and Tourism,Supplies and Services,336005,Advertising E336,02/08/2022,4031695-3700,"1,575.00",REDACTED - PAYMENT TO INDIVIDUAL
Resources BK0010,Digital Services,Supplies and Services,342033,Computers and Communications,02/08/2022,4031686-12653982,"1,860.00",MAINTEL EUROPE LTD.
Resources BK0010,Digital Services,Supplies and Services,342033,Computers and Communications,02/08/2022,4031686-12653983,"1,860.00",MAINTEL EUROPE LTD.
Resources BK0010,Digital Services,Supplies and Services,342033,Computers and Communications,02/08/2022,4031808-R-69953,549.11,UPNORTH ENGINEERING SERVICES LTD.
Neighbourhoods and Climate Change,Technical Services CM0300,Construction work A908,908105,Construction work,02/08/2022,4031655-26639,775.37,JACK COUPE & SONS LTD T/A COUPE LINE.
Children and Young Peoples Services,Head of Education and Skills,Transport,230034,Contract Hire,02/08/2022,4031582-2093-JUL22,"1,090.00",CARR`S CARS (TAXIS).
Children and Young Peoples Services,Head of Education and Skills,Transport,230034,Contract Hire,02/08/2022,4031732-49736,"1,596.00",PHOENIX TAXIS T/A PRATT`S TAXIS.
Children and Young Peoples Services,Head of Education and Skills,Transport,230034,Contract Hire,02/08/2022,4031732-49740,"1,526.56",PHOENIX TAXIS T/A PRATT`S TAXIS.
Children and Young Peoples Services,Head of Education and Skills,Transport,230034,Contract Hire,02/08/2022,4031732-49741,"1,013.87",PHOENIX TAXIS T/A PRATT`S TAXIS.
Children and Young Peoples Services,Head of Education and Skills,Transport,230035,Contract Hire,02/08/2022,4031732-49737,"1,372.00",PHOENIX TAXIS T/A PRATT`S TAXIS.
Children and Young Peoples Services,Head of Education and Skills,Transport,230007,Contract Hire,02/08/2022,4031557-357,725.90,ALANS TAXIS BARNARD CASTLE.
Children and Young Peoples Services,Head of Education and Skills,Transport,230007,Contract Hire,02/08/2022,4031557-358,"1,088.85",ALANS TAXIS BARNARD CASTLE.
Children and Young Peoples Services,Head of Education and Skills,Transport,230007,Contract Hire,02/08/2022,4031557-359,"1,862.70",ALANS TAXIS BARNARD CASTLE.
Children and Young Peoples Services,Head of Education and Skills,Transport,230007,Contract Hire,02/08/2022,4031574-1283-JUL22,980.00,BIG MAMA`S TAXI.
Children and Young Peoples Services,Head of Education and Skills,Transport,230007,Contract Hire,02/08/2022,4031673-1073,"1,960.00",KINGSWAY CABS LTD.
Children and Young Peoples Services,Head of Education and Skills,Transport,230007,Contract Hire,02/08/2022,4031732-49738,596.96,PHOENIX TAXIS T/A PRATT`S TAXIS.
Children and Young Peoples Services,Head of Education and Skills,Transport,230007,Contract Hire,02/08/2022,4031732-49739,720.00,PHOENIX TAXIS T/A PRATT`S TAXIS.
Children and Young Peoples Services,Head of Education and Skills,Transport,230007,Contract Hire,02/08/2022,4031732-49742,884.00,PHOENIX TAXIS T/A PRATT`S TAXIS.
Children and Young Peoples Services,Head of Education and Skills,Transport,230007,Contract Hire,02/08/2022,4031547-0290,"1,456.00",REDACTED - PAYMENT TO INDIVIDUAL
Children and Young Peoples Services,Head of Education and Skills,Transport,230007,Contract Hire,02/08/2022,4031653-DCC113,"1,538.18",REDACTED - PAYMENT TO INDIVIDUAL
Children and Young Peoples Services,Head of Education and Skills,Transport,230007,Contract Hire,02/08/2022,4031653-DCC114,"2,590.35",REDACTED - PAYMENT TO INDIVIDUAL
Children and Young Peoples Services,Head of Education and Skills,Transport,230007,Contract Hire,02/08/2022,4031694-150722,590.00,REDACTED - PAYMENT TO INDIVIDUAL
Children and Young Peoples Services,Head of Education and Skills,Transport,230007,Contract Hire,02/08/2022,4031725-4507-JUL22,"2,100.00",REDACTED - PAYMENT TO INDIVIDUAL
Children and Young Peoples Services,Head of Education and Skills,Transport,230007,Contract Hire,02/08/2022,4031817-41-22,798.56,WALTONS TAXIS.
Children and Young Peoples Services,Head of Education and Skills,Transport,230009,Contract Hire,02/08/2022,4031690-KC3707,569.94,REDACTED - PAYMENT TO INDIVIDUAL
Children and Young Peoples Services,Head of Education and Skills,Transport,230006,Contract Hire,02/08/2022,4031573-1-E101-JUL22,"1,680.00",BH TRAVEL.
Children and Young Peoples Services,Head of Education and Skills,Transport,230006,Contract Hire,02/08/2022,4031793-00023681,793.35,REDACTED - PAYMENT TO INDIVIDUAL
Children and Young Peoples Services,Head of Education and Skills,Transport,230006,Contract Hire,02/08/2022,4031793-0002384,"2,864.00",REDACTED - PAYMENT TO INDIVIDUAL
Children and Young Peoples Services,Head of Education and Skills,Transport,230006,Contract Hire,02/08/2022,4031794-1-A105-JUL22,"2,113.65",TONYS TAXIS (J BIRCH).
Children and Young Peoples Services,Head of Education and Skills,Transport,230010,Contract Hire,02/08/2022,4031551-O566,"1,967.95",ABC & OUSTON CABS.
Children and Young Peoples Services,Head of Education and Skills,Transport,230010,Contract Hire,02/08/2022,4031551-O567,"1,638.33",ABC & OUSTON CABS.
Children and Young Peoples Services,Head of Education and Skills,Transport,230010,Contract Hire,02/08/2022,4031574-JUL22-BL035,"1,024.63",BIG MAMA`S TAXI.
Children and Young Peoples Services,Head of Education and Skills,Transport,230010,Contract Hire,02/08/2022,4031690-KC3708,"1,885.00",REDACTED - PAYMENT TO INDIVIDUAL
Children and Young Peoples Services,Head of Education and Skills,Transport,230016,Contract Hire,02/08/2022,4031738-ST12,"1,335.00",PRESTYS HACKNEY & PRIVATE HIRE TAXIS.
Children and Young Peoples Services,Head of Education and Skills,Transport,230008,Contract Hire,02/08/2022,4031551-O568,"2,209.81",ABC & OUSTON CABS.
Children and Young Peoples Services,Head of Education and Skills,Transport,230008,Contract Hire,02/08/2022,4031673-1103-A070,"3,381.62",KINGSWAY CABS LTD.
Children and Young Peoples Services,Head of Education and Skills,Transport,230008,Contract Hire,02/08/2022,4031673-1106-M054,"2,610.00",KINGSWAY CABS LTD.
Children and Young Peoples Services,Head of Education and Skills,Transport,230008,Contract Hire,02/08/2022,4031673-A184-JUN22,"1,768.60",KINGSWAY CABS LTD.
Children and Young Peoples Services,Head of Education and Skills,Transport,230008,Contract Hire,02/08/2022,4031732-49752,"1,824.00",PHOENIX TAXIS T/A PRATT`S TAXIS.
Children and Young Peoples Services,Head of Education and Skills,Transport,230008,Contract Hire,02/08/2022,4031732-49753,"1,620.00",PHOENIX TAXIS T/A PRATT`S TAXIS.
Children and Young Peoples Services,Head of Education and Skills,Transport,230008,Contract Hire,02/08/2022,4031732-49754,"1,449.70",PHOENIX TAXIS T/A PRATT`S TAXIS.
Children and Young Peoples Services,Head of Education and Skills,Transport,230008,Contract Hire,02/08/2022,4031744-SI-22054-E084,"1,827.80",RAPID MINIBUSES.
Children and Young Peoples Services,Head of Education and Skills,Transport,230008,Contract Hire,02/08/2022,4031613-B66,"2,025.00",REDACTED - PAYMENT TO INDIVIDUAL
Children and Young Peoples Services,Head of Education and Skills,Transport,230008,Contract Hire,02/08/2022,4031664-0042,"2,051.40",REDACTED - PAYMENT TO INDIVIDUAL
Children and Young Peoples Services,Head of Education and Skills,Transport,230008,Contract Hire,02/08/2022,4031670-A026-JUL22,"2,535.80",REDACTED - PAYMENT TO INDIVIDUAL
Children and Young Peoples Services,Head of Education and Skills,Transport,230008,Contract Hire,02/08/2022,4031670-S020-JUL22,"2,220.60",REDACTED - PAYMENT TO INDIVIDUAL
Children and Young Peoples Services,Head of Education and Skills,Transport,230008,Contract Hire,02/08/2022,4031670-S103-JUL22,"1,200.00",REDACTED - PAYMENT TO INDIVIDUAL
Children and Young Peoples Services,Head of Education and Skills,Transport,230008,Contract Hire,02/08/2022,4031690-KC3709,"1,973.72",REDACTED - PAYMENT TO INDIVIDUAL
Children and Young Peoples Services,Head of Education and Skills,Transport,230008,Contract Hire,02/08/2022,4031693-KDC-01072022,"1,372.57",REDACTED - PAYMENT TO INDIVIDUAL
Children and Young Peoples Services,Head of Education and Skills,Transport,230008,Contract Hire,02/08/2022,4031725-M014-JUL22,"2,235.00",REDACTED - PAYMENT TO INDIVIDUAL
Children and Young Peoples Services,Head of Education and Skills,Transport,230008,Contract Hire,02/08/2022,4031757-JUL22-A215,"1,314.00",REDACTED - PAYMENT TO INDIVIDUAL
Children and Young Peoples Services,Head of Education and Skills,Transport,230008,Contract Hire,02/08/2022,4031793-0002380,"3,650.40",REDACTED - PAYMENT TO INDIVIDUAL
Children and Young Peoples Services,Head of Education and Skills,Transport,230008,Contract Hire,02/08/2022,4031793-0002382,"1,472.10",REDACTED - PAYMENT TO INDIVIDUAL
Children and Young Peoples Services,Head of Education and Skills,Transport,230008,Contract Hire,02/08/2022,4031793-0002385,"3,825.00",REDACTED - PAYMENT TO INDIVIDUAL
Children and Young Peoples Services,Head of Education and Skills,Transport,230008,Contract Hire,02/08/2022,4031793-2383,"2,550.00",REDACTED - PAYMENT TO INDIVIDUAL
Children and Young Peoples Services,Head of Education and Skills,Transport,230008,Contract Hire,02/08/2022,4031753-1907,"2,393.85",RON`S TAXIS (FISHBURN).
Children and Young Peoples Services,Head of Education and Skills,Transport,230008,Contract Hire,02/08/2022,4031764-008-22,900.00,SHOEY`S TAXIS.
Children and Young Peoples Services,Head of Education and Skills,Transport,230008,Contract Hire,02/08/2022,4031794-7-E058,"1,806.00",TONYS TAXIS (J BIRCH).
Adult and Health Services,Head of Adults,Transport,230005,Contract Hire,02/08/2022,4031622-1374,"2,352.00",EAST DURHAM TAXIS.
Adult and Health Services,Head of Adults,Transport,230005,Contract Hire,02/08/2022,4031622-1375,"1,278.00",EAST DURHAM TAXIS.
Adult and Health Services,Head of Adults,Transport,230005,Contract Hire,02/08/2022,4031622-1376,"2,052.00",EAST DURHAM TAXIS.
Adult and Health Services,Head of Adults,Transport,230005,Contract Hire,02/08/2022,4031656-0900,840.00,JACKSON`S TAXI.
Adult and Health Services,Head of Adults,Transport,230005,Contract Hire,02/08/2022,4031656-0905,"2,782.50",JACKSON`S TAXI.
Adult and Health Services,Head of Adults,Transport,230005,Contract Hire,02/08/2022,4031656-0906,"1,869.00",JACKSON`S TAXI.
Adult and Health Services,Head of Adults,Transport,230005,Contract Hire,02/08/2022,4031732-49745,528.00,PHOENIX TAXIS T/A PRATT`S TAXIS.
Adult and Health Services,Head of Adults,Transport,230005,Contract Hire,02/08/2022,4031663-01072022-1,767.60,REDACTED - PAYMENT TO INDIVIDUAL
Adult and Health Services,Head of Adults,Transport,230005,Contract Hire,02/08/2022,4031663-01072022-2,964.52,REDACTED - PAYMENT TO INDIVIDUAL
Adult and Health Services,Head of Adults,Transport,230005,Contract Hire,02/08/2022,4031671-AF0007,574.73,REDACTED - PAYMENT TO INDIVIDUAL
Adult and Health Services,Head of Adults,Transport,230005,Contract Hire,02/08/2022,4031694-THOR29072022,"1,050.80",REDACTED - PAYMENT TO INDIVIDUAL
Adult and Health Services,Head of Adults,Transport,230005,Contract Hire,02/08/2022,4031793-0002379,"3,253.95",REDACTED - PAYMENT TO INDIVIDUAL
Adult and Health Services,Head of Adults,Transport,230005,Contract Hire,02/08/2022,4031753-1908,960.00,RON`S TAXIS (FISHBURN).
Adult and Health Services,Head of Adults,Transport,230005,Contract Hire,02/08/2022,4031794-2-SED121,"1,259.20",TONYS TAXIS (J BIRCH).
Adult and Health Services,Head of Adults,Transport,230005,Contract Hire,02/08/2022,4031794-3-CLS045,"1,244.88",TONYS TAXIS (J BIRCH).
Adult and Health Services,Head of Adults,Transport,230005,Contract Hire,02/08/2022,4031794-5-EAS001,598.00,TONYS TAXIS (J BIRCH).
Adult and Health Services,Head of Adults,Transport,230005,Contract Hire,02/08/2022,4031794-8-EAS196,"2,520.00",TONYS TAXIS (J BIRCH).
Neighbourhoods and Climate Change,Technical Services CM0300,Third Party Payments,460224,Contract Payments,02/08/2022,4031563-22325,"193,485.30",ARM PIPETEK LTD.
Adult and Health Services,Public Health CC0450,Third Party Payments,460803,Contract Payments,02/08/2022,4031634-7610019834,"5,245.50",GATESHEAD HEALTH NHS FOUNDATION TRUST.
Regeneration Economy and Growth,Culture Sport and Tourism,Premises,120009,Energy Costs,02/08/2022,4031626-00596/UK0042/SUNNYDALE,"1,780.66",ENGYNIOUS CLEAN POWER (UK) LTD.
Regeneration Economy and Growth,Culture Sport and Tourism,Supplies and Services,304083,Equipment and Materials,02/08/2022,4031809-IN00080503,535.79,VANGUARD DOWSON LTD.
Regeneration Economy and Growth,Culture Sport and Tourism,Supplies and Services,304337,Equipment and Materials,02/08/2022,4031687-4236073723,706.52,MARES SPA.
Regeneration Economy and Growth,Corporate Property and Land,Supplies and Services,304221,Equipment and Materials,02/08/2022,4031587-SI22UK01475,652.88,CIBES LIFT UK LTD.
Neighbourhoods and Climate Change,Environmental Services,Supplies and Services,304221,Equipment and Materials,02/08/2022,4031630-SI219115,"2,147.60",FLEET (LINE MARKERS) LTD.
Neighbourhoods and Climate Change,Technical Services CM0300,Supplies and Services,304221,Equipment and Materials,02/08/2022,4031638-000158,900.00,GRAEME HOPPER LTD.
Neighbourhoods and Climate Change,Environmental Services,Supplies and Services,304221,Equipment and Materials,02/08/2022,4031643-SI-7687,"1,214.60",HARELAW SAWMILL LTD.
Neighbourhoods and Climate Change,Environmental Services,Supplies and Services,304221,Equipment and Materials,02/08/2022,4031643-SI-7689,735.60,HARELAW SAWMILL LTD.
Regeneration Economy and Growth,Corporate Property and Land,Supplies and Services,304221,Equipment and Materials,02/08/2022,4031667-0113/00707741,630.00,JT DOVE LTD.
Regeneration Economy and Growth,Corporate Property and Land,Supplies and Services,304221,Equipment and Materials,02/08/2022,4031667-0213/00707743,"1,190.86",JT DOVE LTD.
Regeneration Economy and Growth,Corporate Property and Land,Supplies and Services,304221,Equipment and Materials,02/08/2022,4031784-840931,526.86,T CROSSLING & CO LTD.
Regeneration Economy and Growth,Corporate Property and Land,Supplies and Services,304221,Equipment and Materials,02/08/2022,4031784-841062,587.30,T CROSSLING & CO LTD.
Neighbourhoods and Climate Change,Technical Services CM0300,Supplies and Services,304221,Equipment and Materials,02/08/2022,4031658-00231049,940.80,REDACTED - PAYMENT TO INDIVIDUAL
Regeneration Economy and Growth,Culture Sport and Tourism,Supplies and Services,304259,Equipment and Materials,02/08/2022,4031588-INV/2022/1542,"1,445.50",CINEMANEXT UK T/A TECHNICAL LAMP SUPPLIES UK LTD (TLS).
Children and Young Peoples Services,Head of Early Help Inclusion & Vulnerable Children.,Supplies and Services,304259,Equipment and Materials,02/08/2022,4031623-6604041,568.00,EASTERN SHIRES PURCHASING ORGANISATION.
Regeneration Economy and Growth,Culture Sport and Tourism,Supplies and Services,304259,Equipment and Materials,02/08/2022,4031665-144507,"3,471.41",JP LENNARD LTD.
Regeneration Economy and Growth,Culture Sport and Tourism,Supplies and Services,304259,Equipment and Materials,02/08/2022,4031758-16144,750.00,SAFE SECURE LOCKER SERVICES LTD.
Regeneration Economy and Growth,Transport and Contracted Services,Supplies and Services,304245,Equipment and Materials,02/08/2022,4031579-62214,990.00,BUDDI.
Regeneration Economy and Growth,Transport and Contracted Services,Supplies and Services,304245,Equipment and Materials,02/08/2022,4031801-3IN/10393132,"6,688.80",TUNSTALL HEALTHCARE (UK) LTD.
Neighbourhoods and Climate Change,Community Protection,Supplies and Services,304999,Equipment and Materials,02/08/2022,4031802-78279,532.00,TURNKEY INSTRUMENTS LTD.
Children and Young Peoples Services,Head of Early Help Inclusion & Vulnerable Children.,Supplies and Services,308011,Furniture,02/08/2022,4031558-175433,"1,610.00",ALBANY OFFICE EQUIPMENT (WHOLESALE) LTD.
Children and Young Peoples Services,Head of Early Help Inclusion & Vulnerable Children.,Supplies and Services,308011,Furniture,02/08/2022,4031558-175442,"1,329.00",ALBANY OFFICE EQUIPMENT (WHOLESALE) LTD.
Children and Young Peoples Services,Head of Early Help Inclusion & Vulnerable Children.,Supplies and Services,308011,Furniture,02/08/2022,4031558-175458,544.00,ALBANY OFFICE EQUIPMENT (WHOLESALE) LTD.
Children and Young Peoples Services,Head of Childrens Social Care,Supplies and Services,364359,Grants to Voluntary Organisations,02/08/2022,4031590-1264,623.72,CLEVER CLOGS DAY NURSERY (DURHAM) LTD.
Dedicated Schools Grant BG0015,DSG High Needs Block,Supplies and Services,384302,Miscellaneous Expenses,02/08/2022,4031624-CPDC2022-23/1,"22,500.00",EDUCATION PLUS NE LTD.
Dedicated Schools Grant BG0015,DSG High Needs Block,Supplies and Services,384302,Miscellaneous Expenses,02/08/2022,4031624-NPDC2022-23/1,"40,500.00",EDUCATION PLUS NE LTD.
Children and Young Peoples Services,Head of Early Help Inclusion & Vulnerable Children.,Supplies and Services,384302,Miscellaneous Expenses,02/08/2022,4031632-534,"1,083.33",FUN SHACK.
Children and Young Peoples Services,Head of Early Help Inclusion & Vulnerable Children.,Supplies and Services,384302,Miscellaneous Expenses,02/08/2022,4031831-ZOO200167943,799.00,ZOOLAB LTD.
Children and Young Peoples Services,Head of Early Help Inclusion & Vulnerable Children.,Supplies and Services,384302,Miscellaneous Expenses,02/08/2022,4031803-2454,594.85,TWEDDLE CHILDREN`S ANIMAL FARM LTD.
Children and Young Peoples Services,Head of Childrens Social Care,Supplies and Services,384500,Miscellaneous Expenses,02/08/2022,4031706-3353A,900.00,NORTH EAST ADOPTION THERAPY SERVICES LTD (NEATS).
Children and Young Peoples Services,Head of Childrens Social Care,Supplies and Services,384500,Miscellaneous Expenses,02/08/2022,4031706-3373A,720.00,NORTH EAST ADOPTION THERAPY SERVICES LTD (NEATS).
Resources BK0010,Legal & Democratic Services,Supplies and Services,384059,Miscellaneous Expenses,02/08/2022,4031705-SI-242,"3,432.00",NORMA LOWTHER CATERING LTD T/A SEVENTEEN BISTRO.
Adult and Health Services,Head of Adults,Supplies and Services,384956,Miscellaneous Expenses,02/08/2022,4031686-12653861,"2,600.00",MAINTEL EUROPE LTD.
Regeneration Economy and Growth,Culture Sport and Tourism,Supplies and Services,384999,Miscellaneous Expenses,02/08/2022,4031603-SI-4264,"1,666.00",COUNTY DURHAM SPORT.
Regeneration Economy and Growth,Culture Sport and Tourism,Supplies and Services,384199,Miscellaneous Expenses,02/08/2022,4031575-INV001637,"2,242.79",BLACK HORSE BEAMISH LTD.
Regeneration Economy and Growth,Culture Sport and Tourism,Supplies and Services,384199,Miscellaneous Expenses,02/08/2022,4031683-937,"2,700.00",LUNA CREATIVE LTD.
Regeneration Economy and Growth,Culture Sport and Tourism,Supplies and Services,384199,Miscellaneous Expenses,02/08/2022,4031712-00021311,"1,719.72",NSL LTD.
Regeneration Economy and Growth,Culture Sport and Tourism,Supplies and Services,384199,Miscellaneous Expenses,02/08/2022,4031717-222351,"2,800.00",OOMPAH BRASS.
Children and Young Peoples Services,Head of Education and Skills,Supplies and Services,312011,Newspapers books and periodicals E312,02/08/2022,4031728-1922173,532.29,PETERS LTD.
Children and Young Peoples Services,Head of Education and Skills,Third Party Payments,440999,Other third party payments E440,02/08/2022,4031709-635,774.08,NORTHERN RIGHTS COMMUNITY INTEREST COMPANY (CIC)..
Adult and Health Services,Head of Adults,Third Party Payments,478151,Purchase of Care,02/08/2022,4031599-421R190018,"13,498.56",COMMUNITY INTEGRATED CARE LTD.
Adult and Health Services,Head of Adults,Third Party Payments,478151,Purchase of Care,02/08/2022,4031599-421R190051,703.62,COMMUNITY INTEGRATED CARE LTD.
Adult and Health Services,Head of Adults,Third Party Payments,478151,Purchase of Care,02/08/2022,4031600-421R190017,"8,049.60",COMMUNITY INTEGRATED CARE LTD.
Adult and Health Services,Head of Adults,Third Party Payments,478151,Purchase of Care,02/08/2022,4031600-421R190049,"9,907.20",COMMUNITY INTEGRATED CARE LTD.
Adult and Health Services,Head of Adults,Third Party Payments,478151,Purchase of Care,02/08/2022,4031614-INV-1204,"2,686.58",DEACONSTAR LTD.
Adult and Health Services,Head of Adults,Third Party Payments,478151,Purchase of Care,02/08/2022,4031734-3483,"21,414.80",POSITIVE INDIVIDUAL PROACTIVE SUPPORT LTD.
Dedicated Schools Grant BG0015,DSG High Needs Block,Third Party Payments,410037,Rendered by Other Local Authorities,02/08/2022,4031713-INV-5020,844.25,NUDGE EDUCATION LTD.
Regeneration Economy and Growth,Culture Sport and Tourism,Third Party Payments,430131,Rendered by Private Contractors,02/08/2022,4031708-4535,510.00,NORTH EAST DANCE CIC.
Regeneration Economy and Growth,Culture Sport and Tourism,Third Party Payments,430131,Rendered by Private Contractors,02/08/2022,4031692-2022027,939.00,REDACTED - PAYMENT TO INDIVIDUAL
Regeneration Economy and Growth,Culture Sport and Tourism,Third Party Payments,430131,Rendered by Private Contractors,02/08/2022,4031787-TT/20220706,680.00,TERESA CARTER T/A T TRAINING.
Neighbourhoods and Climate Change,Environmental Services,Third Party Payments,430116,Rendered by Private Contractors,02/08/2022,4031641-2207\003,500.00,HALL CONSTRUCTION SERVICES LTD.
Neighbourhoods and Climate Change,Environmental Services,Third Party Payments,430100,Rendered by Private Contractors,02/08/2022,4031556-43R/22/92665,"1,385.00",ALAN M RANSON FUNERAL SERVICE.
Regeneration Economy and Growth,Corporate Property and Land,Third Party Payments,430100,Rendered by Private Contractors,02/08/2022,4031616-NE21291,860.00,DELTA WIRING SOLUTIONS LTD.
Neighbourhoods and Climate Change,Technical Services CM0300,Third Party Payments,430100,Rendered by Private Contractors,02/08/2022,4031646-3411,"4,776.00",HIGHWAY CONSTRUCTION SERVICES LTD.
Neighbourhoods and Climate Change,Technical Services CM0300,Third Party Payments,430100,Rendered by Private Contractors,02/08/2022,4031646-3412,"3,184.00",HIGHWAY CONSTRUCTION SERVICES LTD.
Neighbourhoods and Climate Change,Technical Services CM0300,Third Party Payments,430100,Rendered by Private Contractors,02/08/2022,4031655-26615,"4,511.23",JACK COUPE & SONS LTD T/A COUPE LINE.
Regeneration Economy and Growth,Corporate Property and Land,Third Party Payments,430100,Rendered by Private Contractors,02/08/2022,4031697-DCC241,"1,500.00",REDACTED - PAYMENT TO INDIVIDUAL
Regeneration Economy and Growth,Corporate Property and Land,Third Party Payments,430100,Rendered by Private Contractors,02/08/2022,4031697-DCC242,"1,200.00",REDACTED - PAYMENT TO INDIVIDUAL
Regeneration Economy and Growth,Corporate Property and Land,Third Party Payments,430100,Rendered by Private Contractors,02/08/2022,4031697-DCC243,"1,500.00",REDACTED - PAYMENT TO INDIVIDUAL
Regeneration Economy and Growth,Corporate Property and Land,Third Party Payments,430100,Rendered by Private Contractors,02/08/2022,4031697-DCC244,"1,500.00",REDACTED - PAYMENT TO INDIVIDUAL
Neighbourhoods and Climate Change,Technical Services CM0300,Third Party Payments,430100,Rendered by Private Contractors,02/08/2022,4031796-TRNE032427,"23,630.40",TOTAL RESOURCES (UK) LTD.
Children and Young Peoples Services,Head of Childrens Social Care,Third Party Payments,486020,Service level agreements E486,02/08/2022,4031677-840,"5,255.60",LEADER EDUCATION LTD.
Children and Young Peoples Services,Head of Early Help Inclusion & Vulnerable Children.,Premises,108251,Service Repairs and Maintenance,02/08/2022,4031561-333363,820.00,APEX RADIO SYSTEMS LTD.
Regeneration Economy and Growth,Business Durham CL0850,Premises,108125,Service Repairs and Maintenance,02/08/2022,4031783-INV-0374,800.00,SWINBURNE HORTICULTURAL SERVICES LTD.
Adult and Health Services,Head of Adults,Supplies and Services,338042,Services,02/08/2022,4031546-INV/SBR10,"2,837.50",39 ESSEX CHAMBERS.
Adult and Health Services,Head of Adults,Supplies and Services,338042,Services,02/08/2022,4031546-INV/VBC35,"2,362.50",39 ESSEX CHAMBERS.
Resources BK0010,Legal & Democratic Services,Supplies and Services,338042,Services,02/08/2022,4031543-166616,700.00,REDACTED - PAYMENT TO INDIVIDUAL
Neighbourhoods and Climate Change,Community Protection,Supplies and Services,338027,Services,02/08/2022,4031555-28499974,"2,570.00",AECOM LTD.
Children and Young Peoples Services,Head of Education and Skills,Supplies and Services,338027,Services,02/08/2022,4031699-0034,825.00,REDACTED - PAYMENT TO INDIVIDUAL
Neighbourhoods and Climate Change,Environmental Services,Supplies and Services,338027,Services,02/08/2022,4031771-0000970160,"1,239.64",SOCOTEC UK LTD.
Resources BK0010,Legal & Democratic Services,Supplies and Services,338025,Services,02/08/2022,4031593-S44954-01754,"1,880.00",CO-OPERATIVE FUNERAL CARE.
Resources BK0010,Legal & Democratic Services,Supplies and Services,338025,Services,02/08/2022,4031637-F2645,510.00,GORDON FLETCHER & SONS LTD.
Regeneration Economy and Growth,Culture Sport and Tourism,Supplies and Services,338047,Services,02/08/2022,4031625-240722-03,"1,000.00",REDACTED - PAYMENT TO INDIVIDUAL
Children and Young Peoples Services,Head of Childrens Social Care,Supplies and Services,338044,Services,02/08/2022,4031583-TI038416,"1,741.50",CARTER BROWN THE EXPERT SERVICE LTD.*
Children and Young Peoples Services,Head of Childrens Social Care,Supplies and Services,338044,Services,02/08/2022,4031631-88635,630.23,FORENSIC TESTING SERVICE LTD.
Children and Young Peoples Services,Head of Childrens Social Care,Supplies and Services,338044,Services,02/08/2022,4031742-22029/13,936.00,PSYCHREP UK LTD.
Resources BK0010,Legal & Democratic Services,Supplies and Services,338099,Services,02/08/2022,4031711-915263696,749.20,NORTHUMBRIAN WATER LTD.
Adult and Health Services,Central/Other,Supplies and Services,338066,Services,02/08/2022,4031564-7318,"4,673.00",ASSOCIATION OF DIRECTORS OF SOCIAL SERVICES (ADASS).
Adult and Health Services,Adults Excluded,Supplies and Services,338066,Services,02/08/2022,4031780-SI-157,800.00,SUNDERLAND PEOPLE FIRST.
Regeneration Economy and Growth,Corporate Property and Land,Supplies and Services,338066,Services,02/08/2022,4031819-NT65955,625.00,WARDELL ARMSTRONG LLP.
Adult and Health Services,Head of Adults,Supplies and Services,338429,Services,02/08/2022,4031597-JOB001/20712,625.00,COLIN JOBLING T/A RAINBOW INTERNATIONAL.
Children and Young Peoples Services,Head of Childrens Social Care,Supplies and Services,338043,Services,02/08/2022,4031691-10/22,767.10,MARSTONE HARBOTTLE SOLICITORS.
Neighbourhoods and Climate Change,Community Protection,Supplies and Services,338094,Services,02/08/2022,4031789-2351,694.35,THE WITHAM HALL LTD.
Neighbourhoods and Climate Change,Technical Services CM0300,Stock A926,926900,Stock in hand-Inventory system,02/08/2022,4031544-282029,"1,475.00",1ST COVERALL COMPANY LTD.
Neighbourhoods and Climate Change,Technical Services CM0300,Stock A926,926900,Stock in hand-Inventory system,02/08/2022,4031643-SI-7675,"1,140.00",HARELAW SAWMILL LTD.
Neighbourhoods and Climate Change,Technical Services CM0300,Stock A926,926900,Stock in hand-Inventory system,02/08/2022,4031643-SI-7678,984.00,HARELAW SAWMILL LTD.
Neighbourhoods and Climate Change,Technical Services CM0300,Stock A926,926900,Stock in hand-Inventory system,02/08/2022,4031643-SI-7680,"1,476.00",HARELAW SAWMILL LTD.
Neighbourhoods and Climate Change,Technical Services CM0300,Stock A926,926900,Stock in hand-Inventory system,02/08/2022,4031667-0113/00707742,774.48,JT DOVE LTD.
Neighbourhoods and Climate Change,Technical Services CM0300,Stock A926,926900,Stock in hand-Inventory system,02/08/2022,4031710-841010,518.00,NORTHERN TOOLS & ACCESSORIES.
Neighbourhoods and Climate Change,Technical Services CM0300,Stock A926,926900,Stock in hand-Inventory system,02/08/2022,4031722-XL288874,912.00,PARK ELECTRICAL DISTRIBUTORS LTD.
Neighbourhoods and Climate Change,Technical Services CM0300,Stock A926,926900,Stock in hand-Inventory system,02/08/2022,4031722-XL288890,664.45,PARK ELECTRICAL DISTRIBUTORS LTD.
Neighbourhoods and Climate Change,Technical Services CM0300,Stock A926,926900,Stock in hand-Inventory system,02/08/2022,4031722-XL288898,964.80,PARK ELECTRICAL DISTRIBUTORS LTD.
Neighbourhoods and Climate Change,Technical Services CM0300,Stock A926,926900,Stock in hand-Inventory system,02/08/2022,4031784-841795,"2,060.10",T CROSSLING & CO LTD.
Neighbourhoods and Climate Change,Technical Services CM0300,Stock A926,926900,Stock in hand-Inventory system,02/08/2022,4031791-NSIN00078941,876.85,THOMAS OWEN & SONS (NEWCASTLE) LTD.
Resources BK0010,Digital Services,Stock A926,926900,Stock in hand-Inventory system,02/08/2022,4031826-LC11811,"7,013.40",XMA LTD.
Neighbourhoods and Climate Change,Technical Services CM0300,Stock A926,926900,Stock in hand-Inventory system,02/08/2022,4031795-111352,"3,510.00",TOTAL RENTAL SOLUTIONS LTD.
Neighbourhoods and Climate Change,Technical Services CM0300,Stock A926,926900,Stock in hand-Inventory system,02/08/2022,4031795-111359,"2,362.40",TOTAL RENTAL SOLUTIONS LTD.
Neighbourhoods and Climate Change,Environmental Services,Supplies and Services,372009,Subscriptions E372,02/08/2022,4031598-CEE-SV/13354,500.00,COMMUNITY ENERGY ASSOCIATION (ENGLAND) LTD.
Regeneration Economy and Growth,Culture Sport and Tourism,Supplies and Services,372009,Subscriptions E372,02/08/2022,4031736-SIN2125487,"2,509.74",PPL PRS LTD.
Regeneration Economy and Growth,REG - Central Costs,Supplies and Services,336005,Advertising E336,03/08/2022,4033256-40046534,"1,050.00",NEWSQUEST (YORKSHIRE & NORTH EAST) LTD.
Regeneration Economy and Growth,Communications Management,Supplies and Services,336005,Advertising E336,03/08/2022,4033256-40576906,700.00,NEWSQUEST (YORKSHIRE & NORTH EAST) LTD.
Adult and Health Services,Commissioning inc Supporting People,Supplies and Services,352001,Conference Expenses,03/08/2022,4033265-8110024473,750.00,NORTH EAST AMBULANCE SERVICE NHS FOUNDATION TRUST.
Regeneration Economy and Growth,Planning & Housing,Supplies and Services,352001,Conference Expenses,03/08/2022,4033314-1992,"1,575.00",SAFFER COOPER LTD.
Children and Young Peoples Services,Head of Early Help Inclusion & Vulnerable Children.,Supplies and Services,352001,Conference Expenses,03/08/2022,4033350-INV-2940,598.00,THE WORK PLACE (AYCLIFFE) LTD.
Children and Young Peoples Services,Head of Education and Skills,Construction work A908,908105,Construction work,03/08/2022,4033116-22030148,"8,271.87",ATKINS GLOBAL.
Children and Young Peoples Services,Head of Education and Skills,Construction work A908,908105,Construction work,03/08/2022,4033308-TEC603615,"2,083.00",RPS CONSULTING SERVICES LTD.
Children and Young Peoples Services,Head of Education and Skills,Construction work A908,908105,Construction work,03/08/2022,4033312-6957,950.00,SAFE STRIP UK LTD.
Regeneration Economy and Growth,Culture Sport and Tourism,Fees,901002,Professional fees,03/08/2022,4033116-22029722,"11,294.64",ATKINS GLOBAL.
Children and Young Peoples Services,Head of Education and Skills,Fees,901002,Professional fees,03/08/2022,4033308-TEC603359,"5,750.00",RPS CONSULTING SERVICES LTD.
Children and Young Peoples Services,Head of Education and Skills,Fees,901002,Professional fees,03/08/2022,4033308-TEC603365,"5,000.00",RPS CONSULTING SERVICES LTD.
Children and Young Peoples Services,Head of Education and Skills,Transport,230034,Contract Hire,03/08/2022,4033220-1100,"4,012.42",KINGSWAY CABS LTD.
Children and Young Peoples Services,Head of Education and Skills,Transport,230034,Contract Hire,03/08/2022,4033135-BIL0280,"1,881.60",REDACTED - PAYMENT TO INDIVIDUAL
Children and Young Peoples Services,Head of Education and Skills,Transport,230034,Contract Hire,03/08/2022,4033241-254,"1,509.24",REDACTED - PAYMENT TO INDIVIDUAL
Children and Young Peoples Services,Head of Education and Skills,Transport,230034,Contract Hire,03/08/2022,4033337-0009,"1,800.00",STARGATE TAXIS.
Children and Young Peoples Services,Head of Education and Skills,Transport,230007,Contract Hire,03/08/2022,4033101-360,"1,437.24",ALANS TAXIS BARNARD CASTLE.
Children and Young Peoples Services,Head of Education and Skills,Transport,230007,Contract Hire,03/08/2022,4033175-103008,"1,114.68",G & P JOHNSON LTD T/A NIGHTINGALE COACHES.
Children and Young Peoples Services,Head of Education and Skills,Transport,230007,Contract Hire,03/08/2022,4033251-DCC/004/22-1313,"1,306.63",REDACTED - PAYMENT TO INDIVIDUAL
Children and Young Peoples Services,Head of Education and Skills,Transport,230007,Contract Hire,03/08/2022,4033339-99,"1,018.82",REDACTED - PAYMENT TO INDIVIDUAL
Children and Young Peoples Services,Head of Education and Skills,Transport,230009,Contract Hire,03/08/2022,4033246-0057,"1,895.00",REDACTED - PAYMENT TO INDIVIDUAL
Children and Young Peoples Services,Head of Education and Skills,Transport,230006,Contract Hire,03/08/2022,4033208-2426,"2,508.00",JDS PRIVATE HIRE DURHAM.
Children and Young Peoples Services,Head of Education and Skills,Transport,230012,Contract Hire,03/08/2022,4033208-2429,"1,031.94",JDS PRIVATE HIRE DURHAM.
Children and Young Peoples Services,Head of Education and Skills,Transport,230012,Contract Hire,03/08/2022,4033208-2435,"1,470.00",JDS PRIVATE HIRE DURHAM.
Children and Young Peoples Services,Head of Education and Skills,Transport,230012,Contract Hire,03/08/2022,4033208-2437,"1,680.00",JDS PRIVATE HIRE DURHAM.
Children and Young Peoples Services,Head of Education and Skills,Transport,230016,Contract Hire,03/08/2022,4033123-SMITH2/JULY22,642.00,BEELINE PRIVATE HIRE.
Children and Young Peoples Services,Head of Education and Skills,Transport,230016,Contract Hire,03/08/2022,4033175-103027,960.00,G & P JOHNSON LTD T/A NIGHTINGALE COACHES.
Children and Young Peoples Services,Head of Education and Skills,Transport,230008,Contract Hire,03/08/2022,4033122-1007,"1,596.45",BEELINE MINI BUSES.
Children and Young Peoples Services,Head of Education and Skills,Transport,230008,Contract Hire,03/08/2022,4033122-1008,"1,511.25",BEELINE MINI BUSES.
Children and Young Peoples Services,Head of Education and Skills,Transport,230008,Contract Hire,03/08/2022,4033122-1009,"1,001.28",BEELINE MINI BUSES.
Children and Young Peoples Services,Head of Education and Skills,Transport,230008,Contract Hire,03/08/2022,4033123-SMITH1JULY22,"1,857.62",BEELINE PRIVATE HIRE.
Children and Young Peoples Services,Head of Education and Skills,Transport,230008,Contract Hire,03/08/2022,4033127-05908,"2,032.44",BIRDS TAXIS LTD.
Children and Young Peoples Services,Head of Education and Skills,Transport,230008,Contract Hire,03/08/2022,4033127-0597,"1,449.45",BIRDS TAXIS LTD.
Children and Young Peoples Services,Head of Education and Skills,Transport,230008,Contract Hire,03/08/2022,4033175-102999,"3,306.60",G & P JOHNSON LTD T/A NIGHTINGALE COACHES.
Children and Young Peoples Services,Head of Education and Skills,Transport,230008,Contract Hire,03/08/2022,4033175-103009,"2,071.05",G & P JOHNSON LTD T/A NIGHTINGALE COACHES.
Children and Young Peoples Services,Head of Education and Skills,Transport,230008,Contract Hire,03/08/2022,4033175-103017,"1,170.00",G & P JOHNSON LTD T/A NIGHTINGALE COACHES.
Children and Young Peoples Services,Head of Education and Skills,Transport,230008,Contract Hire,03/08/2022,4033175-103018,"1,365.00",G & P JOHNSON LTD T/A NIGHTINGALE COACHES.
Children and Young Peoples Services,Head of Education and Skills,Transport,230008,Contract Hire,03/08/2022,4033175-103019,"1,125.00",G & P JOHNSON LTD T/A NIGHTINGALE COACHES.
Children and Young Peoples Services,Head of Education and Skills,Transport,230008,Contract Hire,03/08/2022,4033175-103020,"1,254.00",G & P JOHNSON LTD T/A NIGHTINGALE COACHES.
Children and Young Peoples Services,Head of Education and Skills,Transport,230008,Contract Hire,03/08/2022,4033175-103021,"1,429.95",G & P JOHNSON LTD T/A NIGHTINGALE COACHES.
Children and Young Peoples Services,Head of Education and Skills,Transport,230008,Contract Hire,03/08/2022,4033175-103022,810.00,G & P JOHNSON LTD T/A NIGHTINGALE COACHES.
Children and Young Peoples Services,Head of Education and Skills,Transport,230008,Contract Hire,03/08/2022,4033175-103024,"1,185.00",G & P JOHNSON LTD T/A NIGHTINGALE COACHES.
Children and Young Peoples Services,Head of Education and Skills,Transport,230008,Contract Hire,03/08/2022,4033208-2425,"1,830.00",JDS PRIVATE HIRE DURHAM.
Children and Young Peoples Services,Head of Education and Skills,Transport,230008,Contract Hire,03/08/2022,4033208-2427,"2,250.00",JDS PRIVATE HIRE DURHAM.
Children and Young Peoples Services,Head of Education and Skills,Transport,230008,Contract Hire,03/08/2022,4033208-2430,"1,590.00",JDS PRIVATE HIRE DURHAM.
Children and Young Peoples Services,Head of Education and Skills,Transport,230008,Contract Hire,03/08/2022,4033208-2431,"1,593.60",JDS PRIVATE HIRE DURHAM.
Children and Young Peoples Services,Head of Education and Skills,Transport,230008,Contract Hire,03/08/2022,4033208-2432,"1,590.00",JDS PRIVATE HIRE DURHAM.
Children and Young Peoples Services,Head of Education and Skills,Transport,230008,Contract Hire,03/08/2022,4033208-2433,"1,254.45",JDS PRIVATE HIRE DURHAM.
Children and Young Peoples Services,Head of Education and Skills,Transport,230008,Contract Hire,03/08/2022,4033208-2434,"1,225.80",JDS PRIVATE HIRE DURHAM.
Children and Young Peoples Services,Head of Education and Skills,Transport,230008,Contract Hire,03/08/2022,4033208-2436,"1,402.56",JDS PRIVATE HIRE DURHAM.
Children and Young Peoples Services,Head of Education and Skills,Transport,230008,Contract Hire,03/08/2022,4033208-2438,"1,057.80",JDS PRIVATE HIRE DURHAM.
Children and Young Peoples Services,Head of Education and Skills,Transport,230008,Contract Hire,03/08/2022,4033208-2439,"2,472.54",JDS PRIVATE HIRE DURHAM.
Children and Young Peoples Services,Head of Education and Skills,Transport,230008,Contract Hire,03/08/2022,4033208-2441,"3,143.28",JDS PRIVATE HIRE DURHAM.
Children and Young Peoples Services,Head of Education and Skills,Transport,230008,Contract Hire,03/08/2022,4033208-2442,"1,935.00",JDS PRIVATE HIRE DURHAM.
Children and Young Peoples Services,Head of Education and Skills,Transport,230008,Contract Hire,03/08/2022,4033208-2443,"1,379.70",JDS PRIVATE HIRE DURHAM.
Children and Young Peoples Services,Head of Education and Skills,Transport,230008,Contract Hire,03/08/2022,4033213-116-A021,"1,600.00",REDACTED - PAYMENT TO INDIVIDUAL
Children and Young Peoples Services,Head of Education and Skills,Transport,230008,Contract Hire,03/08/2022,4033213-123,"3,680.00",REDACTED - PAYMENT TO INDIVIDUAL
Children and Young Peoples Services,Head of Education and Skills,Transport,230008,Contract Hire,03/08/2022,4033244-N037D,"2,097.20",REDACTED - PAYMENT TO INDIVIDUAL
Children and Young Peoples Services,Head of Education and Skills,Transport,230008,Contract Hire,03/08/2022,4033246-0053,"2,231.93",REDACTED - PAYMENT TO INDIVIDUAL
Children and Young Peoples Services,Head of Education and Skills,Transport,230008,Contract Hire,03/08/2022,4033297-038,"2,232.00",REDACTED - PAYMENT TO INDIVIDUAL
Children and Young Peoples Services,Head of Education and Skills,Transport,230008,Contract Hire,03/08/2022,4033310-S009/36,"2,155.95",S & S TRAVEL LTD.
Children and Young Peoples Services,Head of Education and Skills,Transport,230008,Contract Hire,03/08/2022,4033310-S017/64,"2,270.52",S & S TRAVEL LTD.
Children and Young Peoples Services,Head of Education and Skills,Transport,230008,Contract Hire,03/08/2022,4033310-W014/34,"2,130.90",S & S TRAVEL LTD.
Children and Young Peoples Services,Head of Education and Skills,Transport,230008,Contract Hire,03/08/2022,4033310-W032/36,"2,361.00",S & S TRAVEL LTD.
Children and Young Peoples Services,Head of Education and Skills,Transport,230008,Contract Hire,03/08/2022,4033310-W036/11,"2,346.00",S & S TRAVEL LTD.
Children and Young Peoples Services,Head of Education and Skills,Transport,230008,Contract Hire,03/08/2022,4033310-W056/35-JUL22,"1,711.05",S & S TRAVEL LTD.
Children and Young Peoples Services,Head of Education and Skills,Transport,230008,Contract Hire,03/08/2022,4033310-W067/35,"2,398.65",S & S TRAVEL LTD.
Children and Young Peoples Services,Head of Education and Skills,Transport,230008,Contract Hire,03/08/2022,4033310-W076/35,"1,950.60",S & S TRAVEL LTD.
Children and Young Peoples Services,Head of Education and Skills,Transport,230008,Contract Hire,03/08/2022,4033310-W178/17,"1,215.00",S & S TRAVEL LTD.
Children and Young Peoples Services,Head of Education and Skills,Transport,230031,Contract Hire,03/08/2022,4033190-21285,"6,175.00",HODGSONS COACH OPERATORS LTD.
Children and Young Peoples Services,Head of Education and Skills,Transport,230031,Contract Hire,03/08/2022,4033190-21286,"3,900.00",HODGSONS COACH OPERATORS LTD.
Children and Young Peoples Services,Head of Education and Skills,Transport,230031,Contract Hire,03/08/2022,4033212-31407,"1,003.00",JIM HUGHES COACHES LTD.
Children and Young Peoples Services,Head of Education and Skills,Transport,230031,Contract Hire,03/08/2022,4033343-8023-JUL22,830.00,TED WILFORD COACHES.
Adult and Health Services,Head of Adults,Transport,230005,Contract Hire,03/08/2022,4033091-72211,"1,666.00",24/7 TAXI SERVICES (PETERLEE) LTD.
Adult and Health Services,Head of Adults,Transport,230005,Contract Hire,03/08/2022,4033091-72230,"1,014.00",24/7 TAXI SERVICES (PETERLEE) LTD.
Adult and Health Services,Head of Adults,Transport,230005,Contract Hire,03/08/2022,4033093-0722/SF,961.87,AABAT TAXIS.
Adult and Health Services,Head of Adults,Transport,230005,Contract Hire,03/08/2022,4033093-0722/SK,"2,499.00",AABAT TAXIS.
Adult and Health Services,Head of Adults,Transport,230005,Contract Hire,03/08/2022,4033127-0599,653.31,BIRDS TAXIS LTD.
Adult and Health Services,Head of Adults,Transport,230005,Contract Hire,03/08/2022,4033127-0602,653.31,BIRDS TAXIS LTD.
Adult and Health Services,Head of Adults,Transport,230005,Contract Hire,03/08/2022,4033127-0603,"2,134.23",BIRDS TAXIS LTD.
Adult and Health Services,Head of Adults,Transport,230005,Contract Hire,03/08/2022,4033127-0604,827.61,BIRDS TAXIS LTD.
Adult and Health Services,Head of Adults,Transport,230005,Contract Hire,03/08/2022,4033127-0605,"2,640.75",BIRDS TAXIS LTD.
Adult and Health Services,Head of Adults,Transport,230005,Contract Hire,03/08/2022,4033175-103001,"1,633.38",G & P JOHNSON LTD T/A NIGHTINGALE COACHES.
Adult and Health Services,Head of Adults,Transport,230005,Contract Hire,03/08/2022,4033175-103002,"1,218.00",G & P JOHNSON LTD T/A NIGHTINGALE COACHES.
Adult and Health Services,Head of Adults,Transport,230005,Contract Hire,03/08/2022,4033175-103003,"1,911.00",G & P JOHNSON LTD T/A NIGHTINGALE COACHES.
Adult and Health Services,Head of Adults,Transport,230005,Contract Hire,03/08/2022,4033175-103007,"1,872.00",G & P JOHNSON LTD T/A NIGHTINGALE COACHES.
Adult and Health Services,Head of Adults,Transport,230005,Contract Hire,03/08/2022,4033299-RDS080,824.00,RDS TAXI.
Adult and Health Services,Head of Adults,Transport,230005,Contract Hire,03/08/2022,4033142-JUL22-EAS199,"1,050.00",REDACTED - PAYMENT TO INDIVIDUAL
Adult and Health Services,Head of Adults,Transport,230005,Contract Hire,03/08/2022,4033153-F030,746.64,REDACTED - PAYMENT TO INDIVIDUAL
Adult and Health Services,Head of Adults,Transport,230005,Contract Hire,03/08/2022,4033310-SED112/39-JUL22,"1,711.64",S & S TRAVEL LTD.
Neighbourhoods and Climate Change,Technical Services CM0300,Third Party Payments,460224,Contract Payments,03/08/2022,4033237-INV-32864,500.00,MCCARTHY TAYLOR SYSTEMS LTD.
Adult and Health Services,Public Health CC0450,Third Party Payments,460803,Contract Payments,03/08/2022,4033094-INV-1655,"124,855.00",ABL HEALTH LTD.
Neighbourhoods and Climate Change,Partnerships & Community Engagement Div.,Cap Exp on Grants & Other Financial Assistance (REFCUS),918004,Contributions to other bodies 918004,03/08/2022,4033166-VOUCHER22NB-TEES008,"3,000.00",EGGLESTON AGRICULTURAL SOCIETY LTD.
Neighbourhoods and Climate Change,Partnerships & Community Engagement Div.,Cap Exp on Grants & Other Financial Assistance (REFCUS),918004,Contributions to other bodies 918004,03/08/2022,4033169-VOUCHER21NB-4TOG004,"3,793.00",ENDEAVOUR WOODCRAFTS CIC.
Neighbourhoods and Climate Change,Partnerships & Community Engagement Div.,Cap Exp on Grants & Other Financial Assistance (REFCUS),918004,Contributions to other bodies 918004,03/08/2022,4033195-VOUCHER22NB-3TWN007,"4,000.00",HUNWICK CRICKET CLUB.
Neighbourhoods and Climate Change,Partnerships & Community Engagement Div.,Cap Exp on Grants & Other Financial Assistance (REFCUS),918004,Contributions to other bodies 918004,03/08/2022,4033257-VOUCHER21TVF-GAMP002,"25,000.00",NEWTON AYCLIFFE CRICKET CLUB.
Neighbourhoods and Climate Change,Partnerships & Community Engagement Div.,Cap Exp on Grants & Other Financial Assistance (REFCUS),918004,Contributions to other bodies 918004,03/08/2022,4033318-VOUCHER22NB-BASH002,"4,000.00",SHILDON RAILWAY SPORTS & SOCIAL CLUB.
Neighbourhoods and Climate Change,Partnerships & Community Engagement Div.,Cap Exp on Grants & Other Financial Assistance (REFCUS),918004,Contributions to other bodies 918004,03/08/2022,4033336-VOUCHER22NB-WEAR001,"1,000.00",STANHOPE PHOTOGRAPHIC SOCIETY.
Regeneration Economy and Growth,Culture Sport and Tourism,Premises,120009,Energy Costs,03/08/2022,4033198-16482,"1,999.99",IMPALA ESTATES LTD.
Neighbourhoods and Climate Change,Environmental Services,Supplies and Services,304083,Equipment and Materials,03/08/2022,4033261-24653744,529.99,NISBETS PLC.
Regeneration Economy and Growth,Culture Sport and Tourism,Supplies and Services,304337,Equipment and Materials,03/08/2022,4033233-4236073719,"1,056.60",MARES SPA.
Regeneration Economy and Growth,Corporate Property and Land,Supplies and Services,304221,Equipment and Materials,03/08/2022,4033102-175299,532.00,ALBANY OFFICE EQUIPMENT (WHOLESALE) LTD.
Regeneration Economy and Growth,Corporate Property and Land,Supplies and Services,304221,Equipment and Materials,03/08/2022,4033149-57374,"5,094.29",COMPLETE DETECTION SYSTEMS LTD (CDS).
Regeneration Economy and Growth,Corporate Property and Land,Supplies and Services,304221,Equipment and Materials,03/08/2022,4033150-SRO27327,551.00,CONSIDERATE CONSTRUCTORS SCHEME.
Neighbourhoods and Climate Change,Environmental Services,Supplies and Services,304221,Equipment and Materials,03/08/2022,4033163-0000089068,"4,610.94",EAST RIDING HORTICULTURE LTD.
Neighbourhoods and Climate Change,Environmental Services,Supplies and Services,304221,Equipment and Materials,03/08/2022,4033376-0000040306,910.96,WYBONE LTD.
Neighbourhoods and Climate Change,Environmental Services,Supplies and Services,304259,Equipment and Materials,03/08/2022,4033136-1122797996,"1,900.00",CANFORD AUDIO PLC.
Regeneration Economy and Growth,Culture Sport and Tourism,Supplies and Services,304259,Equipment and Materials,03/08/2022,4033199-SI-041565,655.00,INFORMATION & DATA NETWORK SUPPLIES LTD (IDN).
Regeneration Economy and Growth,Corporate Property and Land,Supplies and Services,304259,Equipment and Materials,03/08/2022,4033255-221926,"1,840.00",NEWCASTLE OCCUPATIONAL HEALTH & HYGIENE LTD.
Regeneration Economy and Growth,Culture Sport and Tourism,Supplies and Services,304259,Equipment and Materials,03/08/2022,4033311-16145,507.95,SAFE SECURE LOCKER SERVICES LTD.
Neighbourhoods and Climate Change,Environmental Services,Supplies and Services,304259,Equipment and Materials,03/08/2022,4033363-00644/2022,"2,360.00",VIPA UK LTD.
Children and Young Peoples Services,Head of Education and Skills,Supplies and Services,304252,Equipment and Materials,03/08/2022,4033095-DCCIR2022072,577.28,ADDED BRASS LTD T/A DURHAM MUSIC SHOP.
Regeneration Economy and Growth,Culture Sport and Tourism,Supplies and Services,384540,Miscellaneous Expenses,03/08/2022,4033256-4445066,967.49,NEWSQUEST (YORKSHIRE & NORTH EAST) LTD.
Neighbourhoods and Climate Change,Partnerships & Community Engagement Div.,Supplies and Services,384086,Miscellaneous Expenses,03/08/2022,4033187-VOUCHER22NB-WEAR002,"1,000.00",HIGH PENNINE HORTICULTURAL SOCIETY.
Neighbourhoods and Climate Change,Partnerships & Community Engagement Div.,Supplies and Services,384086,Miscellaneous Expenses,03/08/2022,4033131-VOUCHER22NB-MDUR005,"2,070.00",BRANDON TABLE TENNIS CLUB.
Regeneration Economy and Growth,Culture Sport and Tourism,Supplies and Services,384199,Miscellaneous Expenses,03/08/2022,4033111-72222,840.00,ARTISTIC SOLUTIONS LTD.
Regeneration Economy and Growth,Corporate Property and Land,Supplies and Services,384199,Miscellaneous Expenses,03/08/2022,4033126-42152,995.00,BGP CONSULTING LTD T/A BILLINGHURST GEORGE & PARTNERS.
Regeneration Economy and Growth,Culture Sport and Tourism,Supplies and Services,384199,Miscellaneous Expenses,03/08/2022,4033221-7694,739.00,L & L BRAINES LTD.
Regeneration Economy and Growth,Culture Sport and Tourism,Supplies and Services,384199,Miscellaneous Expenses,03/08/2022,4033236-INV-0359,"1,640.83",MCBRYDE & CO LTD.
Neighbourhoods and Climate Change,Environmental Services,Supplies and Services,384199,Miscellaneous Expenses,03/08/2022,4033295-RAD54660,620.00,RA DALTON LTD.
Regeneration Economy and Growth,Culture Sport and Tourism,Supplies and Services,384199,Miscellaneous Expenses,03/08/2022,4033358-TRAV44280,"1,995.00",TRAVMEDIA (UK) LTD.
Adult and Health Services,Head of Adults,Supplies and Services,384616,Miscellaneous Expenses,03/08/2022,4033124-19/07/2022,604.76,BERNICIA GROUP LTD.*
Adult and Health Services,Head of Adults,Supplies and Services,384616,Miscellaneous Expenses,03/08/2022,4033124-4/2223/DEALO,812.68,BERNICIA GROUP LTD.*
Regeneration Economy and Growth,Culture Sport and Tourism,Supplies and Services,384237,Miscellaneous Expenses,03/08/2022,4033342-824,"5,350.00",TEAMKINETIC LTD.
Children and Young Peoples Services,Head of Education and Skills,Supplies and Services,312009,Newspapers books and periodicals E312,03/08/2022,4033113-6734684,741.72,ASKEWS & HOLTS LIBRARY SERVICES LTD.
Children and Young Peoples Services,Head of Childrens Social Care,Third Party Payments,440062,Other third party payments E440,03/08/2022,4032337-PIG_135823,"1,993.86",EMBRACING CARE.
Children and Young Peoples Services,Head of Childrens Social Care,Third Party Payments,440062,Other third party payments E440,03/08/2022,4032575-PIG_135843,"2,448.60",KELLY PARK LTD..
Children and Young Peoples Services,Head of Childrens Social Care,Third Party Payments,440062,Other third party payments E440,03/08/2022,4032768-PIG_135890,"2,501.07",MY HOMECARE ASSISTANCE LTD T/A MY HOMECARE.
Children and Young Peoples Services,Head of Childrens Social Care,Third Party Payments,440062,Other third party payments E440,03/08/2022,4032806-PIG_135824,"2,474.84",ORCHARD HOME CARE SERVICES LTD.
Children and Young Peoples Services,Head of Education and Skills,Third Party Payments,440999,Other third party payments E440,03/08/2022,4033134-KICK5044718INVOICE000854,"1,044.28",BURNS PETCARE LTD T/A WOOFS N SCRUFFS.
Children and Young Peoples Services,Head of Education and Skills,Third Party Payments,440999,Other third party payments E440,03/08/2022,4033134-KICK5044718INVOICE000881,"1,085.21",BURNS PETCARE LTD T/A WOOFS N SCRUFFS.
Children and Young Peoples Services,Head of Education and Skills,Third Party Payments,440999,Other third party payments E440,03/08/2022,4033172-KICK5044718INVOICE000882,"1,085.21",FINISHING TOUCH CLINIC LTD.
Regeneration Economy and Growth,Business Durham CL0850,Third Party Payments,440999,Other third party payments E440,03/08/2022,4033344-DBRG-08-2022-02,"2,245.21",TEKGEM (UK) LTD.
Dedicated Schools Grant BG0015,DSG High Needs Block,Third Party Payments,440080,Other third party payments E440,03/08/2022,4032169-PIG_135837,"5,194.92",CAMBIAN CHILDCARE LTD T/A HARTLEPOOL SCHOOL.
Dedicated Schools Grant BG0015,DSG High Needs Block,Third Party Payments,440080,Other third party payments E440,03/08/2022,4032787-PIG_135840,"35,109.73",NORTH EAST AUTISM SOCIETY.
Dedicated Schools Grant BG0015,DSG High Needs Block,Third Party Payments,440080,Other third party payments E440,03/08/2022,4032787-PIG_135841,"5,275.28",NORTH EAST AUTISM SOCIETY.
Children and Young Peoples Services,Head of Childrens Social Care,Third Party Payments,440038,Other third party payments E440,03/08/2022,4032372-PIG_136487,"138,686.63",FOREVER CARE LTD.
Children and Young Peoples Services,Head of Childrens Social Care,Third Party Payments,440038,Other third party payments E440,03/08/2022,4032463-PIG_136494,"1,555.86",HOME GROUP LTD FORMERLY STONHAM HOUSING ASSOCIATION LTD.
Children and Young Peoples Services,Head of Childrens Social Care,Third Party Payments,440038,Other third party payments E440,03/08/2022,4032719-PIG_136470,"60,754.30",MOVING UP CARE LTD.
Children and Young Peoples Services,Head of Childrens Social Care,Third Party Payments,440038,Other third party payments E440,03/08/2022,4032896-PIG_136469,"29,760.00",ROC FAMILY SUPPORT LTD.
Children and Young Peoples Services,Head of Childrens Social Care,Third Party Payments,440038,Other third party payments E440,03/08/2022,4033011-PIG_136485,"4,884.27",THE CYRENIANS LTD T/A CHANGING LIVES.
Children and Young Peoples Services,Head of Childrens Social Care,Third Party Payments,440038,Other third party payments E440,03/08/2022,4033085-PIG_135825,"31,462.28",YMCA WEARSIDE LTD.
Children and Young Peoples Services,Head of Childrens Social Care,Third Party Payments,440038,Other third party payments E440,03/08/2022,4032717-PIG_136495,"5,864.33",MOVING ON (DURHAM) LTD.
Resources BK0010,Digital Services,Supplies and Services,332029,Printing Stationery and Gen Off Exps,03/08/2022,4033296-20077,"1,210.00",RADECAL SIGNS GRAPHICS & ADVERTISING.
Resources BK0010,Digital Services,Supplies and Services,332029,Printing Stationery and Gen Off Exps,03/08/2022,4033324-26427,720.00,SIMPLY STRIPES (THE SIGNMAKERS) LTD.
Children and Young Peoples Services,Head of Early Help Inclusion & Vulnerable Children.,Supplies and Services,324117,Provisions E324,03/08/2022,4033125-7141/340286,538.90,BESTWAY WHOLESALE LTD T/A BATLEYS FOODSERVICE.
Adult and Health Services,Head of Adults,Third Party Payments,473101,Purchase of Care,03/08/2022,4031839-I-22-5346633,"4,362.04",ACCEPT CARE LTD.
Adult and Health Services,Head of Adults,Third Party Payments,473101,Purchase of Care,03/08/2022,4032165-I-22-5346586,"2,010.89",BULLION COMMUNITY RESOURCE CENTRE.
Adult and Health Services,Head of Adults,Third Party Payments,473101,Purchase of Care,03/08/2022,4032203-I-22-4997421,"2,301.64",CHARITY REGISTERED AS ONE TO ONE.
Adult and Health Services,Head of Adults,Third Party Payments,473101,Purchase of Care,03/08/2022,4032203-I-22-5153714,"3,914.40",CHARITY REGISTERED AS ONE TO ONE.
Adult and Health Services,Head of Adults,Third Party Payments,473101,Purchase of Care,03/08/2022,4032260-I-22-5346594,"2,960.00",DAISY CHAIN PROJECT TEESSIDE.
Adult and Health Services,Head of Adults,Third Party Payments,473101,Purchase of Care,03/08/2022,4032288-I-22-5346602,"19,316.36",DEACONSTAR LTD.
Adult and Health Services,Head of Adults,Third Party Payments,473101,Purchase of Care,03/08/2022,4032295-I-22-5346424,"10,657.08",DIMENSIONS PERSONALISED SUPPORT LTD.
Adult and Health Services,Head of Adults,Third Party Payments,473101,Purchase of Care,03/08/2022,4032297-I-22-5346459,"7,808.68",DIRECT STEPS.
Adult and Health Services,Head of Adults,Third Party Payments,473101,Purchase of Care,03/08/2022,4032307-I-22-5346359,"3,218.20",DURHAM ALLIANCE FOR COMMUNITY CARE.
Adult and Health Services,Head of Adults,Third Party Payments,473101,Purchase of Care,03/08/2022,4032307-I-22-5346604,"4,021.92",DURHAM ALLIANCE FOR COMMUNITY CARE.
Adult and Health Services,Head of Adults,Third Party Payments,473101,Purchase of Care,03/08/2022,4032307-I-22-5346605,"3,548.23",DURHAM ALLIANCE FOR COMMUNITY CARE.
Adult and Health Services,Head of Adults,Third Party Payments,473101,Purchase of Care,03/08/2022,4032307-I-22-5346606,"3,828.17",DURHAM ALLIANCE FOR COMMUNITY CARE.
Adult and Health Services,Head of Adults,Third Party Payments,473101,Purchase of Care,03/08/2022,4032307-I-22-5346666,"1,662.57",DURHAM ALLIANCE FOR COMMUNITY CARE.
Adult and Health Services,Head of Adults,Third Party Payments,473101,Purchase of Care,03/08/2022,4032315-I-22-5346423,"2,465.92",EAST DURHAM COLLEGE.
Adult and Health Services,Head of Adults,Third Party Payments,473101,Purchase of Care,03/08/2022,4032317-I-22-5346347,"21,601.48",EBONEY HOME CARE LTD.
Adult and Health Services,Head of Adults,Third Party Payments,473101,Purchase of Care,03/08/2022,4032344-I-22-5346339,"6,627.26",ENDEAVOUR WOODCRAFTS CIC.
Adult and Health Services,Head of Adults,Third Party Payments,473101,Purchase of Care,03/08/2022,4032357-I-22-5346450,"27,146.52",ETHICARE (DURHAM) LTD.
Adult and Health Services,Head of Adults,Third Party Payments,473101,Purchase of Care,03/08/2022,4032368-I-22-5346635,934.08,FIVE ACRES COMMUNITY GARDEN LTD.
Adult and Health Services,Head of Adults,Third Party Payments,473101,Purchase of Care,03/08/2022,4032397-I-22-5346522,"46,797.54",GAPPS DAY SERVICES LTD.
Adult and Health Services,Head of Adults,Third Party Payments,473101,Purchase of Care,03/08/2022,4032419-I-22-5346361,"6,413.38",GROWING TOGETHER DURHAM LTD.
Adult and Health Services,Head of Adults,Third Party Payments,473101,Purchase of Care,03/08/2022,4032419-I-22-5346460,"2,636.68",GROWING TOGETHER DURHAM LTD.
Adult and Health Services,Head of Adults,Third Party Payments,473101,Purchase of Care,03/08/2022,4032426-I-22-5346346,"12,098.48",HASWELL & DISTRICT MENCAP SOCIETY.
Adult and Health Services,Head of Adults,Third Party Payments,473101,Purchase of Care,03/08/2022,4032464-I-22-5346625,"1,949.04",HOME GROUP LTD.
Adult and Health Services,Head of Adults,Third Party Payments,473101,Purchase of Care,03/08/2022,4032465-I-22-5374022,"2,600.00",HOME ON THE RANGE LTD.
Adult and Health Services,Head of Adults,Third Party Payments,473101,Purchase of Care,03/08/2022,4032476-I-22-5346505,"7,810.88",INCLUDE `IN` AUTISM.
Adult and Health Services,Head of Adults,Third Party Payments,473101,Purchase of Care,03/08/2022,4032612-I-22-5346509,"9,539.19",LION MOUTH COMMUNITY INTEREST COMPANY.
Adult and Health Services,Head of Adults,Third Party Payments,473101,Purchase of Care,03/08/2022,4032716-I-22-5346360,"2,646.80",MOVEABLE FEASTS ARTS.
Adult and Health Services,Head of Adults,Third Party Payments,473101,Purchase of Care,03/08/2022,4032774-I-22-5346369,"1,540.00",NEUROACTIVE UK.
Adult and Health Services,Head of Adults,Third Party Payments,473101,Purchase of Care,03/08/2022,4032776-I-22-5346662,"17,846.87",NEW STEPS CARE IN THE COMMUNITY LLP.
Adult and Health Services,Head of Adults,Third Party Payments,473101,Purchase of Care,03/08/2022,4032786-I-22-5346400,"77,116.66",NORTH EAST AUTISM SOCIETY.
Adult and Health Services,Head of Adults,Third Party Payments,473101,Purchase of Care,03/08/2022,4032786-I-22-5346578,"3,048.64",NORTH EAST AUTISM SOCIETY.
Adult and Health Services,Head of Adults,Third Party Payments,473101,Purchase of Care,03/08/2022,4032799-I-22-5346426,"6,397.84",OBJECT QUEST LTD.
Adult and Health Services,Head of Adults,Third Party Payments,473101,Purchase of Care,03/08/2022,4032843-I-22-5346579,"2,620.04",PHOENIX DAY CENTRE CIC.
Adult and Health Services,Head of Adults,Third Party Payments,473101,Purchase of Care,03/08/2022,4032844-I-22-5346643,"8,700.12",PIONEERING CARE PARTNERSHIP.
Adult and Health Services,Head of Adults,Third Party Payments,473101,Purchase of Care,03/08/2022,4032878-I-22-5346444,"21,361.85",REAL CARE LTD.
Adult and Health Services,Head of Adults,Third Party Payments,473101,Purchase of Care,03/08/2022,4032720-I-22-5346380,"33,981.04",REDACTED - PAYMENT TO INDIVIDUAL
Adult and Health Services,Head of Adults,Third Party Payments,473101,Purchase of Care,03/08/2022,4032890-I-22-5346618,"3,494.11",RIDING CENTRE FOR SPECIAL PEOPLE LTD..
Adult and Health Services,Head of Adults,Third Party Payments,473101,Purchase of Care,03/08/2022,4033016-I-22-5346490,"3,343.78",THE HOSPITAL OF GOD AT GREATHAM.
Adult and Health Services,Head of Adults,Third Party Payments,473101,Purchase of Care,03/08/2022,4033021-I-22-5346570,"1,189.36",THE PERCY HEDLEY FOUNDATION.
Adult and Health Services,Head of Adults,Third Party Payments,473101,Purchase of Care,03/08/2022,4033023-I-22-5346587,"1,315.02",THE WIDER WORLD PROJECT.
Adult and Health Services,Head of Adults,Third Party Payments,473101,Purchase of Care,03/08/2022,4033035-I-22-5346377,"33,939.05",THOMPSON & HOWE LTD.
Adult and Health Services,Head of Adults,Third Party Payments,473101,Purchase of Care,03/08/2022,4033035-I-22-5346401,"16,412.71",THOMPSON & HOWE LTD.
Adult and Health Services,Head of Adults,Third Party Payments,473101,Purchase of Care,03/08/2022,4033035-I-22-5346442,"22,239.40",THOMPSON & HOWE LTD.
Adult and Health Services,Head of Adults,Third Party Payments,473101,Purchase of Care,03/08/2022,4033035-I-22-5346458,"39,060.30",THOMPSON & HOWE LTD.
Adult and Health Services,Head of Adults,Third Party Payments,473101,Purchase of Care,03/08/2022,4033035-I-22-5346597,"27,788.91",THOMPSON & HOWE LTD.
Adult and Health Services,Head of Adults,Third Party Payments,473101,Purchase of Care,03/08/2022,4033035-I-22-5346607,"30,649.02",THOMPSON & HOWE LTD.
Adult and Health Services,Head of Adults,Third Party Payments,473101,Purchase of Care,03/08/2022,4033035-I-22-5346617,"24,929.72",THOMPSON & HOWE LTD.
Adult and Health Services,Head of Adults,Third Party Payments,473101,Purchase of Care,03/08/2022,4033035-I-22-5346648,"39,458.13",THOMPSON & HOWE LTD.
Adult and Health Services,Head of Adults,Third Party Payments,473101,Purchase of Care,03/08/2022,4033037-I-22-5346441,"2,675.78",TIN ARTS LTD.
Adult and Health Services,Head of Adults,Third Party Payments,473101,Purchase of Care,03/08/2022,4033060-I-22-5346342,"9,676.96",VOIDSERVICES LTD.
Adult and Health Services,Head of Adults,Third Party Payments,473101,Purchase of Care,03/08/2022,4033067-I-22-5346492,"18,344.82",WEAR 1 CARE LTD.
Adult and Health Services,Head of Adults,Third Party Payments,473101,Purchase of Care,03/08/2022,4033068-I-22-5346447,"2,168.38",WEAR VALLEY ANGLING CIC.
Adult and Health Services,Head of Adults,Third Party Payments,473101,Purchase of Care,03/08/2022,4033083-I-22-5346393,"8,939.89",WOODCRAFT FOR LANDSCAPES CIC.
Adult and Health Services,Central/Other,Third Party Payments,474999,Purchase of Care,03/08/2022,4032582-I-22-5346782,"59,504.48",KINGSWAY CARE HOME LTD.
Adult and Health Services,Head of Adults,Third Party Payments,474999,Purchase of Care,03/08/2022,4033005-I-22-5346752,"25,990.71",TAMARIS HEALTHCARE (ENGLAND) LTD.
Adult and Health Services,Head of Adults,Third Party Payments,472101,Purchase of Care,03/08/2022,4032079-I-22-4997638,"5,876.64",ALLIED HEALTH-SERVICES LTD T/A ALLIED HEALTHCARE.
Adult and Health Services,Head of Adults,Third Party Payments,472101,Purchase of Care,03/08/2022,4032079-I-22-5154980,"5,876.64",ALLIED HEALTH-SERVICES LTD T/A ALLIED HEALTHCARE.
Adult and Health Services,Head of Adults,Third Party Payments,472101,Purchase of Care,03/08/2022,4032079-I-22-5346608,"5,876.64",ALLIED HEALTH-SERVICES LTD T/A ALLIED HEALTHCARE.
Adult and Health Services,Head of Adults,Third Party Payments,472101,Purchase of Care,03/08/2022,4032105-I-22-5346379,975.00,APM CLEANING LTD.
Adult and Health Services,Head of Adults,Third Party Payments,472101,Purchase of Care,03/08/2022,4032154-I-22-5346420,"17,165.64",BLOSSOM HOME CARE.
Adult and Health Services,Head of Adults,Third Party Payments,472101,Purchase of Care,03/08/2022,4032184-I-22-5346511,"23,946.21",CARE VANTAGE LTD.
Adult and Health Services,Head of Adults,Third Party Payments,472101,Purchase of Care,03/08/2022,4032196-I-22-5346427,"29,168.05",CASTLE CARE TEESDALE LTD.
Adult and Health Services,Head of Adults,Third Party Payments,472101,Purchase of Care,03/08/2022,4032201-I-22-5346371,"4,987.56",CEL HOMECARE LTD.
Adult and Health Services,Head of Adults,Third Party Payments,472101,Purchase of Care,03/08/2022,4032227-I-22-5346453,"32,442.95",CLASSIC RESOURCES UK LTD T/A CLASSIC RESOURCES HOMECARE.
Adult and Health Services,Head of Adults,Third Party Payments,472101,Purchase of Care,03/08/2022,4032233-I-22-5346548,"85,925.72",COMFORT CALL LTD.
Adult and Health Services,Head of Adults,Third Party Payments,472101,Purchase of Care,03/08/2022,4032239-I-22-5346372,702.00,CONFIDENCE CARE & SUPPORT LTD.
Adult and Health Services,Head of Adults,Third Party Payments,472101,Purchase of Care,03/08/2022,4032250-I-22-5346485,"1,036.32",CREATIVE SUPPORT LTD.
Adult and Health Services,Head of Adults,Third Party Payments,472101,Purchase of Care,03/08/2022,4032251-I-22-5346552,"65,438.98",CRESCENT HOMECARE LTD.
Adult and Health Services,Head of Adults,Third Party Payments,472101,Purchase of Care,03/08/2022,4032261-I-22-3215831B,752.08,DALE CARE LTD.
Adult and Health Services,Head of Adults,Third Party Payments,472101,Purchase of Care,03/08/2022,4032261-I-22-5346515,"433,539.60",DALE CARE LTD.
Adult and Health Services,Head of Adults,Third Party Payments,472101,Purchase of Care,03/08/2022,4032317-I-22-5346550,"19,788.34",EBONEY HOME CARE LTD.
Adult and Health Services,Head of Adults,Third Party Payments,472101,Purchase of Care,03/08/2022,4032328-I-22-5346676,"29,383.87",ELITE HOMECARE SERVICE LTD.
Adult and Health Services,Head of Adults,Third Party Payments,472101,Purchase of Care,03/08/2022,4032337-I-22-5346516,"269,044.88",EMBRACING CARE.
Adult and Health Services,Head of Adults,Third Party Payments,472101,Purchase of Care,03/08/2022,4032353-I-22-5346561,"5,220.04",ESSENTIAL CARE & SUPPORT LTD.
Adult and Health Services,Head of Adults,Third Party Payments,472101,Purchase of Care,03/08/2022,4032357-I-22-5346496,"4,501.44",ETHICARE (DURHAM) LTD.
Adult and Health Services,Head of Adults,Third Party Payments,472101,Purchase of Care,03/08/2022,4032450-I-22-5346632,"1,534.20",HELPING HANDS HOME CARE.
Adult and Health Services,Head of Adults,Third Party Payments,472101,Purchase of Care,03/08/2022,4032458-I-22-5346348,536.96,HIGHLEA CARE LTD.
Adult and Health Services,Head of Adults,Third Party Payments,472101,Purchase of Care,03/08/2022,4032467-I-22-5346469,"23,667.93",HOUSING 21.
Adult and Health Services,Head of Adults,Third Party Payments,472101,Purchase of Care,03/08/2022,4032478-I-22-5346592,"4,535.80",INFINITE HOMECARE LTD.
Adult and Health Services,Head of Adults,Third Party Payments,472101,Purchase of Care,03/08/2022,4032575-I-22-5346551,"256,718.07",KELLY PARK LTD..
Adult and Health Services,Head of Adults,Third Party Payments,472101,Purchase of Care,03/08/2022,4032690-I-22-5346477,"20,000.72",MENCAP.
Adult and Health Services,Head of Adults,Third Party Payments,472101,Purchase of Care,03/08/2022,4032703-I-22-5346675,"33,083.98",MIDDLETON CARE LTD.
Adult and Health Services,Head of Adults,Third Party Payments,472101,Purchase of Care,03/08/2022,4032769-I-22-5346569,"12,382.95",MYCHOICE HOMECARE LTD.
Adult and Health Services,Head of Adults,Third Party Payments,472101,Purchase of Care,03/08/2022,4032777-I-22-5346506,"16,036.82",NEW VISION CARE SERVICES LTD.
Adult and Health Services,Head of Adults,Third Party Payments,472101,Purchase of Care,03/08/2022,4032781-I-22-5346665,"1,958.88",NIGHTINGALES COMMUNITY CARE LTD.
Adult and Health Services,Head of Adults,Third Party Payments,472101,Purchase of Care,03/08/2022,4032785-I-22-5346376,"8,152.60",NORTH EAST AUTISM SOCIETY.
Adult and Health Services,Head of Adults,Third Party Payments,472101,Purchase of Care,03/08/2022,4032806-I-22-5346555,"101,638.69",ORCHARD HOME CARE SERVICES LTD.
Adult and Health Services,Head of Adults,Third Party Payments,472101,Purchase of Care,03/08/2022,4032839-I-22-5346634,"162,650.97",PERFECT CARE LTD.
Adult and Health Services,Head of Adults,Third Party Payments,472101,Purchase of Care,03/08/2022,4032849-I-22-5346667,"16,266.84",POSSIBILITES NE LTD.
Adult and Health Services,Head of Adults,Third Party Payments,472101,Purchase of Care,03/08/2022,4032856-I-22-5346430,"125,863.90",PREMIER COMMUNITY CARE LTD.
Adult and Health Services,Head of Adults,Third Party Payments,472101,Purchase of Care,03/08/2022,4032861-I-22-5346407,"10,829.97",PRIORITISING PEOPLE`S LIVES LTD.
Adult and Health Services,Head of Adults,Third Party Payments,472101,Purchase of Care,03/08/2022,4032865-I-22-5346370,"1,486.65",QUALITY FIRST CARE SERVICES LTD.
Adult and Health Services,Head of Adults,Third Party Payments,472101,Purchase of Care,03/08/2022,4032932-I-22-5346517,"54,438.85",SECOND TO NONE CARE LTD.
Adult and Health Services,Head of Adults,Third Party Payments,472101,Purchase of Care,03/08/2022,4032937-I-21-2836443B,979.44,SHEENA MILES CARE SERVICES LTD.
Adult and Health Services,Head of Adults,Third Party Payments,472101,Purchase of Care,03/08/2022,4032937-I-22-2975450B,"1,958.88",SHEENA MILES CARE SERVICES LTD.
Adult and Health Services,Head of Adults,Third Party Payments,472101,Purchase of Care,03/08/2022,4032937-I-22-5346462,"84,750.08",SHEENA MILES CARE SERVICES LTD.
Adult and Health Services,Head of Adults,Third Party Payments,472101,Purchase of Care,03/08/2022,4032953-I-22-5346558,"1,983.83",SPECTRUM COMMUNITY HEALTH.
Adult and Health Services,Head of Adults,Third Party Payments,472101,Purchase of Care,03/08/2022,4032981-I-22-5346553,"88,302.53",SUPPORTIVE SRC LTD.
Adult and Health Services,Head of Adults,Third Party Payments,472101,Purchase of Care,03/08/2022,4033039-I-22-5346677,"18,403.57",TLC COMMUNITY SERVICES.
Adult and Health Services,Head of Adults,Third Party Payments,472101,Purchase of Care,03/08/2022,4033057-I-22-5346429,"15,932.44",VILLAGE CARE LTD.
Adult and Health Services,Head of Adults,Third Party Payments,474101,Purchase of Care,03/08/2022,4032053-I-22-5346969,"5,803.92",AKARI CARE LTD.
Adult and Health Services,Head of Adults,Third Party Payments,474101,Purchase of Care,03/08/2022,4032055-I-22-5346877,"2,559.24",AKARI CARE LTD.
Adult and Health Services,Head of Adults,Third Party Payments,474101,Purchase of Care,03/08/2022,4032120-I-22-5346855,"4,645.72",ATLAS CARE HOMES LTD.
Adult and Health Services,Head of Adults,Third Party Payments,474101,Purchase of Care,03/08/2022,4032129-I-22-5346852,"1,900.00",BARCHESTER HEALTHCARE HOMES LTD.
Adult and Health Services,Head of Adults,Third Party Payments,474101,Purchase of Care,03/08/2022,4032131-I-22-5346832,"4,006.74",BARCHESTER HEALTHCARE HOMES LTD.
Adult and Health Services,Head of Adults,Third Party Payments,474101,Purchase of Care,03/08/2022,4032132-I-22-5346894,"87,230.09",BARCHESTER HEALTHCARE HOMES LTD.
Adult and Health Services,Head of Adults,Third Party Payments,474101,Purchase of Care,03/08/2022,4032135-I-22-5346798,"2,908.35",BARCHESTER HEALTHCARE HOMES LTD.
Adult and Health Services,Head of Adults,Third Party Payments,474101,Purchase of Care,03/08/2022,4032137-I-22-5346813,"10,296.54",BARCHESTER HEALTHCARE HOMES LTD.
Adult and Health Services,Head of Adults,Third Party Payments,474101,Purchase of Care,03/08/2022,4032137-I-22-5346833,"41,414.33",BARCHESTER HEALTHCARE HOMES LTD.
Adult and Health Services,Head of Adults,Third Party Payments,474101,Purchase of Care,03/08/2022,4032177-I-22-5346826,"103,381.70",CARE UK COMMUNITY PARTNERSHIPS LTD.
Adult and Health Services,Head of Adults,Third Party Payments,474101,Purchase of Care,03/08/2022,4032183-I-22-5346804,"2,428.00",CARE UK COMMUNITY PARTNERSHIPS LTD.
Adult and Health Services,Head of Adults,Third Party Payments,474101,Purchase of Care,03/08/2022,4032187-I-22-5346756,"8,713.72",CARELINE LIFESTYLES (UK) LTD.
Adult and Health Services,Head of Adults,Third Party Payments,474101,Purchase of Care,03/08/2022,4032188-I-22-5346785,"13,167.97",CARELINE LIFESTYLES (UK) LTD.
Adult and Health Services,Head of Adults,Third Party Payments,474101,Purchase of Care,03/08/2022,4032189-I-22-5346820,"21,789.45",CARELINE LIFESTYLES.
Adult and Health Services,Head of Adults,Third Party Payments,474101,Purchase of Care,03/08/2022,4032244-I-22-5346963,"83,004.56",COUNTRYWIDE CARE HOMES (2) LTD.
Adult and Health Services,Head of Adults,Third Party Payments,474101,Purchase of Care,03/08/2022,4032252-I-22-5346751,"71,365.66",CROFT HOUSE (CARE) LTD.
Adult and Health Services,Head of Adults,Third Party Payments,474101,Purchase of Care,03/08/2022,4032253-I-22-5346694,"9,859.96",CROWN CARE IV LTD T/A BALMORAL COURT.
Adult and Health Services,Head of Adults,Third Party Payments,474101,Purchase of Care,03/08/2022,4032254-I-22-5346788,"206,688.80",CROWN CARE VI LTD.
Adult and Health Services,Head of Adults,Third Party Payments,474101,Purchase of Care,03/08/2022,4032259-I-22-5346706,"43,605.61",D3 CARE LTD.
Adult and Health Services,Head of Adults,Third Party Payments,474101,Purchase of Care,03/08/2022,4032310-I-22-5346900,"59,991.43",DURHAM CARELINE LTD.
Adult and Health Services,Head of Adults,Third Party Payments,474101,Purchase of Care,03/08/2022,4032313-I-22-5346890,"2,625.48",EAST CHESHIRE HOUSING CONSORTIUM LTD.
Adult and Health Services,Head of Adults,Third Party Payments,474101,Purchase of Care,03/08/2022,4032314-I-22-5346778,"3,759.50",EAST CLEVELAND M S HOME.
Adult and Health Services,Head of Adults,Third Party Payments,474101,Purchase of Care,03/08/2022,4032361-I-22-5346830,"30,967.19",EXEMPLAR LTD T/A WYKEWOOD CARE HOME.
Adult and Health Services,Head of Adults,Third Party Payments,474101,Purchase of Care,03/08/2022,4032390-I-22-5346862,"103,970.91",GAINFORD CARE HOMES LTD.
Adult and Health Services,Head of Adults,Third Party Payments,474101,Purchase of Care,03/08/2022,4032392-I-22-5346787,"136,069.62",GAINFORD CARE HOMES LTD.
Adult and Health Services,Head of Adults,Third Party Payments,474101,Purchase of Care,03/08/2022,4032395-I-22-5346967,"74,976.98",GAINFORD CARE HOMES LTD.
Adult and Health Services,Head of Adults,Third Party Payments,474101,Purchase of Care,03/08/2022,4032396-I-22-5346783,"19,325.64",GAINFORD CARE HOMES LTD.
Adult and Health Services,Head of Adults,Third Party Payments,474101,Purchase of Care,03/08/2022,4032436-I-22-5346962,"91,188.83",HC-ONE LTD.
Adult and Health Services,Head of Adults,Third Party Payments,474101,Purchase of Care,03/08/2022,4032441-I-22-5346864,"67,323.32",HC-ONE LTD.
Adult and Health Services,Head of Adults,Third Party Payments,474101,Purchase of Care,03/08/2022,4032442-I-22-5346857,"48,204.91",HC-ONE LTD.
Adult and Health Services,Head of Adults,Third Party Payments,474101,Purchase of Care,03/08/2022,4032444-I-22-5346714,"5,922.00",HC-ONE LTD..
Adult and Health Services,Head of Adults,Third Party Payments,474101,Purchase of Care,03/08/2022,4032444-I-22-5346840,"17,883.12",HC-ONE LTD..
Adult and Health Services,Head of Adults,Third Party Payments,474101,Purchase of Care,03/08/2022,4032451-I-22-5155658,"1,234.40",HENDON PIF LTD T/A ASHWOOD COURT CARE HOME.
Adult and Health Services,Head of Adults,Third Party Payments,474101,Purchase of Care,03/08/2022,4032451-I-22-5346817,"1,234.40",HENDON PIF LTD T/A ASHWOOD COURT CARE HOME.
Adult and Health Services,Head of Adults,Third Party Payments,474101,Purchase of Care,03/08/2022,4032477-I-22-5346695,"6,996.20",INDIGO CARE SERVICES LTD.
Adult and Health Services,Head of Adults,Third Party Payments,474101,Purchase of Care,03/08/2022,4032579-I-22-5346947,"1,642.12",KEY HEALTHCARE (OPERATIONS) LTD.
Adult and Health Services,Head of Adults,Third Party Payments,474101,Purchase of Care,03/08/2022,4032606-I-22-5346973,"8,509.08",LIFESTYLE (ABBEY CARE) LTD.
Adult and Health Services,Head of Adults,Third Party Payments,474101,Purchase of Care,03/08/2022,4032667-I-22-5346933,"69,114.96",MARTON CARE HOMES LTD T/A ST HELENS CARE HOME.
Adult and Health Services,Head of Adults,Third Party Payments,474101,Purchase of Care,03/08/2022,4032793-I-22-5346843,"8,206.12",NORTHLEA COURT.
Adult and Health Services,Head of Adults,Third Party Payments,474101,Purchase of Care,03/08/2022,4032845-I-22-5346721,"4,856.00",POPULAR CARE LTD.
Adult and Health Services,Head of Adults,Third Party Payments,474101,Purchase of Care,03/08/2022,4032846-I-22-5346895,"108,151.60",POPULAR CARE LTD..
Adult and Health Services,Head of Adults,Third Party Payments,474101,Purchase of Care,03/08/2022,4032860-I-22-5346882,"2,693.88",PRESTIGE CARE (YEW TREE) LTD.
Adult and Health Services,Head of Adults,Third Party Payments,474101,Purchase of Care,03/08/2022,4032864-I-22-5346693,"11,007.50",QUALIA CARE LTD T/A WASHINGTON LODGE.
Adult and Health Services,Head of Adults,Third Party Payments,474101,Purchase of Care,03/08/2022,4032864-I-22-5346934,"20,648.33",QUALIA CARE LTD T/A WASHINGTON LODGE.
Adult and Health Services,Head of Adults,Third Party Payments,474101,Purchase of Care,03/08/2022,4032875-I-22-5346710,"56,484.00",RAYSON HOMES LTD.
Adult and Health Services,Head of Adults,Third Party Payments,474101,Purchase of Care,03/08/2022,4032882-I-22-5346957,"4,133.44",RENAL HEALTH LTD.
Adult and Health Services,Head of Adults,Third Party Payments,474101,Purchase of Care,03/08/2022,4032919-I-22-5346724,"12,852.60",SANCTUARY CARE (ENGLAND) LTD.
Adult and Health Services,Head of Adults,Third Party Payments,474101,Purchase of Care,03/08/2022,4032923-I-22-5346931,"58,171.20",SANCTUARY CARE (ENGLAND) LTD.
Adult and Health Services,Head of Adults,Third Party Payments,474101,Purchase of Care,03/08/2022,4032929-I-22-5346780,"74,134.33",SEAHAM CARE LTD.
Adult and Health Services,Head of Adults,Third Party Payments,474101,Purchase of Care,03/08/2022,4032930-I-22-5346971,"99,979.21",SEAHAM CARE LTD.
Adult and Health Services,Head of Adults,Third Party Payments,474101,Purchase of Care,03/08/2022,4032934-I-22-5346831,"2,600.00",SEYMOUR HOUSE HARTLEPOOL LTD.
Adult and Health Services,Head of Adults,Third Party Payments,474101,Purchase of Care,03/08/2022,4032946-I-22-5346741,"2,724.28",SOLEHAWK LTD T/A ASHTON COURT NURSING HOME.
Adult and Health Services,Head of Adults,Third Party Payments,474101,Purchase of Care,03/08/2022,4032947-I-22-5346789,"7,912.84",SOLEHAWK LTD T/A CRAIGIELEA CARE HOME.
Adult and Health Services,Head of Adults,Third Party Payments,474101,Purchase of Care,03/08/2022,4032955-I-22-5346913,"3,328.40",SPYNIE CARE HOME.
Adult and Health Services,Head of Adults,Third Party Payments,474101,Purchase of Care,03/08/2022,4032963-I-22-5346873,"2,360.00",ST MARTIN`S CARE LTD.
Adult and Health Services,Head of Adults,Third Party Payments,474101,Purchase of Care,03/08/2022,4032970-I-22-5346718,"3,016.48",STAINTON LODGE CARE CENTRE.
Adult and Health Services,Head of Adults,Third Party Payments,474101,Purchase of Care,03/08/2022,4032999-I-22-5346856,"4,544.12",TAMARIS HEALTHCARE (ENGLAND) LTD.
Adult and Health Services,Head of Adults,Third Party Payments,474101,Purchase of Care,03/08/2022,4033000-I-22-5346737,"107,608.07",TAMARIS HEALTHCARE (ENGLAND) LTD.
Adult and Health Services,Head of Adults,Third Party Payments,474101,Purchase of Care,03/08/2022,4033002-I-22-5346956,"65,292.31",TAMARIS HEALTHCARE (ENGLAND) LTD.
Adult and Health Services,Head of Adults,Third Party Payments,474101,Purchase of Care,03/08/2022,4033003-I-22-5156058,"8,321.88",TAMARIS HEALTHCARE (ENGLAND) LTD.
Adult and Health Services,Head of Adults,Third Party Payments,474101,Purchase of Care,03/08/2022,4033003-I-22-5346943,"3,616.84",TAMARIS HEALTHCARE (ENGLAND) LTD.
Adult and Health Services,Head of Adults,Third Party Payments,474101,Purchase of Care,03/08/2022,4033004-I-22-5346748,"107,273.25",TAMARIS HEALTHCARE (ENGLAND) LTD.
Adult and Health Services,Head of Adults,Third Party Payments,474101,Purchase of Care,03/08/2022,4033047-I-22-5346939,"1,561.36",UNDERWOOD HALL LTD.
Adult and Health Services,Head of Adults,Third Party Payments,474101,Purchase of Care,03/08/2022,4033054-I-22-5346863,"7,512.00",VICTORIA HOUSE.
Adult and Health Services,Head of Adults,Third Party Payments,474101,Purchase of Care,03/08/2022,4033072-I-22-5346786,"39,926.84",WEST HOUSE CARE HOME LTD.
Adult and Health Services,Head of Adults,Third Party Payments,474101,Purchase of Care,03/08/2022,4033084-I-22-5346979,"4,873.73",WYVIS HOUSE CARE HOME LTD.
Adult and Health Services,Commissioning inc Supporting People,Third Party Payments,479111,Purchase of Care,03/08/2022,4032105-INV-2361,"2,769.00",APM CLEANING LTD.
Adult and Health Services,Head of Adults,Third Party Payments,472111,Purchase of Care,03/08/2022,4033017-I-22-5346465,"59,623.41",THE HUMAN SUPPORT GROUP LTD.
Adult and Health Services,Head of Adults,Third Party Payments,470101,Purchase of Care,03/08/2022,4031833-I-22-5346699,"83,530.89",A CHARLES THOMAS (CARE) LTD.
Adult and Health Services,Head of Adults,Third Party Payments,470101,Purchase of Care,03/08/2022,4032046-I-22-5346717,"64,392.58",ACTION FOR CARE LTD.
Adult and Health Services,Head of Adults,Third Party Payments,470101,Purchase of Care,03/08/2022,4032054-I-22-5346945,"108,581.35",AKARI CARE LTD.
Adult and Health Services,Head of Adults,Third Party Payments,470101,Purchase of Care,03/08/2022,4032056-I-22-5346764,"2,610.44",AKARI CARE LTD.
Adult and Health Services,Head of Adults,Third Party Payments,470101,Purchase of Care,03/08/2022,4032057-I-22-5346735,"88,231.29",AKARI CARE LTD.
Adult and Health Services,Head of Adults,Third Party Payments,470101,Purchase of Care,03/08/2022,4032078-I-22-5346740,"109,863.17",ALLIANCE CARE (TRENDLEWOOD) LTD.
Adult and Health Services,Head of Adults,Third Party Payments,470101,Purchase of Care,03/08/2022,4032085-I-22-5346879,"15,784.00",ANCHOR CAREHOMES LTD.
Adult and Health Services,Head of Adults,Third Party Payments,470101,Purchase of Care,03/08/2022,4032087-I-22-5346835,"42,332.71",ANCHOR HANOVER GROUP.
Adult and Health Services,Head of Adults,Third Party Payments,470101,Purchase of Care,03/08/2022,4032088-I-22-5156085,"9,712.00",ANCHOR TRUST.
Adult and Health Services,Head of Adults,Third Party Payments,470101,Purchase of Care,03/08/2022,4032108-I-22-5346898,"44,836.32",ASCOT CARE NORTH EAST LTD..
Adult and Health Services,Head of Adults,Third Party Payments,470101,Purchase of Care,03/08/2022,4032109-I-22-5346959,"12,045.40",ASHBOURNE LODGE CARE HOME.
Adult and Health Services,Head of Adults,Third Party Payments,470101,Purchase of Care,03/08/2022,4032113-I-22-5346901,"1,324.72",ASPIRE CARE GROUP T/A GRASMERE LODGE.
Adult and Health Services,Head of Adults,Third Party Payments,470101,Purchase of Care,03/08/2022,4032114-I-22-5346807,"7,868.40",ASPIRE CARE GROUP.
Adult and Health Services,Head of Adults,Third Party Payments,470101,Purchase of Care,03/08/2022,4032115-I-22-5346881,"12,405.92",ASPIRE CARE GROUP.
Adult and Health Services,Head of Adults,Third Party Payments,470101,Purchase of Care,03/08/2022,4032116-I-22-5346384,691.20,ASPIRE CARE GROUP.
Adult and Health Services,Head of Adults,Third Party Payments,470101,Purchase of Care,03/08/2022,4032116-I-22-5346726,"16,354.92",ASPIRE CARE GROUP.
Adult and Health Services,Head of Adults,Third Party Payments,470101,Purchase of Care,03/08/2022,4032125-I-22-5346799,"28,340.96",AUTISM CARE UK (4) LTD.
Adult and Health Services,Head of Adults,Third Party Payments,470101,Purchase of Care,03/08/2022,4032126-I-22-5346880,"2,747.16",AVERY HEALTH CARE LTD T/A HIGHCLIFFE CARE HOME.
Adult and Health Services,Head of Adults,Third Party Payments,470101,Purchase of Care,03/08/2022,4032128-I-22-5346854,"7,778.16",BARCHESTER HEALTHCARE HOMES LTD.
Adult and Health Services,Head of Adults,Third Party Payments,470101,Purchase of Care,03/08/2022,4032130-I-22-5346842,"4,400.00",BARCHESTER HEALTHCARE HOMES LTD.
Adult and Health Services,Head of Adults,Third Party Payments,470101,Purchase of Care,03/08/2022,4032133-I-22-5346825,"31,676.16",BARCHESTER HEALTHCARE HOMES LTD.
Adult and Health Services,Head of Adults,Third Party Payments,470101,Purchase of Care,03/08/2022,4032134-I-22-5346815,"1,233.12",BARCHESTER HEALTHCARE HOMES LTD.
Adult and Health Services,Head of Adults,Third Party Payments,470101,Purchase of Care,03/08/2022,4032136-I-22-5346806,"17,045.14",BARCHESTER HEALTHCARE HOMES LTD.
Adult and Health Services,Head of Adults,Third Party Payments,470101,Purchase of Care,03/08/2022,4032141-I-22-5346777,"12,854.30",BEAMISH RESIDENTIAL CARE HOME LTD.
Adult and Health Services,Head of Adults,Third Party Payments,470101,Purchase of Care,03/08/2022,4032146-I-22-5346922,"21,618.64",BENTON CARE SERVICES LTD.
Adult and Health Services,Head of Adults,Third Party Payments,470101,Purchase of Care,03/08/2022,4032155-I-22-5346674,"2,075.04",BONDCARE WILLINGTON LTD.
Adult and Health Services,Head of Adults,Third Party Payments,470101,Purchase of Care,03/08/2022,4032155-I-22-5346964,"133,342.68",BONDCARE WILLINGTON LTD.
Adult and Health Services,Head of Adults,Third Party Payments,470101,Purchase of Care,03/08/2022,4032156-I-22-5346468,"1,886.40",BONDCARE WILLINGTON LTD.
Adult and Health Services,Head of Adults,Third Party Payments,470101,Purchase of Care,03/08/2022,4032156-I-22-5346810,"71,324.34",BONDCARE WILLINGTON LTD.
Adult and Health Services,Head of Adults,Third Party Payments,470101,Purchase of Care,03/08/2022,4032158-I-22-5346549,"1,760.64",BONDCARE WILLINGTON LTD.
Adult and Health Services,Head of Adults,Third Party Payments,470101,Purchase of Care,03/08/2022,4032158-I-22-5346858,"106,121.44",BONDCARE WILLINGTON LTD.
Adult and Health Services,Head of Adults,Third Party Payments,470101,Purchase of Care,03/08/2022,4032159-I-22-5346733,"4,597.32",BOWDEN DERRA PARK LTD.
Adult and Health Services,Head of Adults,Third Party Payments,470101,Purchase of Care,03/08/2022,4032164-I-22-5346984,"65,966.16",BROOMHOUSE CARE LTD.
Adult and Health Services,Head of Adults,Third Party Payments,470101,Purchase of Care,03/08/2022,4032166-I-22-5346949,"2,512.00",BURLINGTON CARE LTD.
Adult and Health Services,Head of Adults,Third Party Payments,470101,Purchase of Care,03/08/2022,4032176-I-22-5346914,"5,805.57",CARE UK COMMUNITY PARTNERSHIPS LTD.
Adult and Health Services,Head of Adults,Third Party Payments,470101,Purchase of Care,03/08/2022,4032178-I-22-5346891,"60,952.90",CARE UK COMMUNITY PARTNERSHIPS LTD.
Adult and Health Services,Head of Adults,Third Party Payments,470101,Purchase of Care,03/08/2022,4032179-I-22-5346972,"5,792.64",CARE UK COMMUNITY PARTNERSHIPS LTD.
Adult and Health Services,Head of Adults,Third Party Payments,470101,Purchase of Care,03/08/2022,4032180-I-22-5346828,"2,692.00",CARE UK COMMUNITY PARTNERSHIPS LTD.
Adult and Health Services,Head of Adults,Third Party Payments,470101,Purchase of Care,03/08/2022,4032181-I-22-5346861,"3,570.49",CARE UK COMMUNITY PARTNERSHIPS LTD.
Adult and Health Services,Head of Adults,Third Party Payments,470101,Purchase of Care,03/08/2022,4032182-I-22-5346865,"40,737.35",CARE UK COMMUNITY PARTNERSHIPS LTD.
Adult and Health Services,Head of Adults,Third Party Payments,470101,Purchase of Care,03/08/2022,4032185-I-22-5346805,"3,860.84",CARELINE LIFESTYLES (UK) LTD.
Adult and Health Services,Head of Adults,Third Party Payments,470101,Purchase of Care,03/08/2022,4032186-I-22-5346911,"2,936.36",CARELINE LIFESTYLES (UK) LTD.
Adult and Health Services,Head of Adults,Third Party Payments,470101,Purchase of Care,03/08/2022,4032197-I-22-5346746,"20,920.16",CASTLEBANK CARE HOME LTD.
Adult and Health Services,Head of Adults,Third Party Payments,470101,Purchase of Care,03/08/2022,4032228-I-22-5346845,"2,540.00",CLEVEDEN CARE LTD T/A TEESDALE LODGE NURSING HOME.
Adult and Health Services,Head of Adults,Third Party Payments,470101,Purchase of Care,03/08/2022,4032229-I-22-5346980,"2,725.36",CLYDE CARE LIMITED T/A SPRINGHILL CAREHOME.
Adult and Health Services,Head of Adults,Third Party Payments,470101,Purchase of Care,03/08/2022,4032238-I-22-5346916,"2,747.16",CONAGS CARE LTD.
Adult and Health Services,Head of Adults,Third Party Payments,470101,Purchase of Care,03/08/2022,4032241-I-22-5346976,"8,330.52",CONSENSUS SUPPORT SERVICES LTD.
Adult and Health Services,Head of Adults,Third Party Payments,470101,Purchase of Care,03/08/2022,4032242-I-22-5346899,"2,762.16",COUNTRYWIDE CARE HOMES (2) LTD.
Adult and Health Services,Head of Adults,Third Party Payments,470101,Purchase of Care,03/08/2022,4032243-I-22-5346903,"43,714.97",COUNTRYWIDE CARE HOMES (2) LTD.
Adult and Health Services,Head of Adults,Third Party Payments,470101,Purchase of Care,03/08/2022,4032245-I-22-5346776,"22,239.64",COUNTRYWIDE CARE HOMES (2) LTD.
Adult and Health Services,Head of Adults,Third Party Payments,470101,Purchase of Care,03/08/2022,4032246-I-22-5346761,"114,219.14",COUNTRYWIDE CARE HOMES (2) LTD.
Adult and Health Services,Head of Adults,Third Party Payments,470101,Purchase of Care,03/08/2022,4032249-I-22-5346958,"46,214.58",CRAIGARRAN LTD.
Adult and Health Services,Head of Adults,Third Party Payments,470101,Purchase of Care,03/08/2022,4032255-I-22-5346829,"18,836.36",CYGNET OE LTD.
Adult and Health Services,Head of Adults,Third Party Payments,470101,Purchase of Care,03/08/2022,4032256-I-22-5346871,"42,021.24",CYGNET OE LTD.
Adult and Health Services,Head of Adults,Third Party Payments,470101,Purchase of Care,03/08/2022,4032258-I-22-5346738,"15,095.60",D3 CARE LTD.
Adult and Health Services,Head of Adults,Third Party Payments,470101,Purchase of Care,03/08/2022,4032293-I-22-5346792,"45,261.62",DEVONSHIRE HOUSE CARE LTD.
Adult and Health Services,Head of Adults,Third Party Payments,470101,Purchase of Care,03/08/2022,4032296-I-22-5346860,"93,273.13",DIPTON CARE HOME LTD.
Adult and Health Services,Head of Adults,Third Party Payments,470101,Purchase of Care,03/08/2022,4032304-I-22-5346875,"1,840.68",DOVE CARE LTD.
Adult and Health Services,Head of Adults,Third Party Payments,470101,Purchase of Care,03/08/2022,4032308-I-22-5346816,"76,772.44",DURHAM CARELINE LTD.
Adult and Health Services,Head of Adults,Third Party Payments,470101,Purchase of Care,03/08/2022,4032309-I-22-5346970,"112,585.83",DURHAM CARELINE LTD.
Adult and Health Services,Head of Adults,Third Party Payments,470101,Purchase of Care,03/08/2022,4032320-I-22-5346779,"6,489.84",EDUCATION & SERVICES FOR PEOPLE WITH AUTISM LTD (ESPA).
Adult and Health Services,Head of Adults,Third Party Payments,470101,Purchase of Care,03/08/2022,4032320-I-22-5346859,"5,374.92",EDUCATION & SERVICES FOR PEOPLE WITH AUTISM LTD (ESPA).
Adult and Health Services,Head of Adults,Third Party Payments,470101,Purchase of Care,03/08/2022,4032321-I-22-5346883,"10,200.24",EDUCATION & SERVICES FOR PEOPLE WITH AUTISM LTD (ESPA).
Adult and Health Services,Head of Adults,Third Party Payments,470101,Purchase of Care,03/08/2022,4032322-I-22-5346929,"11,554.80",EDUCATION & SERVICES FOR PEOPLE WITH AUTISM LTD (ESPA).
Adult and Health Services,Head of Adults,Third Party Payments,470101,Purchase of Care,03/08/2022,4032326-I-22-5346821,"51,129.24",ELBA CARE LTD.
Adult and Health Services,Head of Adults,Third Party Payments,470101,Purchase of Care,03/08/2022,4032335-I-22-5346961,"5,676.96",ELLERSHAW HOUSE LTD.
Adult and Health Services,Head of Adults,Third Party Payments,470101,Purchase of Care,03/08/2022,4032336-I-22-5346758,"3,264.68",ELPHA LODGE RESIDENTIAL CARE HOME  LTD.
Adult and Health Services,Head of Adults,Third Party Payments,470101,Purchase of Care,03/08/2022,4032347-I-22-5346876,"1,304.24",EOTHEN HOMES LTD.
Adult and Health Services,Head of Adults,Third Party Payments,470101,Purchase of Care,03/08/2022,4032348-I-22-5346754,"3,442.54",EOTHEN HOMES LTD.
Adult and Health Services,Head of Adults,Third Party Payments,470101,Purchase of Care,03/08/2022,4032352-I-22-5346923,"73,716.18",ESSENTIAL CARE & SUPPORT LTD.
Adult and Health Services,Head of Adults,Third Party Payments,470101,Purchase of Care,03/08/2022,4032360-I-22-5346847,"2,707.29",EXCLUSIVE CARE GROUP T/A EASTBOURNE CARE HOME.
Adult and Health Services,Head of Adults,Third Party Payments,470101,Purchase of Care,03/08/2022,4032378-I-22-5346902,"65,125.67",FOUR SEASONS (NO 9) LTD.
Adult and Health Services,Head of Adults,Third Party Payments,470101,Purchase of Care,03/08/2022,4032379-I-22-5346711,"70,417.32",FOUR SEASONS HOMES NO 1 LTD.
Adult and Health Services,Head of Adults,Third Party Payments,470101,Purchase of Care,03/08/2022,4032380-I-22-5346884,"2,667.16",FOUR SEASONS T/A MAPLE LODGE CARE HOME (SUNDERLAND).
Adult and Health Services,Head of Adults,Third Party Payments,470101,Purchase of Care,03/08/2022,4032391-I-22-5346823,"75,411.34",GAINFORD CARE HOMES LTD.
Adult and Health Services,Head of Adults,Third Party Payments,470101,Purchase of Care,03/08/2022,4032393-I-22-5346872,"93,628.40",GAINFORD CARE HOMES LTD.
Adult and Health Services,Head of Adults,Third Party Payments,470101,Purchase of Care,03/08/2022,4032394-I-22-5155572,"1,419.60",GAINFORD CARE HOMES LTD.
Adult and Health Services,Head of Adults,Third Party Payments,470101,Purchase of Care,03/08/2022,4032394-I-22-5346768,"6,325.73",GAINFORD CARE HOMES LTD.
Adult and Health Services,Head of Adults,Third Party Payments,470101,Purchase of Care,03/08/2022,4032395-I-22-5346720,"31,838.72",GAINFORD CARE HOMES LTD.
Adult and Health Services,Head of Adults,Third Party Payments,470101,Purchase of Care,03/08/2022,4032412-I-22-5156063,"4,784.92",GMA HEALTHCARE LTD T/A FOUNTAINS COURT CARE HOME.
Adult and Health Services,Head of Adults,Third Party Payments,470101,Purchase of Care,03/08/2022,4032412-I-22-5346952,"2,734.24",GMA HEALTHCARE LTD T/A FOUNTAINS COURT CARE HOME.
Adult and Health Services,Head of Adults,Third Party Payments,470101,Purchase of Care,03/08/2022,4032415-I-22-5346727,"2,444.00",GREATHAM HOSPITAL BROTHER HOUSE.
Adult and Health Services,Head of Adults,Third Party Payments,470101,Purchase of Care,03/08/2022,4032416-I-22-5346953,"2,364.60",GREEN CARE HOMES LTD.
Adult and Health Services,Head of Adults,Third Party Payments,470101,Purchase of Care,03/08/2022,4032428-I-22-5346701,"2,558.44",HC-ONE BEAMISH LTD.
Adult and Health Services,Head of Adults,Third Party Payments,470101,Purchase of Care,03/08/2022,4032429-I-22-5346794,"109,111.95",HC-ONE BEAMISH LTD.
Adult and Health Services,Head of Adults,Third Party Payments,470101,Purchase of Care,03/08/2022,4032430-I-22-5346723,"113,274.52",HC-ONE BEAMISH LTD.
Adult and Health Services,Head of Adults,Third Party Payments,470101,Purchase of Care,03/08/2022,4032431-I-22-5346704,"90,687.68",HC-ONE BEAMISH LTD.
Adult and Health Services,Head of Adults,Third Party Payments,470101,Purchase of Care,03/08/2022,4032432-I-22-5346928,"68,342.32",HC-ONE BEAMISH LTD.
Adult and Health Services,Head of Adults,Third Party Payments,470101,Purchase of Care,03/08/2022,4032433-I-22-5346870,"99,036.41",HC-ONE BEAMISH LTD.
Adult and Health Services,Head of Adults,Third Party Payments,470101,Purchase of Care,03/08/2022,4032434-I-22-5346849,"2,807.96",HC-ONE LTD.
Adult and Health Services,Head of Adults,Third Party Payments,470101,Purchase of Care,03/08/2022,4032435-I-22-5346886,"59,388.94",HC-ONE LTD.
Adult and Health Services,Head of Adults,Third Party Payments,470101,Purchase of Care,03/08/2022,4032437-I-22-5346802,"75,276.23",HC-ONE LTD.
Adult and Health Services,Head of Adults,Third Party Payments,470101,Purchase of Care,03/08/2022,4032438-I-22-5346867,"44,898.62",HC-ONE LTD.
Adult and Health Services,Head of Adults,Third Party Payments,470101,Purchase of Care,03/08/2022,4032439-I-22-5346941,"52,884.75",HC-ONE LTD.
Adult and Health Services,Head of Adults,Third Party Payments,470101,Purchase of Care,03/08/2022,4032440-I-22-5346827,"87,915.78",HC-ONE LTD.
Adult and Health Services,Head of Adults,Third Party Payments,470101,Purchase of Care,03/08/2022,4032443-I-22-5346951,"2,864.12",HC-ONE LTD.
Adult and Health Services,Head of Adults,Third Party Payments,470101,Purchase of Care,03/08/2022,4032444-I-22-5346692,"5,922.00",HC-ONE LTD..
Adult and Health Services,Head of Adults,Third Party Payments,470101,Purchase of Care,03/08/2022,4032445-I-22-5156034,"2,187.48",HC-ONE OVAL LTD.
Adult and Health Services,Head of Adults,Third Party Payments,470101,Purchase of Care,03/08/2022,4032445-I-22-5346921,"2,187.48",HC-ONE OVAL LTD.
Adult and Health Services,Head of Adults,Third Party Payments,470101,Purchase of Care,03/08/2022,4032446-I-22-5346839,"2,356.00",HC-ONE T/A PRIORY GARDENS.
Adult and Health Services,Head of Adults,Third Party Payments,470101,Purchase of Care,03/08/2022,4032454-I-22-5346869,"21,711.92",HESLEY CARE GROUP LTD.
Adult and Health Services,Head of Adults,Third Party Payments,470101,Purchase of Care,03/08/2022,4032460-I-22-5346836,"56,593.62",HILL CARE 3 LTD.
Adult and Health Services,Head of Adults,Third Party Payments,470101,Purchase of Care,03/08/2022,4032466-I-22-5346744,"6,803.16",HOMES TOGETHER LTD.
Adult and Health Services,Head of Adults,Third Party Payments,470101,Purchase of Care,03/08/2022,4032475-I-22-5346983,"31,591.44",IDEAL CARE (NORTH) LTD.
Adult and Health Services,Head of Adults,Third Party Payments,470101,Purchase of Care,03/08/2022,4032481-I-22-5346728,"6,125.20",INTERACT CARE LTD.
Adult and Health Services,Head of Adults,Third Party Payments,470101,Purchase of Care,03/08/2022,4032482-I-22-5346765,"24,992.80",INTERACT CARE LTD.
Adult and Health Services,Head of Adults,Third Party Payments,470101,Purchase of Care,03/08/2022,4032482-I-22-5346950,"8,467.20",INTERACT CARE LTD.
Adult and Health Services,Head of Adults,Third Party Payments,470101,Purchase of Care,03/08/2022,4032587-I-22-5346784,"70,373.19",LAMBTON HOUSE LTD.
Adult and Health Services,Head of Adults,Third Party Payments,470101,Purchase of Care,03/08/2022,4032588-I-22-5346709,"55,546.64",LANGLEY HOUSE CARE HOME LTD.
Adult and Health Services,Head of Adults,Third Party Payments,470101,Purchase of Care,03/08/2022,4032595-I-22-5346897,"132,503.89",LEAZES HALL CARE HOME LTD.
Adult and Health Services,Head of Adults,Third Party Payments,470101,Purchase of Care,03/08/2022,4032598-I-22-5346696,"2,558.24",LENORE CARE LTD.
Adult and Health Services,Head of Adults,Third Party Payments,470101,Purchase of Care,03/08/2022,4032599-I-22-5346889,"57,999.35",LEONARD CHESHIRE DISABILITY.
Adult and Health Services,Head of Adults,Third Party Payments,470101,Purchase of Care,03/08/2022,4032600-I-22-5346774,"6,999.80",LEONARD CHESHIRE DISABILITY.
Adult and Health Services,Head of Adults,Third Party Payments,470101,Purchase of Care,03/08/2022,4032601-I-22-5346731,"4,824.80",LEONARD CHESHIRE DISABILITY.
Adult and Health Services,Head of Adults,Third Party Payments,470101,Purchase of Care,03/08/2022,4032618-I-22-5346772,"1,050.00",LITTLEDALE HALL THERAPEUTIC COMMUNITY LTD.
Adult and Health Services,Head of Adults,Third Party Payments,470101,Purchase of Care,03/08/2022,4032619-I-22-5346919,"4,010.52",LIVING AMBITIONS T/A WHITWOOD GRANGE.
Adult and Health Services,Head of Adults,Third Party Payments,470101,Purchase of Care,03/08/2022,4032620-I-22-5346796,"2,480.00",LONGWOOD LODGE CARE LTD.
Adult and Health Services,Head of Adults,Third Party Payments,470101,Purchase of Care,03/08/2022,4032635-I-22-5346743,"7,009.80",MALHOTRA CARE HOMES LTD.
Adult and Health Services,Head of Adults,Third Party Payments,470101,Purchase of Care,03/08/2022,4032636-I-22-5346750,"69,088.70",MALHOTRA CARE HOMES LTD.
Adult and Health Services,Head of Adults,Third Party Payments,470101,Purchase of Care,03/08/2022,4032645-I-22-5346705,"78,082.62",MARIA MALLABAND CARE GROUP LTD.
Adult and Health Services,Head of Adults,Third Party Payments,470101,Purchase of Care,03/08/2022,4032651-I-22-5346803,"6,516.64",MARIPOSA CARE GROUP LTD.
Adult and Health Services,Head of Adults,Third Party Payments,470101,Purchase of Care,03/08/2022,4032652-I-22-5346868,"38,281.83",MARIPOSA CARE GROUP LTD.
Adult and Health Services,Head of Adults,Third Party Payments,470101,Purchase of Care,03/08/2022,4032653-I-22-5346965,"92,246.80",MARIPOSA CARE LTD.
Adult and Health Services,Head of Adults,Third Party Payments,470101,Purchase of Care,03/08/2022,4032663-I-22-5346893,"9,088.49",MARTON CARE HOMES LTD T/A ELIZABETH FLEMING CARE HOME.
Adult and Health Services,Head of Adults,Third Party Payments,470101,Purchase of Care,03/08/2022,4032664-I-22-5346707,"10,208.00",MARTON CARE HOMES LTD T/A GROSVENOR PARK CARE HOME.
Adult and Health Services,Head of Adults,Third Party Payments,470101,Purchase of Care,03/08/2022,4032665-I-22-5346703,"63,134.74",MARTON CARE HOMES LTD T/A LANGLEY PARK CARE HOME.
Adult and Health Services,Head of Adults,Third Party Payments,470101,Purchase of Care,03/08/2022,4032666-I-22-5346722,"13,411.71",MARTON CARE HOMES LTD T/A RIVERSIDE VIEW CARE HOME.
Adult and Health Services,Head of Adults,Third Party Payments,470101,Purchase of Care,03/08/2022,4032691-I-22-5346734,"2,364.00",MERIDIAN HEALTHCARE LTD.
Adult and Health Services,Head of Adults,Third Party Payments,470101,Purchase of Care,03/08/2022,4032692-I-22-5346698,"36,190.66",MERRYWELL CARE (BELMONT GRANGE) LTD.
Adult and Health Services,Head of Adults,Third Party Payments,470101,Purchase of Care,03/08/2022,4032693-I-22-5346771,"1,180.00",METHODIST HOMES.
Adult and Health Services,Head of Adults,Third Party Payments,470101,Purchase of Care,03/08/2022,4032714-I-22-5346609,"28,541.44",MOONRISE 24HR RECRUITMENT LTD.
Adult and Health Services,Head of Adults,Third Party Payments,470101,Purchase of Care,03/08/2022,4032715-I-22-5346904,"25,874.10",MOORLAND HOLDINGS (NE) LTD.
Adult and Health Services,Head of Adults,Third Party Payments,470101,Purchase of Care,03/08/2022,4032778-I-22-5346712,"18,490.39",NEWLIFE CARE SERVICES LTD.
Adult and Health Services,Head of Adults,Third Party Payments,470101,Purchase of Care,03/08/2022,4032783-I-22-5346716,"16,558.36",NORTH EAST AUTISM SOCIETY.
Adult and Health Services,Head of Adults,Third Party Payments,470101,Purchase of Care,03/08/2022,4032786-I-22-5346848,"6,727.44",NORTH EAST AUTISM SOCIETY.
Adult and Health Services,Head of Adults,Third Party Payments,470101,Purchase of Care,03/08/2022,4032787-PIG_135886,"7,820.24",NORTH EAST AUTISM SOCIETY.
Adult and Health Services,Head of Adults,Third Party Payments,470101,Purchase of Care,03/08/2022,4032788-I-22-5346809,"6,361.07",NORTH EAST AUTISM SOCIETY.
Adult and Health Services,Head of Adults,Third Party Payments,470101,Purchase of Care,03/08/2022,4032789-I-22-5346801,"60,000.88",NORTH EAST AUTISM SOCIETY.
Adult and Health Services,Head of Adults,Third Party Payments,470101,Purchase of Care,03/08/2022,4032791-I-22-5346760,"3,373.03",NORTH EAST CARE HOMES LTD.
Adult and Health Services,Head of Adults,Third Party Payments,470101,Purchase of Care,03/08/2022,4032794-I-22-5346730,"4,713.62",NORTHUMBRIA CARE LTD.
Adult and Health Services,Head of Adults,Third Party Payments,470101,Purchase of Care,03/08/2022,4032795-I-22-5346938,"7,448.32",NORWOOD.
Adult and Health Services,Head of Adults,Third Party Payments,470101,Purchase of Care,03/08/2022,4032807-I-22-5346755,"8,053.20",OSWALD HOUSE CARE HOME LTD.
Adult and Health Services,Head of Adults,Third Party Payments,470101,Purchase of Care,03/08/2022,4032808-I-22-5346518,"1,881.60",OSWALD HOUSE CARE HOME LTD.
Adult and Health Services,Head of Adults,Third Party Payments,470101,Purchase of Care,03/08/2022,4032808-I-22-5346834,"18,709.20",OSWALD HOUSE CARE HOME LTD.
Adult and Health Services,Head of Adults,Third Party Payments,470101,Purchase of Care,03/08/2022,4032809-I-22-5346767,"5,368.80",OSWALD HOUSE CARE HOME LTD.
Adult and Health Services,Head of Adults,Third Party Payments,470101,Purchase of Care,03/08/2022,4032810-I-22-5346589,588.00,OSWALD HOUSE CARE HOME LTD.
Adult and Health Services,Head of Adults,Third Party Payments,470101,Purchase of Care,03/08/2022,4032810-I-22-5346896,"8,053.20",OSWALD HOUSE CARE HOME LTD.
Adult and Health Services,Head of Adults,Third Party Payments,470101,Purchase of Care,03/08/2022,4032811-I-22-5346715,"8,053.20",OSWALD HOUSE CARE HOME LTD.
Adult and Health Services,Head of Adults,Third Party Payments,470101,Purchase of Care,03/08/2022,4032815-I-22-5346932,"40,701.28",PARAMOUNT CARE (GATESHEAD) LTD.
Adult and Health Services,Head of Adults,Third Party Payments,470101,Purchase of Care,03/08/2022,4032816-I-22-5346955,"21,339.63",PATHWAYS CARE GROUP LTD.
Adult and Health Services,Head of Adults,Third Party Payments,470101,Purchase of Care,03/08/2022,4032836-I-22-5346814,"2,720.00",PEARLCARE (KENDAL) LTD T/A GILLING REANE CARE HOME.
Adult and Health Services,Head of Adults,Third Party Payments,470101,Purchase of Care,03/08/2022,4032846-I-22-5346822,"18,847.12",POPULAR CARE LTD..
Adult and Health Services,Head of Adults,Third Party Payments,470101,Purchase of Care,03/08/2022,4032853-I-22-5346781,"26,439.65",POTENSIAL LTD T/A POTENS.
Adult and Health Services,Head of Adults,Third Party Payments,470101,Purchase of Care,03/08/2022,4032854-I-22-5346960,"45,300.40",PREMIER CARE HOMES LTD.
Adult and Health Services,Head of Adults,Third Party Payments,470101,Purchase of Care,03/08/2022,4032855-I-22-5346866,"108,635.93",PREMIER CARE HOMES LTD.
Adult and Health Services,Head of Adults,Third Party Payments,470101,Purchase of Care,03/08/2022,4032857-I-22-5346936,"2,693.92",PREMIER NURSING HOMES T/A BRIARWOOD CARE HOME.
Adult and Health Services,Head of Adults,Third Party Payments,470101,Purchase of Care,03/08/2022,4032863-I-21-1613140,"2,416.00",QUALIA CARE LTD T/A BIRCHLEY HALL.
Adult and Health Services,Head of Adults,Third Party Payments,470101,Purchase of Care,03/08/2022,4032867-I-22-5346837,"3,964.64",QUARRIERS.
Adult and Health Services,Head of Adults,Third Party Payments,470101,Purchase of Care,03/08/2022,4032876-I-22-5346925,"23,336.60",RAYSON HOMES LTD.
Adult and Health Services,Head of Adults,Third Party Payments,470101,Purchase of Care,03/08/2022,4032094-I-22-5346974,"2,505.84",REDACTED - PAYMENT TO INDIVIDUAL
Adult and Health Services,Head of Adults,Third Party Payments,470101,Purchase of Care,03/08/2022,4032720-I-22-5346708,"26,219.00",REDACTED - PAYMENT TO INDIVIDUAL
Adult and Health Services,Head of Adults,Third Party Payments,470101,Purchase of Care,03/08/2022,4032765-I-22-5346905,"2,040.00",REDACTED - PAYMENT TO INDIVIDUAL
Adult and Health Services,Head of Adults,Third Party Payments,470101,Purchase of Care,03/08/2022,4032894-I-22-5346888,"62,855.25",REDACTED - PAYMENT TO INDIVIDUAL
Adult and Health Services,Head of Adults,Third Party Payments,470101,Purchase of Care,03/08/2022,4032895-I-22-5346757,"3,864.00",REDACTED - PAYMENT TO INDIVIDUAL
Adult and Health Services,Head of Adults,Third Party Payments,470101,Purchase of Care,03/08/2022,4032883-I-22-5346793,"10,990.04",RESOLVE (CARE NORTHERN) LTD..
Adult and Health Services,Head of Adults,Third Party Payments,470101,Purchase of Care,03/08/2022,4032884-I-22-5346915,"4,089.56",RESOLVE (CARE NORTHERN) LTD..
Adult and Health Services,Head of Adults,Third Party Payments,470101,Purchase of Care,03/08/2022,4032899-I-22-5346818,"98,174.26",ROSEBERRY CARE CENTRES GB LTD.
Adult and Health Services,Head of Adults,Third Party Payments,470101,Purchase of Care,03/08/2022,4032900-I-22-5346920,528.56,ROSEBERRY CARE CENTRES GB LTD.
Adult and Health Services,Head of Adults,Third Party Payments,470101,Purchase of Care,03/08/2022,4032902-I-22-5346844,"20,760.96",ROSEMOUNT TRUST.
Adult and Health Services,Head of Adults,Third Party Payments,470101,Purchase of Care,03/08/2022,4032903-I-22-5346878,"1,115.40",ROSEWOOD HR SERVICES LTD T/A ROSEWOOD HOUSE CARE HOME.
Adult and Health Services,Head of Adults,Third Party Payments,470101,Purchase of Care,03/08/2022,4032906-I-22-5346850,"2,634.24",RUNWOOD HOMES LTD.
Adult and Health Services,Head of Adults,Third Party Payments,470101,Purchase of Care,03/08/2022,4032911-I-22-5346713,"5,839.52",SAINT JOHN OF GOD HOSPITALLER SERVICES.
Adult and Health Services,Head of Adults,Third Party Payments,470101,Purchase of Care,03/08/2022,4032918-I-22-5346812,"5,368.72",SANCTUARY CARE (ENGLAND) LTD.
Adult and Health Services,Head of Adults,Third Party Payments,470101,Purchase of Care,03/08/2022,4032920-I-22-5346697,"134,181.37",SANCTUARY CARE (ENGLAND) LTD.
Adult and Health Services,Head of Adults,Third Party Payments,470101,Purchase of Care,03/08/2022,4032921-I-22-5346887,"80,291.59",SANCTUARY CARE (ENGLAND) LTD.
Adult and Health Services,Head of Adults,Third Party Payments,470101,Purchase of Care,03/08/2022,4032922-I-22-5346700,"100,810.06",SANCTUARY CARE (ENGLAND) LTD.
Adult and Health Services,Head of Adults,Third Party Payments,470101,Purchase of Care,03/08/2022,4032933-I-22-5346942,"21,217.80",SELF (NORTH EAST) LTD.
Adult and Health Services,Head of Adults,Third Party Payments,470101,Purchase of Care,03/08/2022,4032935-I-22-5346753,"118,588.72",SHAFTESBURY CARE GROUP LTD.
Adult and Health Services,Head of Adults,Third Party Payments,470101,Purchase of Care,03/08/2022,4032938-I-22-5346926,"58,958.17",SHERBURN HOUSE CHARITY.
Adult and Health Services,Head of Adults,Third Party Payments,470101,Purchase of Care,03/08/2022,4032940-I-22-5346907,"38,074.52",SHOTLEY PARK HOMES FOR THE ELDERLY LTD.
Adult and Health Services,Head of Adults,Third Party Payments,470101,Purchase of Care,03/08/2022,4032942-I-22-5346918,"5,200.00",SIGNATURE AT ASCOT GRANGE CARE HOME.
Adult and Health Services,Head of Adults,Third Party Payments,470101,Purchase of Care,03/08/2022,4032945-I-22-5346937,"2,667.16",SLW LTD.
Adult and Health Services,Head of Adults,Third Party Payments,470101,Purchase of Care,03/08/2022,4032950-I-22-5346975,"24,887.77",SOVEREIGN CARE (NORTH EAST) LTD.
Adult and Health Services,Head of Adults,Third Party Payments,470101,Purchase of Care,03/08/2022,4032952-I-22-5346874,"22,932.91",SPECIALITY CARE (REHAB) LTD.
Adult and Health Services,Head of Adults,Third Party Payments,470101,Purchase of Care,03/08/2022,4032956-I-22-5346791,"45,109.30",ST ANDREWS MPS LTD.
Adult and Health Services,Head of Adults,Third Party Payments,470101,Purchase of Care,03/08/2022,4032958-I-22-5346908,"2,724.28",ST CUTHBERTS CARE.
Adult and Health Services,Head of Adults,Third Party Payments,470101,Purchase of Care,03/08/2022,4032959-I-22-5346770,"4,496.40",ST CUTHBERTS CARE.
Adult and Health Services,Head of Adults,Third Party Payments,470101,Purchase of Care,03/08/2022,4032960-I-22-5346702,"2,722.00",ST CUTHBERTS CARE.
Adult and Health Services,Head of Adults,Third Party Payments,470101,Purchase of Care,03/08/2022,4032965-I-22-5346742,"89,930.60",ST PHILIPS CARE LTD.
Adult and Health Services,Head of Adults,Third Party Payments,470101,Purchase of Care,03/08/2022,4032966-I-22-5346924,"92,212.00",ST PHILIPS CARE LTD.
Adult and Health Services,Head of Adults,Third Party Payments,470101,Purchase of Care,03/08/2022,4032967-I-22-5156008,"4,675.65",ST PHILIPS CARE LTD.
Adult and Health Services,Head of Adults,Third Party Payments,470101,Purchase of Care,03/08/2022,4032967-I-22-5346909,"7,795.15",ST PHILIPS CARE LTD.
Adult and Health Services,Head of Adults,Third Party Payments,470101,Purchase of Care,03/08/2022,4032978-I-22-4482365,"24,656.00",STOCKTON CARE LTD.
Adult and Health Services,Head of Adults,Third Party Payments,470101,Purchase of Care,03/08/2022,4032978-I-22-4832649,"1,656.00",STOCKTON CARE LTD.
Adult and Health Services,Head of Adults,Third Party Payments,470101,Purchase of Care,03/08/2022,4032980-I-22-5346790,"30,844.96",SUNNY OKUKPOLOR HUMPHREYS.
Adult and Health Services,Head of Adults,Third Party Payments,470101,Purchase of Care,03/08/2022,4032991-I-22-5346927,"6,625.32",SWANTON CARE & COMMUNITY (AUTISM NORTH) LTD.
Adult and Health Services,Head of Adults,Third Party Payments,470101,Purchase of Care,03/08/2022,4032992-I-22-5346977,"24,583.28",SWANTON CARE & COMMUNITY (AUTISM NORTH) LTD.
Adult and Health Services,Head of Adults,Third Party Payments,470101,Purchase of Care,03/08/2022,4032993-I-22-5346824,"8,222.04",SWANTON CARE & COMMUNITY (AUTISM NORTH) LTD.
Adult and Health Services,Head of Adults,Third Party Payments,470101,Purchase of Care,03/08/2022,4032994-I-22-5346800,"5,467.08",SWANTON CARE & COMMUNITY (AUTISM NORTH) LTD.
Adult and Health Services,Head of Adults,Third Party Payments,470101,Purchase of Care,03/08/2022,4032995-I-22-5346811,"7,466.80",SWANTON CARE & COMMUNITY (AUTISM NORTH) LTD.
Adult and Health Services,Head of Adults,Third Party Payments,470101,Purchase of Care,03/08/2022,4032996-I-22-5346762,"40,303.96",SWANTON CARE & COMMUNITY (AUTISM NORTH) LTD.
Adult and Health Services,Head of Adults,Third Party Payments,470101,Purchase of Care,03/08/2022,4032998-I-22-5346795,"2,580.40",TAMARIS HEALTHCARE (ENGLAND) LTD.
Adult and Health Services,Head of Adults,Third Party Payments,470101,Purchase of Care,03/08/2022,4033012-I-22-5155604,"40,687.77",THE FIELDS CARE HOME.
Adult and Health Services,Head of Adults,Third Party Payments,470101,Purchase of Care,03/08/2022,4033012-I-22-5346808,"44,487.77",THE FIELDS CARE HOME.
Adult and Health Services,Head of Adults,Third Party Payments,470101,Purchase of Care,03/08/2022,4033015-I-22-5346739,"108,866.00",THE HAWTHORNS LODGE LTD.
Adult and Health Services,Head of Adults,Third Party Payments,470101,Purchase of Care,03/08/2022,4033019-I-22-5346838,"3,121.56",THE LAURELS CARE SERVICES LTD.
Adult and Health Services,Head of Adults,Third Party Payments,470101,Purchase of Care,03/08/2022,4033020-I-22-5346725,"16,868.28",THE ORDER OF THE GOOD & PERPETUAL SUCCOUR.
Adult and Health Services,Head of Adults,Third Party Payments,470101,Purchase of Care,03/08/2022,4033021-I-22-5346819,"19,303.64",THE PERCY HEDLEY FOUNDATION.
Adult and Health Services,Head of Adults,Third Party Payments,470101,Purchase of Care,03/08/2022,4033022-I-22-5346917,"2,850.56",THE SALVATION ARMY T/A VILLA ADASTRA CARE HOME.
Adult and Health Services,Head of Adults,Third Party Payments,470101,Purchase of Care,03/08/2022,4033038-I-22-5346930,"2,540.00",TL CARE LTD.
Adult and Health Services,Head of Adults,Third Party Payments,470101,Purchase of Care,03/08/2022,4033042-I-22-5346719,"70,835.28",TRIMS GYM LTD.
Adult and Health Services,Head of Adults,Third Party Payments,470101,Purchase of Care,03/08/2022,4033044-I-22-5346944,"7,982.24",TRUST CARE MANAGEMENT LTD.
Adult and Health Services,Head of Adults,Third Party Payments,470101,Purchase of Care,03/08/2022,4033049-I-22-5346841,"20,303.68",VALDIGARTH RESIDENTIAL CARE HOME.
Adult and Health Services,Head of Adults,Third Party Payments,470101,Purchase of Care,03/08/2022,4033061-I-22-5231614,"17,548.57",VOYAGE 1 LTD.
Adult and Health Services,Head of Adults,Third Party Payments,470101,Purchase of Care,03/08/2022,4033061-I-22-5346946,"1,185.71",VOYAGE 1 LTD.
Adult and Health Services,Head of Adults,Third Party Payments,470101,Purchase of Care,03/08/2022,4033062-I-22-5346978,"16,922.58",VOYAGE 1 LTD.
Adult and Health Services,Head of Adults,Third Party Payments,470101,Purchase of Care,03/08/2022,4033063-I-22-5346766,"5,577.04",VOYAGE 1 LTD.
Adult and Health Services,Head of Adults,Third Party Payments,470101,Purchase of Care,03/08/2022,4033064-I-22-5346892,"16,316.84",VOYAGE 1 LTD.
Adult and Health Services,Head of Adults,Third Party Payments,470101,Purchase of Care,03/08/2022,4033065-I-22-5346910,"10,897.00",VOYAGE 1 LTD.
Adult and Health Services,Head of Adults,Third Party Payments,470101,Purchase of Care,03/08/2022,4033070-I-22-5346885,"2,710.60",WELLBURN CARE HOMES LTD.
Adult and Health Services,Head of Adults,Third Party Payments,470101,Purchase of Care,03/08/2022,4033071-I-22-5346948,"1,375.64",WELLBURN CARE HOMES LTD.
Adult and Health Services,Head of Adults,Third Party Payments,470101,Purchase of Care,03/08/2022,4033073-I-22-5346797,"99,506.69",WEST LODGE CARE HOMES LTD.
Adult and Health Services,Head of Adults,Third Party Payments,470101,Purchase of Care,03/08/2022,4033079-I-22-5346749,"73,294.90",WILLIAMS & SPENCELEY LTD.
Adult and Health Services,Head of Adults,Third Party Payments,470101,Purchase of Care,03/08/2022,4033086-I-22-5346912,"2,297.12",YORKARE HOMES LTD.
Adult and Health Services,Head of Adults,Third Party Payments,478101,Purchase of Care,03/08/2022,4031839-I-22-5346381,"19,683.65",ACCEPT CARE LTD.
Adult and Health Services,Head of Adults,Third Party Payments,478101,Purchase of Care,03/08/2022,4031839-I-22-5346382,"25,985.24",ACCEPT CARE LTD.
Adult and Health Services,Head of Adults,Third Party Payments,478101,Purchase of Care,03/08/2022,4031839-I-22-5346385,"38,158.28",ACCEPT CARE LTD.
Adult and Health Services,Head of Adults,Third Party Payments,478101,Purchase of Care,03/08/2022,4031839-I-22-5346386,"11,827.56",ACCEPT CARE LTD.
Adult and Health Services,Head of Adults,Third Party Payments,478101,Purchase of Care,03/08/2022,4031839-I-22-5346431,"36,757.08",ACCEPT CARE LTD.
Adult and Health Services,Head of Adults,Third Party Payments,478101,Purchase of Care,03/08/2022,4031839-I-22-5346470,"36,854.24",ACCEPT CARE LTD.
Adult and Health Services,Head of Adults,Third Party Payments,478101,Purchase of Care,03/08/2022,4031839-I-22-5346471,"22,101.60",ACCEPT CARE LTD.
Adult and Health Services,Head of Adults,Third Party Payments,478101,Purchase of Care,03/08/2022,4032117-I-22-5153784,"3,808.84",ASPIRE HEALTHCARE LTD.
Adult and Health Services,Head of Adults,Third Party Payments,478101,Purchase of Care,03/08/2022,4032117-I-22-5346461,"3,808.84",ASPIRE HEALTHCARE LTD.
Adult and Health Services,Head of Adults,Third Party Payments,478101,Purchase of Care,03/08/2022,4032125-I-22-5346397,"11,312.96",AUTISM CARE UK (4) LTD.
Adult and Health Services,Head of Adults,Third Party Payments,478101,Purchase of Care,03/08/2022,4032125-I-22-5346566,"21,732.64",AUTISM CARE UK (4) LTD.
Adult and Health Services,Head of Adults,Third Party Payments,478101,Purchase of Care,03/08/2022,4032125-I-22-5346650,"13,798.32",AUTISM CARE UK (4) LTD.
Adult and Health Services,Head of Adults,Third Party Payments,478101,Purchase of Care,03/08/2022,4032125-I-22-5346657,"14,536.52",AUTISM CARE UK (4) LTD.
Adult and Health Services,Head of Adults,Third Party Payments,478101,Purchase of Care,03/08/2022,4032143-I-22-5346436,"17,762.72",BEECHFIELD CARE & SUPPORT LTD.
Adult and Health Services,Head of Adults,Third Party Payments,478101,Purchase of Care,03/08/2022,4032157-I-22-5346503,"30,716.20",BONDCARE WILLINGTON LTD.
Adult and Health Services,Head of Adults,Third Party Payments,478101,Purchase of Care,03/08/2022,4032157-I-22-5346651,"79,824.60",BONDCARE WILLINGTON LTD.
Adult and Health Services,Head of Adults,Third Party Payments,478101,Purchase of Care,03/08/2022,4032235-I-22-5346479,"24,572.68",COMMUNITY INTEGRATED CARE LTD.
Adult and Health Services,Head of Adults,Third Party Payments,478101,Purchase of Care,03/08/2022,4032235-I-22-5346480,"21,399.84",COMMUNITY INTEGRATED CARE LTD.
Adult and Health Services,Head of Adults,Third Party Payments,478101,Purchase of Care,03/08/2022,4032235-I-22-5346562,"14,334.44",COMMUNITY INTEGRATED CARE LTD.
Adult and Health Services,Head of Adults,Third Party Payments,478101,Purchase of Care,03/08/2022,4032235-I-22-5346573,"15,861.04",COMMUNITY INTEGRATED CARE LTD.
Adult and Health Services,Head of Adults,Third Party Payments,478101,Purchase of Care,03/08/2022,4032235-I-22-5346574,"35,956.86",COMMUNITY INTEGRATED CARE LTD.
Adult and Health Services,Head of Adults,Third Party Payments,478101,Purchase of Care,03/08/2022,4032235-I-22-5346575,"19,764.84",COMMUNITY INTEGRATED CARE LTD.
Adult and Health Services,Head of Adults,Third Party Payments,478101,Purchase of Care,03/08/2022,4032235-I-22-5346645,"26,226.24",COMMUNITY INTEGRATED CARE LTD.
Adult and Health Services,Head of Adults,Third Party Payments,478101,Purchase of Care,03/08/2022,4032250-I-22-5346571,"10,522.64",CREATIVE SUPPORT LTD.
Adult and Health Services,Head of Adults,Third Party Payments,478101,Purchase of Care,03/08/2022,4032250-I-22-5346653,"32,802.08",CREATIVE SUPPORT LTD.
Adult and Health Services,Head of Adults,Third Party Payments,478101,Purchase of Care,03/08/2022,4032250-I-22-5346656,"3,214.68",CREATIVE SUPPORT LTD.
Adult and Health Services,Head of Adults,Third Party Payments,478101,Purchase of Care,03/08/2022,4032250-I-22-5346661,"16,995.96",CREATIVE SUPPORT LTD.
Adult and Health Services,Head of Adults,Third Party Payments,478101,Purchase of Care,03/08/2022,4032288-I-22-5346378,"13,391.36",DEACONSTAR LTD.
Adult and Health Services,Head of Adults,Third Party Payments,478101,Purchase of Care,03/08/2022,4032288-I-22-5346513,"7,392.20",DEACONSTAR LTD.
Adult and Health Services,Head of Adults,Third Party Payments,478101,Purchase of Care,03/08/2022,4032288-I-22-5346588,"14,462.88",DEACONSTAR LTD.
Adult and Health Services,Head of Adults,Third Party Payments,478101,Purchase of Care,03/08/2022,4032288-I-22-5346672,"11,184.60",DEACONSTAR LTD.
Adult and Health Services,Head of Adults,Third Party Payments,478101,Purchase of Care,03/08/2022,4032288-I-22-5346673,"5,863.56",DEACONSTAR LTD.
Adult and Health Services,Head of Adults,Third Party Payments,478101,Purchase of Care,03/08/2022,4032325-I-22-5346508,"24,567.84",ELAN CARE WHITETHORN LTD.
Adult and Health Services,Head of Adults,Third Party Payments,478101,Purchase of Care,03/08/2022,4032337-I-22-5346600,"15,684.44",EMBRACING CARE.
Adult and Health Services,Head of Adults,Third Party Payments,478101,Purchase of Care,03/08/2022,4032338-I-22-5346354,"43,640.52",EMBRACING CARE.
Adult and Health Services,Head of Adults,Third Party Payments,478101,Purchase of Care,03/08/2022,4032353-I-22-5346375,"13,309.96",ESSENTIAL CARE & SUPPORT LTD.
Adult and Health Services,Head of Adults,Third Party Payments,478101,Purchase of Care,03/08/2022,4032353-I-22-5346396,"27,381.41",ESSENTIAL CARE & SUPPORT LTD.
Adult and Health Services,Head of Adults,Third Party Payments,478101,Purchase of Care,03/08/2022,4032353-I-22-5346443,"17,914.88",ESSENTIAL CARE & SUPPORT LTD.
Adult and Health Services,Head of Adults,Third Party Payments,478101,Purchase of Care,03/08/2022,4032353-I-22-5346445,"15,656.56",ESSENTIAL CARE & SUPPORT LTD.
Adult and Health Services,Head of Adults,Third Party Payments,478101,Purchase of Care,03/08/2022,4032353-I-22-5346493,"33,207.84",ESSENTIAL CARE & SUPPORT LTD.
Adult and Health Services,Head of Adults,Third Party Payments,478101,Purchase of Care,03/08/2022,4032353-I-22-5346546,"21,075.77",ESSENTIAL CARE & SUPPORT LTD.
Adult and Health Services,Head of Adults,Third Party Payments,478101,Purchase of Care,03/08/2022,4032353-I-22-5346620,"40,928.44",ESSENTIAL CARE & SUPPORT LTD.
Adult and Health Services,Head of Adults,Third Party Payments,478101,Purchase of Care,03/08/2022,4032353-I-22-5346649,"14,496.56",ESSENTIAL CARE & SUPPORT LTD.
Adult and Health Services,Head of Adults,Third Party Payments,478101,Purchase of Care,03/08/2022,4032353-I-22-5346660,"13,434.56",ESSENTIAL CARE & SUPPORT LTD.
Adult and Health Services,Head of Adults,Third Party Payments,478101,Purchase of Care,03/08/2022,4032357-I-22-5346507,"6,552.64",ETHICARE (DURHAM) LTD.
Adult and Health Services,Head of Adults,Third Party Payments,478101,Purchase of Care,03/08/2022,4032357-I-22-5346534,"9,352.76",ETHICARE (DURHAM) LTD.
Adult and Health Services,Head of Adults,Third Party Payments,478101,Purchase of Care,03/08/2022,4032370-I-22-5346476,"20,931.16",FLEXIBLE SUPPORT OPTIONS LTD.
Adult and Health Services,Head of Adults,Third Party Payments,478101,Purchase of Care,03/08/2022,4032372-I-22-5346512,"9,048.00",FOREVER CARE LTD.
Adult and Health Services,Head of Adults,Third Party Payments,478101,Purchase of Care,03/08/2022,4032457-I-22-5346343,"9,674.08",HIGHLEA CARE LTD.
Adult and Health Services,Head of Adults,Third Party Payments,478101,Purchase of Care,03/08/2022,4032458-I-22-5346349,"1,149.64",HIGHLEA CARE LTD.
Adult and Health Services,Head of Adults,Third Party Payments,478101,Purchase of Care,03/08/2022,4032458-I-22-5346351,"8,054.72",HIGHLEA CARE LTD.
Adult and Health Services,Head of Adults,Third Party Payments,478101,Purchase of Care,03/08/2022,4032458-I-22-5346358,"5,785.20",HIGHLEA CARE LTD.
Adult and Health Services,Head of Adults,Third Party Payments,478101,Purchase of Care,03/08/2022,4032458-I-22-5346398,"8,639.24",HIGHLEA CARE LTD.
Adult and Health Services,Head of Adults,Third Party Payments,478101,Purchase of Care,03/08/2022,4032458-I-22-5346399,"16,988.04",HIGHLEA CARE LTD.
Adult and Health Services,Head of Adults,Third Party Payments,478101,Purchase of Care,03/08/2022,4032458-I-22-5346451,"15,953.81",HIGHLEA CARE LTD.
Adult and Health Services,Head of Adults,Third Party Payments,478101,Purchase of Care,03/08/2022,4032458-I-22-5346525,"70,489.82",HIGHLEA CARE LTD.
Adult and Health Services,Head of Adults,Third Party Payments,478101,Purchase of Care,03/08/2022,4032458-I-22-5346543,"6,813.68",HIGHLEA CARE LTD.
Adult and Health Services,Head of Adults,Third Party Payments,478101,Purchase of Care,03/08/2022,4032458-I-22-5346567,"8,442.72",HIGHLEA CARE LTD.
Adult and Health Services,Head of Adults,Third Party Payments,478101,Purchase of Care,03/08/2022,4032458-I-22-5346568,"10,839.59",HIGHLEA CARE LTD.
Adult and Health Services,Head of Adults,Third Party Payments,478101,Purchase of Care,03/08/2022,4032458-I-22-5346629,"1,285.60",HIGHLEA CARE LTD.
Adult and Health Services,Head of Adults,Third Party Payments,478101,Purchase of Care,03/08/2022,4032458-I-22-5346652,"16,081.16",HIGHLEA CARE LTD.
Adult and Health Services,Head of Adults,Third Party Payments,478101,Purchase of Care,03/08/2022,4032461-I-22-5346670,"2,122.84",HOME GROUP LTD FORMERLY STONHAM HOUSING ASSOCIATION LTD.
Adult and Health Services,Head of Adults,Third Party Payments,478101,Purchase of Care,03/08/2022,4032553-I-22-5346472,"4,704.00",JPC CARE & SUPPORT LTD.
Adult and Health Services,Head of Adults,Third Party Payments,478101,Purchase of Care,03/08/2022,4032683-I-22-5346484,"19,994.68",MEARS EXTRA CARE LTD.
Adult and Health Services,Head of Adults,Third Party Payments,478101,Purchase of Care,03/08/2022,4032690-I-22-5346394,"2,249.80",MENCAP.
Adult and Health Services,Head of Adults,Third Party Payments,478101,Purchase of Care,03/08/2022,4032690-I-22-5346646,"10,653.36",MENCAP.
Adult and Health Services,Head of Adults,Third Party Payments,478101,Purchase of Care,03/08/2022,4032767-I-22-5346408,"2,031.48",MVP SUPPORT.
Adult and Health Services,Head of Adults,Third Party Payments,478101,Purchase of Care,03/08/2022,4032768-I-22-5346457,"58,460.99",MY HOMECARE ASSISTANCE LTD T/A MY HOMECARE.
Adult and Health Services,Head of Adults,Third Party Payments,478101,Purchase of Care,03/08/2022,4032768-I-22-5346637,"23,625.36",MY HOMECARE ASSISTANCE LTD T/A MY HOMECARE.
Adult and Health Services,Head of Adults,Third Party Payments,478101,Purchase of Care,03/08/2022,4032784-I-22-5346446,707.08,NORTH EAST AUTISM SOCIETY.
Adult and Health Services,Head of Adults,Third Party Payments,478101,Purchase of Care,03/08/2022,4032786-I-22-5346353,"30,424.84",NORTH EAST AUTISM SOCIETY.
Adult and Health Services,Head of Adults,Third Party Payments,478101,Purchase of Care,03/08/2022,4032786-I-22-5346449,"12,717.72",NORTH EAST AUTISM SOCIETY.
Adult and Health Services,Head of Adults,Third Party Payments,478101,Purchase of Care,03/08/2022,4032786-I-22-5346565,"14,260.44",NORTH EAST AUTISM SOCIETY.
Adult and Health Services,Head of Adults,Third Party Payments,478101,Purchase of Care,03/08/2022,4032786-I-22-5346654,"11,193.24",NORTH EAST AUTISM SOCIETY.
Adult and Health Services,Head of Adults,Third Party Payments,478101,Purchase of Care,03/08/2022,4032790-I-22-5346425,"4,581.64",NORTH EAST BEFRIENDING SERVICE CIC.
Adult and Health Services,Head of Adults,Third Party Payments,478101,Purchase of Care,03/08/2022,4032792-I-22-5346576,"1,672.40",NORTHERN LIFE CARE LTD T/A UBU.
Adult and Health Services,Head of Adults,Third Party Payments,478101,Purchase of Care,03/08/2022,4032798-I-22-5346395,"15,761.06",OAKLEA TRUST.
Adult and Health Services,Head of Adults,Third Party Payments,478101,Purchase of Care,03/08/2022,4032798-I-22-5346402,"31,331.92",OAKLEA TRUST.
Adult and Health Services,Head of Adults,Third Party Payments,478101,Purchase of Care,03/08/2022,4032798-I-22-5346403,"9,101.68",OAKLEA TRUST.
Adult and Health Services,Head of Adults,Third Party Payments,478101,Purchase of Care,03/08/2022,4032798-I-22-5346437,"16,771.68",OAKLEA TRUST.
Adult and Health Services,Head of Adults,Third Party Payments,478101,Purchase of Care,03/08/2022,4032798-I-22-5346439,"19,810.68",OAKLEA TRUST.
Adult and Health Services,Head of Adults,Third Party Payments,478101,Purchase of Care,03/08/2022,4032798-I-22-5346440,"14,771.36",OAKLEA TRUST.
Adult and Health Services,Head of Adults,Third Party Payments,478101,Purchase of Care,03/08/2022,4032798-I-22-5346523,"9,379.44",OAKLEA TRUST.
Adult and Health Services,Head of Adults,Third Party Payments,478101,Purchase of Care,03/08/2022,4032798-I-22-5346524,"4,496.88",OAKLEA TRUST.
Adult and Health Services,Head of Adults,Third Party Payments,478101,Purchase of Care,03/08/2022,4032798-I-22-5346563,"26,078.08",OAKLEA TRUST.
Adult and Health Services,Head of Adults,Third Party Payments,478101,Purchase of Care,03/08/2022,4032798-I-22-5346564,"25,262.00",OAKLEA TRUST.
Adult and Health Services,Head of Adults,Third Party Payments,478101,Purchase of Care,03/08/2022,4032798-I-22-5346577,"21,060.88",OAKLEA TRUST.
Adult and Health Services,Head of Adults,Third Party Payments,478101,Purchase of Care,03/08/2022,4032798-I-22-5346598,"18,006.68",OAKLEA TRUST.
Adult and Health Services,Head of Adults,Third Party Payments,478101,Purchase of Care,03/08/2022,4032798-I-22-5346599,"10,022.24",OAKLEA TRUST.
Adult and Health Services,Head of Adults,Third Party Payments,478101,Purchase of Care,03/08/2022,4032798-I-22-5346647,"28,149.20",OAKLEA TRUST.
Adult and Health Services,Head of Adults,Third Party Payments,478101,Purchase of Care,03/08/2022,4032801-I-22-5346438,"11,328.00",OLIVE STONE SUPPORT.
Adult and Health Services,Head of Adults,Third Party Payments,478101,Purchase of Care,03/08/2022,4032801-I-22-5346532,"17,121.59",OLIVE STONE SUPPORT.
Adult and Health Services,Head of Adults,Third Party Payments,478101,Purchase of Care,03/08/2022,4032848-I-22-5346406,"14,990.36",POSITIVE INDIVIDUAL PROACTIVE SUPPORT LTD.
Adult and Health Services,Head of Adults,Third Party Payments,478101,Purchase of Care,03/08/2022,4032848-I-22-5346410,"10,458.00",POSITIVE INDIVIDUAL PROACTIVE SUPPORT LTD.
Adult and Health Services,Head of Adults,Third Party Payments,478101,Purchase of Care,03/08/2022,4032848-I-22-5346535,"32,301.80",POSITIVE INDIVIDUAL PROACTIVE SUPPORT LTD.
Adult and Health Services,Head of Adults,Third Party Payments,478101,Purchase of Care,03/08/2022,4032848-I-22-5346626,"13,506.12",POSITIVE INDIVIDUAL PROACTIVE SUPPORT LTD.
Adult and Health Services,Head of Adults,Third Party Payments,478101,Purchase of Care,03/08/2022,4032850-I-22-5346536,"22,326.32",POTENSIAL LTD T/A POTENS.
Adult and Health Services,Head of Adults,Third Party Payments,478101,Purchase of Care,03/08/2022,4032851-I-22-5346616,"5,692.76",POTENSIAL LTD T/A POTENS.
Adult and Health Services,Head of Adults,Third Party Payments,478101,Purchase of Care,03/08/2022,4032852-I-22-5346623,"19,026.88",POTENSIAL LTD T/A POTENS.
Adult and Health Services,Head of Adults,Third Party Payments,478101,Purchase of Care,03/08/2022,4032874-I-22-4997588,"1,600.00",RARE ROCKETS NE LTD.
Adult and Health Services,Head of Adults,Third Party Payments,478101,Purchase of Care,03/08/2022,4032874-I-22-5346557,"3,000.00",RARE ROCKETS NE LTD.
Adult and Health Services,Head of Adults,Third Party Payments,478101,Purchase of Care,03/08/2022,4032755-I-22-5346583,"3,997.56",REDACTED - PAYMENT TO INDIVIDUAL
Adult and Health Services,Head of Adults,Third Party Payments,478101,Purchase of Care,03/08/2022,4032756-I-22-5346610,"2,771.44",REDACTED - PAYMENT TO INDIVIDUAL
Adult and Health Services,Head of Adults,Third Party Payments,478101,Purchase of Care,03/08/2022,4032888-I-22-5346510,"10,245.33",RICHMOND FELLOWSHIP.
Adult and Health Services,Head of Adults,Third Party Payments,478101,Purchase of Care,03/08/2022,4032896-I-22-5346554,"2,695.28",ROC FAMILY SUPPORT LTD.
Adult and Health Services,Head of Adults,Third Party Payments,478101,Purchase of Care,03/08/2022,4032897-I-22-5346374,"1,337.00",ROC SOLID LTD.
Adult and Health Services,Head of Adults,Third Party Payments,478101,Purchase of Care,03/08/2022,4032913-I-22-5346544,"1,144.52",SALVATION ARMY HOUSING ASSOCIATION (SAHA).
Adult and Health Services,Head of Adults,Third Party Payments,478101,Purchase of Care,03/08/2022,4032924-I-22-5346514,"1,928.40",SANCTUARY HOME CARE LTD.
Adult and Health Services,Head of Adults,Third Party Payments,478101,Purchase of Care,03/08/2022,4032925-I-22-5346638,949.20,SANCTUARY HOME CARE LTD.
Adult and Health Services,Head of Adults,Third Party Payments,478101,Purchase of Care,03/08/2022,4032949-I-22-5346463,836.34,SOVEREIGN CARE (NORTH EAST) LTD.
Adult and Health Services,Head of Adults,Third Party Payments,478101,Purchase of Care,03/08/2022,4032950-I-22-5346669,"6,366.92",SOVEREIGN CARE (NORTH EAST) LTD.
Adult and Health Services,Head of Adults,Third Party Payments,478101,Purchase of Care,03/08/2022,4032954-I-22-5346531,"10,838.88",SPRINGFIELD HOMECARE SERVICES LTD.
Adult and Health Services,Head of Adults,Third Party Payments,478101,Purchase of Care,03/08/2022,4032957-I-22-5346357,"12,012.04",ST ANNES COMMUNITY SERVICES.
Adult and Health Services,Head of Adults,Third Party Payments,478101,Purchase of Care,03/08/2022,4032957-I-22-5346481,"10,799.04",ST ANNES COMMUNITY SERVICES.
Adult and Health Services,Head of Adults,Third Party Payments,478101,Purchase of Care,03/08/2022,4032957-I-22-5346487,"10,799.04",ST ANNES COMMUNITY SERVICES.
Adult and Health Services,Head of Adults,Third Party Payments,478101,Purchase of Care,03/08/2022,4032957-I-22-5346488,"5,171.32",ST ANNES COMMUNITY SERVICES.
Adult and Health Services,Head of Adults,Third Party Payments,478101,Purchase of Care,03/08/2022,4032957-I-22-5346527,"16,198.56",ST ANNES COMMUNITY SERVICES.
Adult and Health Services,Head of Adults,Third Party Payments,478101,Purchase of Care,03/08/2022,4032957-I-22-5346547,"8,289.60",ST ANNES COMMUNITY SERVICES.
Adult and Health Services,Head of Adults,Third Party Payments,478101,Purchase of Care,03/08/2022,4032957-I-22-5346572,"5,171.32",ST ANNES COMMUNITY SERVICES.
Adult and Health Services,Head of Adults,Third Party Payments,478101,Purchase of Care,03/08/2022,4032957-I-22-5346601,"10,799.04",ST ANNES COMMUNITY SERVICES.
Adult and Health Services,Head of Adults,Third Party Payments,478101,Purchase of Care,03/08/2022,4032957-I-22-5346603,"10,799.04",ST ANNES COMMUNITY SERVICES.
Adult and Health Services,Head of Adults,Third Party Payments,478101,Purchase of Care,03/08/2022,4032957-I-22-5346627,"13,056.12",ST ANNES COMMUNITY SERVICES.
Adult and Health Services,Head of Adults,Third Party Payments,478101,Purchase of Care,03/08/2022,4032957-I-22-5346655,"14,743.28",ST ANNES COMMUNITY SERVICES.
Adult and Health Services,Head of Adults,Third Party Payments,478101,Purchase of Care,03/08/2022,4032957-I-22-5346671,"8,462.32",ST ANNES COMMUNITY SERVICES.
Adult and Health Services,Head of Adults,Third Party Payments,478101,Purchase of Care,03/08/2022,4033018-I-22-5346641,"18,689.36",THE INTEGRATION TRUST LTD.
Adult and Health Services,Head of Adults,Third Party Payments,478101,Purchase of Care,03/08/2022,4033024-I-22-5346483,"29,565.52",THERA NORTH TRADING LTD.
Adult and Health Services,Head of Adults,Third Party Payments,478101,Purchase of Care,03/08/2022,4033024-I-22-5346636,"3,078.40",THERA NORTH TRADING LTD.
Adult and Health Services,Head of Adults,Third Party Payments,478101,Purchase of Care,03/08/2022,4033045-I-22-5155003,"1,604.96",TURNAROUND HOMES (3 TO 13).
Adult and Health Services,Head of Adults,Third Party Payments,478101,Purchase of Care,03/08/2022,4033048-I-22-5346356,"12,862.64",UNITED RESPONSE.
Adult and Health Services,Head of Adults,Third Party Payments,478101,Purchase of Care,03/08/2022,4033048-I-22-5346526,"13,461.56",UNITED RESPONSE.
Adult and Health Services,Head of Adults,Third Party Payments,478101,Purchase of Care,03/08/2022,4033065-I-22-5208164,"4,762.63",VOYAGE 1 LTD.
Adult and Health Services,Head of Adults,Third Party Payments,478101,Purchase of Care,03/08/2022,4033065-I-22-5346491,"25,839.60",VOYAGE 1 LTD.
Adult and Health Services,Head of Adults,Third Party Payments,478101,Purchase of Care,03/08/2022,4033065-I-22-5346530,"10,150.80",VOYAGE 1 LTD.
Adult and Health Services,Head of Adults,Third Party Payments,478101,Purchase of Care,03/08/2022,4033088-I-22-5346365,"8,686.44",YS SERVICES LTD T/A EMBRACING CARE.
Adult and Health Services,Head of Adults,Third Party Payments,478101,Purchase of Care,03/08/2022,4033088-I-22-5346366,"19,324.28",YS SERVICES LTD T/A EMBRACING CARE.
Adult and Health Services,Head of Adults,Third Party Payments,478101,Purchase of Care,03/08/2022,4033088-I-22-5346367,"10,855.25",YS SERVICES LTD T/A EMBRACING CARE.
Adult and Health Services,Head of Adults,Third Party Payments,478101,Purchase of Care,03/08/2022,4033088-I-22-5346368,"11,161.16",YS SERVICES LTD T/A EMBRACING CARE.
Adult and Health Services,Head of Adults,Third Party Payments,478101,Purchase of Care,03/08/2022,4033088-I-22-5346411,"10,326.24",YS SERVICES LTD T/A EMBRACING CARE.
Adult and Health Services,Head of Adults,Third Party Payments,478101,Purchase of Care,03/08/2022,4033088-I-22-5346412,"6,514.32",YS SERVICES LTD T/A EMBRACING CARE.
Adult and Health Services,Head of Adults,Third Party Payments,478101,Purchase of Care,03/08/2022,4033088-I-22-5346413,"10,503.04",YS SERVICES LTD T/A EMBRACING CARE.
Adult and Health Services,Head of Adults,Third Party Payments,478101,Purchase of Care,03/08/2022,4033088-I-22-5346414,"7,054.68",YS SERVICES LTD T/A EMBRACING CARE.
Adult and Health Services,Head of Adults,Third Party Payments,478101,Purchase of Care,03/08/2022,4033088-I-22-5346415,"7,478.52",YS SERVICES LTD T/A EMBRACING CARE.
Adult and Health Services,Head of Adults,Third Party Payments,478101,Purchase of Care,03/08/2022,4033088-I-22-5346416,"10,390.40",YS SERVICES LTD T/A EMBRACING CARE.
Adult and Health Services,Head of Adults,Third Party Payments,478101,Purchase of Care,03/08/2022,4033088-I-22-5346417,"7,349.96",YS SERVICES LTD T/A EMBRACING CARE.
Adult and Health Services,Head of Adults,Third Party Payments,478101,Purchase of Care,03/08/2022,4033088-I-22-5346452,"10,647.68",YS SERVICES LTD T/A EMBRACING CARE.
Adult and Health Services,Head of Adults,Third Party Payments,478101,Purchase of Care,03/08/2022,4033088-I-22-5346497,"15,129.79",YS SERVICES LTD T/A EMBRACING CARE.
Adult and Health Services,Head of Adults,Third Party Payments,478101,Purchase of Care,03/08/2022,4033088-I-22-5346498,"10,703.92",YS SERVICES LTD T/A EMBRACING CARE.
Adult and Health Services,Head of Adults,Third Party Payments,478101,Purchase of Care,03/08/2022,4033088-I-22-5346499,"10,003.52",YS SERVICES LTD T/A EMBRACING CARE.
Adult and Health Services,Head of Adults,Third Party Payments,478101,Purchase of Care,03/08/2022,4033088-I-22-5346500,"8,686.44",YS SERVICES LTD T/A EMBRACING CARE.
Adult and Health Services,Head of Adults,Third Party Payments,478101,Purchase of Care,03/08/2022,4033088-I-22-5346501,"10,976.68",YS SERVICES LTD T/A EMBRACING CARE.
Adult and Health Services,Head of Adults,Third Party Payments,478101,Purchase of Care,03/08/2022,4033088-I-22-5346502,"7,999.88",YS SERVICES LTD T/A EMBRACING CARE.
Adult and Health Services,Head of Adults,Third Party Payments,478101,Purchase of Care,03/08/2022,4033088-I-22-5346537,"10,485.60",YS SERVICES LTD T/A EMBRACING CARE.
Adult and Health Services,Head of Adults,Third Party Payments,478101,Purchase of Care,03/08/2022,4033088-I-22-5346538,"3,109.54",YS SERVICES LTD T/A EMBRACING CARE.
Adult and Health Services,Head of Adults,Third Party Payments,478101,Purchase of Care,03/08/2022,4033088-I-22-5346539,"10,228.48",YS SERVICES LTD T/A EMBRACING CARE.
Adult and Health Services,Head of Adults,Third Party Payments,478101,Purchase of Care,03/08/2022,4033088-I-22-5346540,"10,581.96",YS SERVICES LTD T/A EMBRACING CARE.
Adult and Health Services,Head of Adults,Third Party Payments,478101,Purchase of Care,03/08/2022,4033088-I-22-5346541,"9,760.44",YS SERVICES LTD T/A EMBRACING CARE.
Adult and Health Services,Head of Adults,Third Party Payments,478101,Purchase of Care,03/08/2022,4033088-I-22-5346580,"12,447.36",YS SERVICES LTD T/A EMBRACING CARE.
Adult and Health Services,Head of Adults,Third Party Payments,478101,Purchase of Care,03/08/2022,4033088-I-22-5346581,"24,967.88",YS SERVICES LTD T/A EMBRACING CARE.
Adult and Health Services,Head of Adults,Third Party Payments,478101,Purchase of Care,03/08/2022,4033088-I-22-5346582,"11,690.85",YS SERVICES LTD T/A EMBRACING CARE.
Adult and Health Services,Head of Adults,Third Party Payments,478101,Purchase of Care,03/08/2022,4033088-I-22-5346611,"2,314.12",YS SERVICES LTD T/A EMBRACING CARE.
Adult and Health Services,Head of Adults,Third Party Payments,478101,Purchase of Care,03/08/2022,4033088-I-22-5346612,"9,446.32",YS SERVICES LTD T/A EMBRACING CARE.
Adult and Health Services,Head of Adults,Third Party Payments,478101,Purchase of Care,03/08/2022,4033088-I-22-5346613,"21,837.97",YS SERVICES LTD T/A EMBRACING CARE.
Adult and Health Services,Head of Adults,Third Party Payments,478101,Purchase of Care,03/08/2022,4033088-I-22-5346614,"8,686.44",YS SERVICES LTD T/A EMBRACING CARE.
Adult and Health Services,Head of Adults,Third Party Payments,478101,Purchase of Care,03/08/2022,4033088-I-22-5346615,"7,028.56",YS SERVICES LTD T/A EMBRACING CARE.
Adult and Health Services,Head of Adults,Third Party Payments,478101,Purchase of Care,03/08/2022,4033088-I-22-5346663,"9,120.27",YS SERVICES LTD T/A EMBRACING CARE.
Adult and Health Services,Head of Adults,Third Party Payments,478101,Purchase of Care,03/08/2022,4033088-I-22-5346664,"8,516.04",YS SERVICES LTD T/A EMBRACING CARE.
Adult and Health Services,Head of Adults,Third Party Payments,478151,Purchase of Care,03/08/2022,4031839-SI-1688,"3,480.76",ACCEPT CARE LTD.
Adult and Health Services,Head of Adults,Third Party Payments,478151,Purchase of Care,03/08/2022,4032155-CB38,"1,818.00",BONDCARE WILLINGTON LTD.
Adult and Health Services,Head of Adults,Third Party Payments,478151,Purchase of Care,03/08/2022,4032458-HLC711,"3,159.83",HIGHLEA CARE LTD.
Adult and Health Services,Head of Adults,Third Party Payments,478151,Purchase of Care,03/08/2022,4032458-HLC712,"3,964.32",HIGHLEA CARE LTD.
Adult and Health Services,Head of Adults,Third Party Payments,478151,Purchase of Care,03/08/2022,4032458-HLC713,"10,451.25",HIGHLEA CARE LTD.
Regeneration Economy and Growth,Culture Sport and Tourism,Third Party Payments,430131,Rendered by Private Contractors,03/08/2022,4033238-2022026,600.00,REDACTED - PAYMENT TO INDIVIDUAL
Regeneration Economy and Growth,Transport and Contracted Services,Third Party Payments,430106,Rendered by Private Contractors,03/08/2022,4033167-3994/0722,"4,861.00",ELLIOTTS OF TRIMDON.
Regeneration Economy and Growth,Corporate Property and Land,Third Party Payments,430100,Rendered by Private Contractors,03/08/2022,4033092-9184,"1,200.00",A19 DRILLING LTD.
Neighbourhoods and Climate Change,Environmental Services,Third Party Payments,430100,Rendered by Private Contractors,03/08/2022,4033100-44R/22/92664,"1,665.00",ALAN M RANSON FUNERAL SERVICE.
Regeneration Economy and Growth,Corporate Property and Land,Third Party Payments,430100,Rendered by Private Contractors,03/08/2022,4033107-AEL1671,"49,406.25",AMELIO ENTERPRISES LTD.
Regeneration Economy and Growth,Corporate Property and Land,Third Party Payments,430100,Rendered by Private Contractors,03/08/2022,4033117-8516,858.00,ATLAS WASHROOM SYSTEMS LTD.
Regeneration Economy and Growth,Corporate Property and Land,Third Party Payments,430100,Rendered by Private Contractors,03/08/2022,4033179-647/2,"19,006.00",GOTT TECHNICAL SERVICES LTD.
Neighbourhoods and Climate Change,Technical Services CM0300,Third Party Payments,430100,Rendered by Private Contractors,03/08/2022,4033180-0175656,"91,660.00",GRAITEC LTD.
Regeneration Economy and Growth,Corporate Property and Land,Third Party Payments,430100,Rendered by Private Contractors,03/08/2022,4033202-21562,750.00,J & L ELEVATOR COMPONENTS LTD.
Neighbourhoods and Climate Change,Environmental Services,Third Party Payments,430100,Rendered by Private Contractors,03/08/2022,4033269-00021313,505.80,NSL LTD.
Neighbourhoods and Climate Change,Environmental Services,Third Party Payments,430100,Rendered by Private Contractors,03/08/2022,4033282-TEE15759,601.93,PIRTEK TYNE & WEAR.
Neighbourhoods and Climate Change,Technical Services CM0300,Third Party Payments,430100,Rendered by Private Contractors,03/08/2022,4033293-14286,"24,563.67",QUANTUM POWER CONNECTIONS LTD.
Regeneration Economy and Growth,Corporate Property and Land,Third Party Payments,430100,Rendered by Private Contractors,03/08/2022,4033247-DCC245,"1,500.00",REDACTED - PAYMENT TO INDIVIDUAL
Regeneration Economy and Growth,Corporate Property and Land,Third Party Payments,430100,Rendered by Private Contractors,03/08/2022,4033247-DCC246,"1,200.00",REDACTED - PAYMENT TO INDIVIDUAL
Neighbourhoods and Climate Change,Environmental Services,Third Party Payments,430100,Rendered by Private Contractors,03/08/2022,4033305-A14286,"1,027.46",RIPON FARM SERVICES LTD.
Regeneration Economy and Growth,Corporate Property and Land,Third Party Payments,430100,Rendered by Private Contractors,03/08/2022,4033317-23792,"21,546.60",SEYMOUR (CIVIL ENGINEERING CONTRACTORS) LTD.
Neighbourhoods and Climate Change,Community Protection,Third Party Payments,430100,Rendered by Private Contractors,03/08/2022,4033321-184563,"1,564.29",SHOWSEC INTERNATIONAL LTD.
Regeneration Economy and Growth,Corporate Property and Land,Third Party Payments,430100,Rendered by Private Contractors,03/08/2022,4033338-18387,"9,576.96",STEADFAST SECURITY SOLUTIONS LTD.
Neighbourhoods and Climate Change,Environmental Services,Third Party Payments,430100,Rendered by Private Contractors,03/08/2022,4033303-4798,"5,750.00",RICHARD C BIRCHER (HOLDINGS) LTD.
Children and Young Peoples Services,Head of Childrens Social Care,Third Party Payments,425040,Rendered by Voluntary Organisations,03/08/2022,4031835-PIG_136456,"13,953.60",A1 FOSTER CARE.
Children and Young Peoples Services,Head of Childrens Social Care,Third Party Payments,425040,Rendered by Voluntary Organisations,03/08/2022,4032044-PIG_135818,"13,540.12",ACORN CARE (NE) LTD.
Children and Young Peoples Services,Head of Childrens Social Care,Third Party Payments,425040,Rendered by Voluntary Organisations,03/08/2022,4032045-PIG_136479,"19,554.01",ACORN HOUSE (FOSTERING SERVICES) LTD.
Children and Young Peoples Services,Head of Childrens Social Care,Third Party Payments,425040,Rendered by Voluntary Organisations,03/08/2022,4032127-PIG_135891,"6,036.03",BANYA FAMILY PLACEMENT AGENCY LTD.
Children and Young Peoples Services,Head of Childrens Social Care,Third Party Payments,425040,Rendered by Voluntary Organisations,03/08/2022,4032138-PIG_136457,"15,469.93",BARNARDOS BELIEVE IN CHILDREN.
Children and Young Peoples Services,Head of Childrens Social Care,Third Party Payments,425040,Rendered by Voluntary Organisations,03/08/2022,4032202-PIG_136484,"13,998.67",CHANGING FUTURES FOSTERING.
Children and Young Peoples Services,Head of Childrens Social Care,Third Party Payments,425040,Rendered by Voluntary Organisations,03/08/2022,4032209-PIG_136502,"6,874.62",CHILDRENS FAMILY TRUST.
Children and Young Peoples Services,Head of Childrens Social Care,Third Party Payments,425040,Rendered by Voluntary Organisations,03/08/2022,4032236-PIG_136483,"33,196.24",COMPASS FOSTERING NORTH LTD.
Children and Young Peoples Services,Head of Childrens Social Care,Third Party Payments,425040,Rendered by Voluntary Organisations,03/08/2022,4032237-PIG_136458,"1,700.02",COMPASS FOSTERING SOUTH.
Children and Young Peoples Services,Head of Childrens Social Care,Third Party Payments,425040,Rendered by Voluntary Organisations,03/08/2022,4032298-PIG_136459,"13,004.69",DIVERSE CARE UK LTD.
Children and Young Peoples Services,Head of Childrens Social Care,Third Party Payments,425040,Rendered by Voluntary Organisations,03/08/2022,4032367-PIG_136478,"1,770.16",FIRST FOR FOSTERING LTD.
Children and Young Peoples Services,Head of Childrens Social Care,Third Party Payments,425040,Rendered by Voluntary Organisations,03/08/2022,4032369-PIG_135819,"8,215.96",FIVE RIVERS CHILD CARE LTD.
Children and Young Peoples Services,Head of Childrens Social Care,Third Party Payments,425040,Rendered by Voluntary Organisations,03/08/2022,4032373-PIG_136496,"83,846.58",FOSTER CARE ASSOCIATES LTD.
Children and Young Peoples Services,Head of Childrens Social Care,Third Party Payments,425040,Rendered by Voluntary Organisations,03/08/2022,4032374-PIG_136493,"49,471.07",FOSTER CARE SOLUTIONS LTD.
Children and Young Peoples Services,Head of Childrens Social Care,Third Party Payments,425040,Rendered by Voluntary Organisations,03/08/2022,4032375-PIG_135893,"49,136.82",FOSTER CARES LTD.
Children and Young Peoples Services,Head of Childrens Social Care,Third Party Payments,425040,Rendered by Voluntary Organisations,03/08/2022,4032376-PIG_135820,"38,778.60",FOSTERING PEOPLE LTD.
Children and Young Peoples Services,Head of Childrens Social Care,Third Party Payments,425040,Rendered by Voluntary Organisations,03/08/2022,4032805-PIG_136498,"28,540.80",ORCHARD CARE (NORTH EAST) LTD.
Children and Young Peoples Services,Head of Childrens Social Care,Third Party Payments,425040,Rendered by Voluntary Organisations,03/08/2022,4032877-PIG_136497,"102,757.16",REACH OUT CARE LTD.
Children and Young Peoples Services,Head of Childrens Social Care,Third Party Payments,425040,Rendered by Voluntary Organisations,03/08/2022,4032961-PIG_136499,"1,740.08",ST CUTHBERTS CARE.
Children and Young Peoples Services,Head of Childrens Social Care,Third Party Payments,425040,Rendered by Voluntary Organisations,03/08/2022,4032997-PIG_136500,"27,709.48",SWIIS FOSTER CARE LTD.
Children and Young Peoples Services,Head of Childrens Social Care,Third Party Payments,425040,Rendered by Voluntary Organisations,03/08/2022,4033007-PIG_136472,"42,157.97",TEAM FOSTERING.
Children and Young Peoples Services,Head of Childrens Social Care,Third Party Payments,425040,Rendered by Voluntary Organisations,03/08/2022,4033013-PIG_136503,"7,170.02",THE FOSTERING COMPANY NORTH EAST LTD.
Dedicated Schools Grant BG0015,DSG High Needs Block,Third Party Payments,425005,Rendered by Voluntary Organisations,03/08/2022,4032043-PIG_135835,"20,093.50",ACORN CARE & EDUCATION LTD.
Dedicated Schools Grant BG0015,DSG High Needs Block,Third Party Payments,425005,Rendered by Voluntary Organisations,03/08/2022,4032169-PIG_135838,"3,386.68",CAMBIAN CHILDCARE LTD T/A HARTLEPOOL SCHOOL.
Dedicated Schools Grant BG0015,DSG High Needs Block,Third Party Payments,425005,Rendered by Voluntary Organisations,03/08/2022,4032234-PIG_136463,"9,200.00",COMMON THREAD LTD.
Dedicated Schools Grant BG0015,DSG High Needs Block,Third Party Payments,425005,Rendered by Voluntary Organisations,03/08/2022,4032470-PIG_135842,"92,564.96",HURWORTH HOUSE PRIORY.
Dedicated Schools Grant BG0015,DSG High Needs Block,Third Party Payments,425005,Rendered by Voluntary Organisations,03/08/2022,4032787-PIG_136461,"43,522.33",NORTH EAST AUTISM SOCIETY.
Dedicated Schools Grant BG0015,DSG High Needs Block,Third Party Payments,425005,Rendered by Voluntary Organisations,03/08/2022,4032907-PIG_135844,"7,374.44",RUSKIN MILL TRUST T/A CLERVAUX GARDEN SCHOOL.
Dedicated Schools Grant BG0015,DSG High Needs Block,Third Party Payments,425005,Rendered by Voluntary Organisations,03/08/2022,4032951-PIG_135860,"9,493.20",SPARK OF GENIUS (NORTH EAST LLP).
Dedicated Schools Grant BG0015,DSG High Needs Block,Third Party Payments,425005,Rendered by Voluntary Organisations,03/08/2022,4033014-PIG_135845,"3,578.96",THE GFC SCHOOL LTD.
Dedicated Schools Grant BG0015,DSG High Needs Block,Third Party Payments,425005,Rendered by Voluntary Organisations,03/08/2022,4033080-PIG_135852,"65,986.76",WITHERSLACK GROUP LTD T/A ASHBROOKE SCHOOL.
Dedicated Schools Grant BG0015,DSG High Needs Block,Third Party Payments,425005,Rendered by Voluntary Organisations,03/08/2022,4033081-PIG_135855,"16,070.80",WITHERSLACK GROUP LTD T/A HARTWELL SCHOOL.
Dedicated Schools Grant BG0015,DSG High Needs Block,Third Party Payments,425005,Rendered by Voluntary Organisations,03/08/2022,4033082-PIG_135853,"6,572.04",WITHERSLACK GROUP LTD.
Dedicated Schools Grant BG0015,DSG High Needs Block,Third Party Payments,425005,Rendered by Voluntary Organisations,03/08/2022,4033082-PIG_135857,"10,361.96",WITHERSLACK GROUP LTD.
Children and Young Peoples Services,Head of Childrens Social Care,Third Party Payments,425020,Rendered by Voluntary Organisations,03/08/2022,4032785-PIG_136453,"19,827.00",NORTH EAST AUTISM SOCIETY.
Children and Young Peoples Services,Head of Childrens Social Care,Third Party Payments,425020,Rendered by Voluntary Organisations,03/08/2022,4032964-PIG_136501,"19,569.60",ST OSWALD`S HOSPICE LTD.
Children and Young Peoples Services,Head of Childrens Social Care,Third Party Payments,425020,Rendered by Voluntary Organisations,03/08/2022,4033089-PIG_136504,"1,895.00",ZOE PLACE BABY HOSPICE.
Children and Young Peoples Services,Head of Childrens Social Care,Third Party Payments,425021,Rendered by Voluntary Organisations,03/08/2022,4031834-PIG_135831,"43,244.00",A WILDERNESS WAY LTD.
Children and Young Peoples Services,Head of Childrens Social Care,Third Party Payments,425021,Rendered by Voluntary Organisations,03/08/2022,4032069-PIG_135834,"32,640.00",ALEXANDERS HOUSE.
Children and Young Peoples Services,Head of Childrens Social Care,Third Party Payments,425021,Rendered by Voluntary Organisations,03/08/2022,4032081-PIG_135832,"22,708.00",AMBERLEIGH CARE LTD.
Children and Young Peoples Services,Head of Childrens Social Care,Third Party Payments,425021,Rendered by Voluntary Organisations,03/08/2022,4032140-PIG_135833,"24,196.64",BDT CARE SOLUTIONS LTD.
Children and Young Peoples Services,Head of Childrens Social Care,Third Party Payments,425021,Rendered by Voluntary Organisations,03/08/2022,4032140-PIG_135846,"59,398.56",BDT CARE SOLUTIONS LTD.
Children and Young Peoples Services,Head of Childrens Social Care,Third Party Payments,425021,Rendered by Voluntary Organisations,03/08/2022,4032170-PIG_135964,"18,900.00",CAMBIAN CHILDCARE LTD.
Children and Young Peoples Services,Head of Childrens Social Care,Third Party Payments,425021,Rendered by Voluntary Organisations,03/08/2022,4032171-PIG_135847,"18,200.00",CAMBIAN CHILDCARE LTD.
Children and Young Peoples Services,Head of Childrens Social Care,Third Party Payments,425021,Rendered by Voluntary Organisations,03/08/2022,4032171-PIG_135963,"22,600.00",CAMBIAN CHILDCARE LTD.
Children and Young Peoples Services,Head of Childrens Social Care,Third Party Payments,425021,Rendered by Voluntary Organisations,03/08/2022,4032175-PIG_135848,"18,200.00",CAPSTONE CARE PROVIDER LTD.
Children and Young Peoples Services,Head of Childrens Social Care,Third Party Payments,425021,Rendered by Voluntary Organisations,03/08/2022,4032199-PIG_135849,"30,000.00",CATHOLIC CARE (DIOCESE OF LEEDS).
Children and Young Peoples Services,Head of Childrens Social Care,Third Party Payments,425021,Rendered by Voluntary Organisations,03/08/2022,4032311-PIG_135850,"37,200.00",DUTY OF CARE LTD.
Children and Young Peoples Services,Head of Childrens Social Care,Third Party Payments,425021,Rendered by Voluntary Organisations,03/08/2022,4032311-PIG_135851,"34,400.00",DUTY OF CARE LTD.
Children and Young Peoples Services,Head of Childrens Social Care,Third Party Payments,425021,Rendered by Voluntary Organisations,03/08/2022,4032345-PIG_135854,"28,904.00",ENHANCED YOUNG PERSONS` CARE LTD.
Children and Young Peoples Services,Head of Childrens Social Care,Third Party Payments,425021,Rendered by Voluntary Organisations,03/08/2022,4032345-PIG_136460,"14,800.00",ENHANCED YOUNG PERSONS` CARE LTD.
Children and Young Peoples Services,Head of Childrens Social Care,Third Party Payments,425021,Rendered by Voluntary Organisations,03/08/2022,4032362-PIG_136467,"23,905.60",FAIRFIELD RESIDENTIAL LTD T/A FAIRFIELD HOUSE & FAIRFIELD SCHOOL.
Children and Young Peoples Services,Head of Childrens Social Care,Third Party Payments,425021,Rendered by Voluntary Organisations,03/08/2022,4032371-PIG_135968,"19,669.85",FOOTSTEPS CARE LTD.
Children and Young Peoples Services,Head of Childrens Social Care,Third Party Payments,425021,Rendered by Voluntary Organisations,03/08/2022,4032417-PIG_135869,"50,400.00",GREENLEAF HOUSE CO LTD.
Children and Young Peoples Services,Head of Childrens Social Care,Third Party Payments,425021,Rendered by Voluntary Organisations,03/08/2022,4032453-PIG_136464,"22,324.89",HENNESSY LIVING GROUP LTD.
Children and Young Peoples Services,Head of Childrens Social Care,Third Party Payments,425021,Rendered by Voluntary Organisations,03/08/2022,4032453-PIG_136465,"22,155.20",HENNESSY LIVING GROUP LTD.
Children and Young Peoples Services,Head of Childrens Social Care,Third Party Payments,425021,Rendered by Voluntary Organisations,03/08/2022,4032456-PIG_135870,"67,200.00",HEXAGON CARE SERVICES LTD.
Children and Young Peoples Services,Head of Childrens Social Care,Third Party Payments,425021,Rendered by Voluntary Organisations,03/08/2022,4032479-PIG_135873,"23,780.00",INSPIRE CARE (UK) LTD T/A FARRINGFORD.
Children and Young Peoples Services,Head of Childrens Social Care,Third Party Payments,425021,Rendered by Voluntary Organisations,03/08/2022,4032483-PIG_135871,"15,400.00",INTERACTIVE DEVELOPMENT RESIDENTIAL LTD.
Children and Young Peoples Services,Head of Childrens Social Care,Third Party Payments,425021,Rendered by Voluntary Organisations,03/08/2022,4032484-PIG_135874,"48,580.00",INVESTED CHILDCARE LTD.
Children and Young Peoples Services,Head of Childrens Social Care,Third Party Payments,425021,Rendered by Voluntary Organisations,03/08/2022,4032485-PIG_135875,"13,600.00",INVESTING IN CHILDREN CIC.
Children and Young Peoples Services,Head of Childrens Social Care,Third Party Payments,425021,Rendered by Voluntary Organisations,03/08/2022,4032548-PIG_135965,"15,200.00",JOSH`S PLACE.
Children and Young Peoples Services,Head of Childrens Social Care,Third Party Payments,425021,Rendered by Voluntary Organisations,03/08/2022,4032572-PIG_135969,"46,338.14",KEDLESTON GROUP LTD.
Children and Young Peoples Services,Head of Childrens Social Care,Third Party Payments,425021,Rendered by Voluntary Organisations,03/08/2022,4032580-PIG_136489,"16,590.00",KEYS GROUP T/A ALLIANCE CARE AND EDUCATION LTD.
Children and Young Peoples Services,Head of Childrens Social Care,Third Party Payments,425021,Rendered by Voluntary Organisations,03/08/2022,4032580-PIG_136490,"16,590.00",KEYS GROUP T/A ALLIANCE CARE AND EDUCATION LTD.
Children and Young Peoples Services,Head of Childrens Social Care,Third Party Payments,425021,Rendered by Voluntary Organisations,03/08/2022,4032580-PIG_136491,"24,540.00",KEYS GROUP T/A ALLIANCE CARE AND EDUCATION LTD.
Children and Young Peoples Services,Head of Childrens Social Care,Third Party Payments,425021,Rendered by Voluntary Organisations,03/08/2022,4032580-PIG_136492,"18,200.00",KEYS GROUP T/A ALLIANCE CARE AND EDUCATION LTD.
Children and Young Peoples Services,Head of Childrens Social Care,Third Party Payments,425021,Rendered by Voluntary Organisations,03/08/2022,4032584-PIG_136466,"23,916.00",KITES CHILDRENS SERVICES LTD.
Children and Young Peoples Services,Head of Childrens Social Care,Third Party Payments,425021,Rendered by Voluntary Organisations,03/08/2022,4032775-PIG_135966,"23,008.00",NEW LIFE CARE SERVICES T/A EAST FARM.
Children and Young Peoples Services,Head of Childrens Social Care,Third Party Payments,425021,Rendered by Voluntary Organisations,03/08/2022,4032787-PIG_135884,"31,253.84",NORTH EAST AUTISM SOCIETY.
Children and Young Peoples Services,Head of Childrens Social Care,Third Party Payments,425021,Rendered by Voluntary Organisations,03/08/2022,4032797-PIG_135885,"75,040.00",NUEVAVIDA NE LTD.
Children and Young Peoples Services,Head of Childrens Social Care,Third Party Payments,425021,Rendered by Voluntary Organisations,03/08/2022,4032804-PIG_135883,"18,064.00",ONE STEP CARE LTD.
Children and Young Peoples Services,Head of Childrens Social Care,Third Party Payments,425021,Rendered by Voluntary Organisations,03/08/2022,4032812-PIG_135882,"5,600.21",OUTDOOR CARE LTD.
Children and Young Peoples Services,Head of Childrens Social Care,Third Party Payments,425021,Rendered by Voluntary Organisations,03/08/2022,4032837-PIG_135878,"29,879.84",PEARTREE PROJECTS LTD.
Children and Young Peoples Services,Head of Childrens Social Care,Third Party Payments,425021,Rendered by Voluntary Organisations,03/08/2022,4032837-PIG_135879,"31,472.88",PEARTREE PROJECTS LTD.
Children and Young Peoples Services,Head of Childrens Social Care,Third Party Payments,425021,Rendered by Voluntary Organisations,03/08/2022,4032837-PIG_135880,"8,261.64",PEARTREE PROJECTS LTD.
Children and Young Peoples Services,Head of Childrens Social Care,Third Party Payments,425021,Rendered by Voluntary Organisations,03/08/2022,4032838-PIG_135877,"8,645.64",PEBBLES CARE LTD.
Children and Young Peoples Services,Head of Childrens Social Care,Third Party Payments,425021,Rendered by Voluntary Organisations,03/08/2022,4032866-PIG_135836,"21,000.00",QUALITY PROTECTS CHILDREN LTD.
Children and Young Peoples Services,Head of Childrens Social Care,Third Party Payments,425021,Rendered by Voluntary Organisations,03/08/2022,4032891-PIG_135876,"18,600.00",RIGHT-TRAK LTD.
Children and Young Peoples Services,Head of Childrens Social Care,Third Party Payments,425021,Rendered by Voluntary Organisations,03/08/2022,4032896-PIG_135967,"36,504.00",ROC FAMILY SUPPORT LTD.
Children and Young Peoples Services,Head of Childrens Social Care,Third Party Payments,425021,Rendered by Voluntary Organisations,03/08/2022,4033059-PIG_135872,"75,040.00",VITA NOVA NE LTD.
Children and Young Peoples Services,Head of Childrens Social Care,Third Party Payments,425021,Rendered by Voluntary Organisations,03/08/2022,4033066-PIG_135867,"38,000.00",WE CARE BESPOKE LTD T/A TYNE ROAD CHILDREN`S HOME.
Children and Young Peoples Services,Head of Childrens Social Care,Third Party Payments,425021,Rendered by Voluntary Organisations,03/08/2022,4033080-PIG_135864,"16,502.84",WITHERSLACK GROUP LTD T/A ASHBROOKE SCHOOL.
Children and Young Peoples Services,Head of Childrens Social Care,Third Party Payments,425021,Rendered by Voluntary Organisations,03/08/2022,4033082-PIG_135862,"19,667.60",WITHERSLACK GROUP LTD.
Children and Young Peoples Services,Head of Childrens Social Care,Third Party Payments,425021,Rendered by Voluntary Organisations,03/08/2022,4033082-PIG_135863,"17,028.24",WITHERSLACK GROUP LTD.
Children and Young Peoples Services,Head of Childrens Social Care,Third Party Payments,425021,Rendered by Voluntary Organisations,03/08/2022,4033082-PIG_135865,"15,334.72",WITHERSLACK GROUP LTD.
Children and Young Peoples Services,Head of Childrens Social Care,Third Party Payments,425021,Rendered by Voluntary Organisations,03/08/2022,4033082-PIG_135866,"28,712.72",WITHERSLACK GROUP LTD.
Children and Young Peoples Services,Head of Childrens Social Care,Third Party Payments,425021,Rendered by Voluntary Organisations,03/08/2022,4033082-PIG_136505,"29,836.89",WITHERSLACK GROUP LTD.
Children and Young Peoples Services,Head of Childrens Social Care,Third Party Payments,425021,Rendered by Voluntary Organisations,03/08/2022,4033087-PIG_135861,"17,000.00",YOUNG FOUNDATIONS LTD.
Children and Young Peoples Services,Head of Childrens Social Care,Third Party Payments,425023,Rendered by Voluntary Organisations,03/08/2022,4032106-PIG_135859,"19,768.00",APPLETREE TREATMENT CENTRE LTD.
Children and Young Peoples Services,Head of Childrens Social Care,Third Party Payments,425023,Rendered by Voluntary Organisations,03/08/2022,4032172-PIG_135839,"18,035.72",CAMBIAN WHINFELL SCHOOL LTD.
Children and Young Peoples Services,Head of Childrens Social Care,Third Party Payments,425023,Rendered by Voluntary Organisations,03/08/2022,4033082-PIG_135856,"6,740.08",WITHERSLACK GROUP LTD.
Children and Young Peoples Services,Head of Childrens Social Care,Third Party Payments,425023,Rendered by Voluntary Organisations,03/08/2022,4033082-PIG_135858,"13,159.24",WITHERSLACK GROUP LTD.
Neighbourhoods and Climate Change,Environmental Services,Transport,215023,Running Costs of Vehicles,03/08/2022,4033345-4122098,801.00,TENNANTS DISTRIBUTION LTD.
Neighbourhoods and Climate Change,Environmental Services,Transport,215005,Running Costs of Vehicles,03/08/2022,4033378-965791,"30,532.18",YOUR NRG LTD.
Neighbourhoods and Climate Change,Environmental Services,Transport,215005,Running Costs of Vehicles,03/08/2022,4033378-970943,"6,020.89",YOUR NRG LTD.
Neighbourhoods and Climate Change,Environmental Services,Transport,215005,Running Costs of Vehicles,03/08/2022,4033378-970944,"14,986.99",YOUR NRG LTD.
Children and Young Peoples Services,Head of Education and Skills,Transfer Payments,510028,School Children,03/08/2022,4033176-RES-08-2022-016,"7,000.00",GIANT STEPS LTD.
Children and Young Peoples Services,Head of Childrens Social Care,Third Party Payments,486020,Service level agreements E486,03/08/2022,4032480-PIG_135889,"2,995.30",INTEGRATING CHILDREN.
Adult and Health Services,Head of Adults,Third Party Payments,486020,Service level agreements E486,03/08/2022,4032785-PIG_136451,"3,092.60",NORTH EAST AUTISM SOCIETY.
Children and Young Peoples Services,Head of Childrens Social Care,Third Party Payments,486020,Service level agreements E486,03/08/2022,4032878-PIG_136462,539.42,REAL CARE LTD.
Children and Young Peoples Services,Head of Childrens Social Care,Third Party Payments,486020,Service level agreements E486,03/08/2022,4032896-PIG_136454,"6,381.86",ROC FAMILY SUPPORT LTD.
Children and Young Peoples Services,Head of Childrens Social Care,Third Party Payments,486020,Service level agreements E486,03/08/2022,4032937-PIG_136480,"2,123.76",SHEENA MILES CARE SERVICES LTD.
Children and Young Peoples Services,Head of Early Help Inclusion & Vulnerable Children.,Premises,108099,Service Repairs and Maintenance,03/08/2022,4033116-22029758,"1,569.40",ATKINS GLOBAL.
Resources BK0010,Legal & Democratic Services,Supplies and Services,338042,Services,03/08/2022,4033359-300436/INVKI0208,785.00,TRINITY CHAMBERS.
Children and Young Peoples Services,Head of Childrens Social Care,Supplies and Services,338042,Services,03/08/2022,4033239-8037/2,"2,150.00",REDACTED - PAYMENT TO INDIVIDUAL
Neighbourhoods and Climate Change,Technical Services CM0300,Supplies and Services,338027,Services,03/08/2022,4033173-00136,710.00,REDACTED - PAYMENT TO INDIVIDUAL
Resources BK0010,Legal & Democratic Services,Supplies and Services,338025,Services,03/08/2022,4033279-26072022,"1,500.00",PHILLIPS & CO COSMETIC DENTISTRY.
Regeneration Economy and Growth,Culture Sport and Tourism,Supplies and Services,338047,Services,03/08/2022,4033316-INV-1216,"6,666.00",SCENIC PANTOMIMES LTD.
Regeneration Economy and Growth,Culture Sport and Tourism,Supplies and Services,338047,Services,03/08/2022,4033340-1863,"4,350.00",TALEGATE THEATRE PRODUCTIONS.
Regeneration Economy and Growth,Culture Sport and Tourism,Supplies and Services,338047,Services,03/08/2022,4033367-1968327,510.81,WALT DISNEY CO LTD.
Regeneration Economy and Growth,Culture Sport and Tourism,Supplies and Services,338047,Services,03/08/2022,4033369-23056845,823.13,WARNER BROS ENTERTAINMENT UK LTD.
Children and Young Peoples Services,Head of Education and Skills,Supplies and Services,338035,Services,03/08/2022,4033360-1-3729216841/MUSIC,"4,021.48",TRINITY COLLEGE LONDON.
Children and Young Peoples Services,Head of Childrens Social Care,Supplies and Services,338044,Services,03/08/2022,4033097-KT480722,"1,500.00",ADVANCED CHILD CARE ASSESSMENTS LTD.
Resources BK0010,Corporate Finance & Commercial Services,Supplies and Services,338045,Services,03/08/2022,4033368-857364,554.00,WARD HADAWAY.
Children and Young Peoples Services,Head of Childrens Social Care,Supplies and Services,338060,Services,03/08/2022,4033270-SINCC3F60174,"2,836.00",OFSTED.
Resources BK0010,HR & Employee Services,Supplies and Services,338099,Services,03/08/2022,4033355-86375389,"4,141.67",TOTALJOBS GROUP LTD.
Children and Young Peoples Services,Head of Education and Skills,Supplies and Services,338066,Services,03/08/2022,4033115-INV-1416,820.00,ASSOCIATION OF ADULT EDUCATION & TRAINING ORGANISATIONS AAETO  T/A HOLEX.
Neighbourhoods and Climate Change,Environmental Services,Supplies and Services,338066,Services,03/08/2022,4033147-RES-08-2022-017,"14,998.53",COAL AUTHORITY.
Neighbourhoods and Climate Change,Environmental Services,Supplies and Services,338078,Services,03/08/2022,4033338-18054,"5,370.75",STEADFAST SECURITY SOLUTIONS LTD.
Regeneration Economy and Growth,Business Durham CL0850,Supplies and Services,338078,Services,03/08/2022,4033366-INV-50402,"6,243.76",VISTECH SERVICES LTD.
Children and Young Peoples Services,Childrens Services Operational Support,Supplies and Services,338094,Services,03/08/2022,4033178-INV-0100,"2,390.00",GLOW CHURCH UK LTD.
Regeneration Economy and Growth,Culture Sport and Tourism,Intangible Assets,917003,Software capitalised implementation fees,03/08/2022,4033130-INV-12452,"1,000.00",BRAMBLE HUB LTD.
Neighbourhoods and Climate Change,Technical Services CM0300,Stock A926,926004,Stock,03/08/2022,4033145-400042428,"13,211.22",CLEVELAND POTASH LTD T/A ICL FERTILIZERS.
Neighbourhoods and Climate Change,Technical Services CM0300,Stock A926,926004,Stock,03/08/2022,4033145-400042490,"25,256.20",CLEVELAND POTASH LTD T/A ICL FERTILIZERS.
Neighbourhoods and Climate Change,Technical Services CM0300,Stock A926,926004,Stock,03/08/2022,4033145-400042491,"11,456.68",CLEVELAND POTASH LTD T/A ICL FERTILIZERS.
Neighbourhoods and Climate Change,Technical Services CM0300,Stock A926,926900,Stock in hand-Inventory system,03/08/2022,4033181-06/182582A,727.88,GREENHAM TRADING LTD.
Neighbourhoods and Climate Change,Technical Services CM0300,Stock A926,926900,Stock in hand-Inventory system,03/08/2022,4033181-06/184460,"4,301.00",GREENHAM TRADING LTD.
Neighbourhoods and Climate Change,Environmental Services,Stock A926,926900,Stock in hand-Inventory system,03/08/2022,4033218-SI02-0357194,871.50,KILLGERM CHEMICALS LTD.
Neighbourhoods and Climate Change,Technical Services CM0300,Stock A926,926900,Stock in hand-Inventory system,03/08/2022,4033380-145489331,"23,967.00",ZG LIGHTING (UK) LTD.
Regeneration Economy and Growth,Corporate Property and Land,Supplies and Services,372009,Subscriptions E372,03/08/2022,4033200-4087/2022,737.50,INSTITUTION OF GAS ENGINEERS & MANAGERS (IGEM).
Adult and Health Services,Commissioning inc Supporting People,Third Party Payments,441001,Supporting People E441,03/08/2022,4032086-2297899,"3,306.52",ANCHOR HANOVER GROUP.
Adult and Health Services,Commissioning inc Supporting People,Third Party Payments,441001,Supporting People E441,03/08/2022,4032306-2298592,"25,312.48",DURHAM ACTION ON SINGLE HOUSING LTD.
Adult and Health Services,Commissioning inc Supporting People,Third Party Payments,441001,Supporting People E441,03/08/2022,4032316-2298967,"5,498.48",EAST DURHAM COMMUNITY INITIATIVES LTD.
Adult and Health Services,Commissioning inc Supporting People,Third Party Payments,441001,Supporting People E441,03/08/2022,4032421-2265232,"25,440.16",HARBOUR SUPPORT SERVICES.
Adult and Health Services,Commissioning inc Supporting People,Third Party Payments,441001,Supporting People E441,03/08/2022,4032462-1915224,"355,440.68",HOME GROUP LTD FORMERLY STONHAM HOUSING ASSOCIATION LTD.
Adult and Health Services,Commissioning inc Supporting People,Third Party Payments,441001,Supporting People E441,03/08/2022,4033010-2298424,"19,284.04",THE CYRENIANS LTD T/A CHANGING LIVES.
Adult and Health Services,Commissioning inc Supporting People,Third Party Payments,441001,Supporting People E441,03/08/2022,4033025-2265432,"28,678.64",THIRTEEN HOUSING GROUP LTD.
Adult and Health Services,Commissioning inc Supporting People,Third Party Payments,441001,Supporting People E441,03/08/2022,4033069-2611030,"9,568.80",WEAR VALLEY WOMENS AID LTD.
Adult and Health Services,Commissioning inc Supporting People,Third Party Payments,442002,Supporting People E442,03/08/2022,4032150-2298475,"16,862.68",BID SERVICES.
Adult and Health Services,Public Health CC0450,Third Party Payments,442002,Supporting People E442,03/08/2022,4032377-1554026,"22,384.40",FOUNDATION.
Adult and Health Services,Commissioning inc Supporting People,Third Party Payments,442002,Supporting People E442,03/08/2022,4032468-2298957,"33,646.32",HUMANKIND CHARITY.
Adult and Health Services,Commissioning inc Supporting People,Third Party Payments,442002,Supporting People E442,03/08/2022,4032718-2300613,"2,627.68",MOVING ON HOUSING.
Dedicated Schools Grant BG0015,DSG High Needs Block,Central Support and Other Recharges,689996,Unclassified E690,03/08/2022,4033193-RES-08-2022-015,"121,573.00",HOPE WOOD ACADEMY.
Regeneration Economy and Growth,Communications Management,Supplies and Services,336005,Advertising E336,04/08/2022,4033521-SIA002345,721.69,REACH PUBLISHING SERVICES LTD T/A REACH PLC.
Neighbourhoods and Climate Change,Technical Services CM0300,Other expenses A914,914002,Capital - Advertisments,04/08/2022,4033495-40562816,929.47,NEWSQUEST (YORKSHIRE & NORTH EAST) LTD.
Regeneration Economy and Growth,Business Durham CL0850,Premises,145009,Cleaning and Domestic Supplies,04/08/2022,4033410-CN30198920,575.04,CITRON HYGIENE UK LTD.
Resources BK0010,Digital Services,Vehicles Equipment Furniture and Fittings,912701,Computer equipment,04/08/2022,4033407-110707,"23,282.50",CENTRAL POWER SERVICES LTD (CPS).
Regeneration Economy and Growth,Transport and Contracted Services,Construction work A908,908105,Construction work,04/08/2022,4033469-26631,"4,129.87",JACK COUPE & SONS LTD T/A COUPE LINE.
Regeneration Economy and Growth,Transport and Contracted Services,Construction work A908,908105,Construction work,04/08/2022,4033469-26635,"1,801.57",JACK COUPE & SONS LTD T/A COUPE LINE.
Regeneration Economy and Growth,Transport and Contracted Services,Construction work A908,908105,Construction work,04/08/2022,4033469-26650,689.15,JACK COUPE & SONS LTD T/A COUPE LINE.
Regeneration Economy and Growth,Transport and Contracted Services,Construction work A908,908105,Construction work,04/08/2022,4033469-26658,960.05,JACK COUPE & SONS LTD T/A COUPE LINE.
Neighbourhoods and Climate Change,Environmental Services,Fees,901002,Professional fees,04/08/2022,4033431-64022426,"1,700.00",DESCO (DESIGN & CONSULTANCY) LTD.
Regeneration Economy and Growth,Corporate Property and Land,Fees,901002,Professional fees,04/08/2022,4033431-64022430,"6,000.00",DESCO (DESIGN & CONSULTANCY) LTD.
Adult and Health Services,Public Health CC0450,Third Party Payments,460803,Contract Payments,04/08/2022,4033511-17953/18,"5,462.92",PIONEERING CARE PARTNERSHIP.
Regeneration Economy and Growth,Business Durham CL0850,Premises,120009,Energy Costs,04/08/2022,4033442-000012792332,"7,638.50",EDF ENERGY CUSTOMERS PLC T/A EDF ENERGY.
Regeneration Economy and Growth,Business Durham CL0850,Premises,120009,Energy Costs,04/08/2022,4033442-000012793488,"2,597.67",EDF ENERGY CUSTOMERS PLC T/A EDF ENERGY.
Neighbourhoods and Climate Change,Technical Services CM0300,Supplies and Services,304221,Equipment and Materials,04/08/2022,4033384-33368146,891.48,AGGREGATE INDUSTRIES UK LTD.
Neighbourhoods and Climate Change,Technical Services CM0300,Supplies and Services,304221,Equipment and Materials,04/08/2022,4033388-28398,794.69,ARBOR TIMBER & BUILDERS MERCHANTS LTD.
Regeneration Economy and Growth,Corporate Property and Land,Supplies and Services,304221,Equipment and Materials,04/08/2022,4033403-10826491,508.20,CARPET & FLOORING (TRADING) LTD.
Regeneration Economy and Growth,Corporate Property and Land,Supplies and Services,304221,Equipment and Materials,04/08/2022,4033474-0113/00706695,755.00,JT DOVE LTD.
Regeneration Economy and Growth,Corporate Property and Land,Supplies and Services,304221,Equipment and Materials,04/08/2022,4033474-0122/00708977,543.84,JT DOVE LTD.
Regeneration Economy and Growth,Corporate Property and Land,Supplies and Services,304221,Equipment and Materials,04/08/2022,4033474-0213/00705570,"1,207.70",JT DOVE LTD.
Regeneration Economy and Growth,Corporate Property and Land,Supplies and Services,304221,Equipment and Materials,04/08/2022,4033474-0213/00710105,"1,790.06",JT DOVE LTD.
Regeneration Economy and Growth,Corporate Property and Land,Supplies and Services,304221,Equipment and Materials,04/08/2022,4033474-0303/00656823,"1,846.00",JT DOVE LTD.
Neighbourhoods and Climate Change,Technical Services CM0300,Supplies and Services,304221,Equipment and Materials,04/08/2022,4033474-0303/00658072,667.50,JT DOVE LTD.
Neighbourhoods and Climate Change,Technical Services CM0300,Supplies and Services,304221,Equipment and Materials,04/08/2022,4033474-0303/00659271,900.17,JT DOVE LTD.
Regeneration Economy and Growth,Corporate Property and Land,Supplies and Services,304221,Equipment and Materials,04/08/2022,4033474-0303/00660428,"1,846.00",JT DOVE LTD.
Neighbourhoods and Climate Change,Technical Services CM0300,Supplies and Services,304221,Equipment and Materials,04/08/2022,4033557-118158,"1,317.62",TOFCO LTD.
Neighbourhoods and Climate Change,Environmental Services,Supplies and Services,304259,Equipment and Materials,04/08/2022,4033416-SIN082796,"2,002.73",CONICA LTD.
Regeneration Economy and Growth,Culture Sport and Tourism,Supplies and Services,304259,Equipment and Materials,04/08/2022,4033449-10599,"1,048.00",GB SPORT & LEISURE UK LTD.
Neighbourhoods and Climate Change,Environmental Services,Supplies and Services,304259,Equipment and Materials,04/08/2022,4033449-10600,"2,020.00",GB SPORT & LEISURE UK LTD.
Regeneration Economy and Growth,Transport and Contracted Services,Supplies and Services,304259,Equipment and Materials,04/08/2022,4033564-3IN/10393271,"17,910.00",TUNSTALL HEALTHCARE (UK) LTD.
Neighbourhoods and Climate Change,Environmental Services,Supplies and Services,304259,Equipment and Materials,04/08/2022,4033485-4670,"1,310.00",LONDON HEARTS.
Neighbourhoods and Climate Change,Environmental Services,Supplies and Services,304252,Equipment and Materials,04/08/2022,4033565-44872,"4,368.00",UK CONTAINER MAINTENANCE LTD.
Resources BK0010,Digital Services,Supplies and Services,304303,Equipment and Materials,04/08/2022,4033455-INV0188024,854.08,GVAV LTD.
Resources BK0010,Digital Services,Supplies and Services,304303,Equipment and Materials,04/08/2022,4033455-INV0188025,"1,495.92",GVAV LTD.
Resources BK0010,Digital Services,Supplies and Services,304303,Equipment and Materials,04/08/2022,4033455-INV0188026,"25,274.73",GVAV LTD.
Resources BK0010,Digital Services,Supplies and Services,304639,Equipment and Materials,04/08/2022,4033464-2100315732,"3,576.30",INSIGHT DIRECT (UK) LTD.
Resources BK0010,Procurement Sales & Business Services,Supplies and Services,308011,Furniture,04/08/2022,4033392-105129,"1,147.00",BACK CARE SOLUTIONS LTD.
Regeneration Economy and Growth,Economic Development Level C,Supplies and Services,384899,Miscellaneous Expenses,04/08/2022,4033476-ND009/10,"6,567.13",KARBON HOMES LTD FORMERLY CESTRIA HOUSING ASSOCIATION LTD.
Neighbourhoods and Climate Change,Partnerships & Community Engagement Div.,Supplies and Services,384086,Miscellaneous Expenses,04/08/2022,4033421-VOUCHERBLAJ02-22,600.00,COXHOE SCOUT GROUP.
Neighbourhoods and Climate Change,Partnerships & Community Engagement Div.,Supplies and Services,384086,Miscellaneous Expenses,04/08/2022,4033424-VOUCHERKENL03-22,600.00,DAWDON YOUTH & COMMUNITY CENTRE.
Neighbourhoods and Climate Change,Partnerships & Community Engagement Div.,Supplies and Services,384086,Miscellaneous Expenses,04/08/2022,4033441-VOUCHERHOWD01-22,650.00,EDEN HILL PEOPLE CENTRE.
Neighbourhoods and Climate Change,Partnerships & Community Engagement Div.,Supplies and Services,384086,Miscellaneous Expenses,04/08/2022,4033577-VOUCHERGUNO03-22,500.00,WILLINGTON YOUTH FC.
Children and Young Peoples Services,Head of Early Help Inclusion & Vulnerable Children.,Supplies and Services,384199,Miscellaneous Expenses,04/08/2022,4033420-THK070,"2,801.00",COUNTY DURHAM FURNITURE HELP SCHEME (CDFHS).
Regeneration Economy and Growth,Culture Sport and Tourism,Supplies and Services,384199,Miscellaneous Expenses,04/08/2022,4033427-059,864.00,DECLAN SOUTHERN.
Regeneration Economy and Growth,Culture Sport and Tourism,Supplies and Services,324117,Provisions E324,04/08/2022,4033492-906635001,684.68,MOLSON COORS BREWING COMPANY (UK) LTD.
Adult and Health Services,Head of Adults,Third Party Payments,479102,Purchase of Care,04/08/2022,4033426-INVAJF382,"1,650.00",DEANS COURT CHAMBERS.
Neighbourhoods and Climate Change,Environmental Services,Third Party Payments,430120,Rendered by Private Contractors,04/08/2022,4033445-CTIN06688705,"8,406.09",FINNING (UK) LTD.
